{"text_format":"1","workbook":"xlsx","n_sheets":12,"sheets":["はじめに(企総)","項目説明 (企総)","別紙様式(企総)","別紙","複数支払人等","複数被保険者等","コード一覧","決済方法の入力方法","文言制御","シート項目定義（別紙様式）","シート項目定義（別紙）","テンプレート(別紙)"],"not_rendered":{"charts":0,"images":14,"macros":1,"external_links":0,"defined_names":29,"comments":1,"pivot_tables":0},"unopened":[],"bounds":{"document_bytes":16777216,"sheet_cells":100000,"rows_first":2000,"rows_last":500,"rows_between":2000,"halvings":0,"cell_chars":16384,"cell_head_chars":4096},"cells_cut":0,"cells_raw":0,"read":"whole","date_system":"1900"}

{"sheet":"はじめに(企総)","index":0,"n_rows":55,"n_cols":5,"rows_kept":55,"cut":false,"hidden":false,"merged":[[51,0,51,10],[53,3,53,9],[54,3,54,9],[29,4,29,9],[30,4,30,9],[31,4,31,9],[34,3,34,9],[35,3,35,9],[37,3,37,9],[14,3,14,9],[16,3,16,9],[17,3,18,9],[25,3,25,9],[26,3,26,9],[27,3,27,9],[10,1,10,2],[10,3,10,9],[11,1,11,2],[11,3,11,9],[12,3,12,7],[13,3,13,7],[1,0,1,10],[2,0,2,10],[4,0,4,10],[8,1,8,2],[8,3,8,9],[9,1,9,2],[9,3,9,9]]}
[2]
["はじめに"]
[{"$f":"\"このファイルは、\"&IF(A1=1,\"設備財包括保険（一般案件）\",\"企業総合保険（証券型案件）\")&\"の新規申込み、訂正、変更通知および変更承認申請の書類作成ツールです。以下に、入力手順をご説明します。\"","v":"このファイルは、企業総合保険（証券型案件）の新規申込み、訂正、変更通知および変更承認申請の書類作成ツールです。以下に、入力手順をご説明します。"}]
[]
["書類作成の流れ"]
[]
[null,null,null,"・書類の種類を選択します。"]
[]
[null,"新規申込",null,"新規申込みの場合"]
[null,"訂正",null,"保険証券発行後に誤記等を発見し訂正をする場合"]
[null,"変更通知",null,"2014年10月1日以降にお引受けした証券の内容を変更する場合"]
[null,"変更承認申請",null,"上記変更通知以外の内容変更をする場合"]
[null,null,null,"・『項目説明』を参照し、必要な項目を入力します。"]
[null,null,null,"・新規申込以外は、変更箇所を赤字にしてください。"]
[]
[]
[null,null,null,"・枝単位に決済方法や決済金額を入力します。"]
[null,null,null,"・新規申込以外は、変更する枝の内容は全て入力し、\n　変更箇所を赤字にしてください。"]
[]
[]
[null,null,null,"・複数支払人または複数被保険者の場合に入力します。"]
[]
[]
[]
[]
[null,null,null,"・入力が完了したら申込書シート右上の【項目チェック】ボタンを"]
[null,null,null,"　クリックして確認してください。必須項目が未入力の場合、"]
[null,null,null,"　「○○（項目名）が入力されていません。」と表示されます。"]
[]
[null,null,null,null,"※必ずエラーを解消して次のステップに進んでください。"]
[null,null,null,null,"　申込書として必要な項目は全て入力してください。"]
[null,null,null,null,"　なお、必要最低限の項目のみチェックします。ご留意ください。"]
[null,null,null,null,"※必須でないその他の項目も十分ご確認ください。"]
[]
[null,null,null,"・全シートを一括印刷する場合は申込書右上の【全部印刷】ボタンを"]
[null,null,null,"　クリックしてください。"]
[null,null,null,"　※印刷対象シート：別紙様式、別紙、複数支払人等および複数被保険者等"]
[null,null,null,"・各シートを個別に印刷する場合は、通常の手順で印刷してください。"]
[]
[null,null,null,null,"※印刷後、代表者の押印を忘れずにお願いします。"]
[]
[]
[]
[null,null,null,"・このファイルを保存します(保存場所は任意)。"]
[null,null,null,"・ファイル名は、下記命名規則での保存をお願いします。"]
[]
[null,{"$f":"IF(A1=1,\"【受理局】-【申込人5桁目から4桁】-【追順番号】(【申込年月日】)【通知種別】【変更番号】.xlsm\",\"【受理局】-【特約ｺｰﾄﾞ】-【追順番号】(【申込年月日】)【通知種別】.xlsm\")","v":"【受理局】-【特約ｺｰﾄﾞ】-【追順番号】(【申込年月日】)【通知種別】.xlsm"}]
[null,{"$f":"IF(A1=1,\"[例] 10-5200-18-001001(20181001)新規.xlsm\",\"[例] 10-2xxxxxxx-18-000001(20181001)新規.xlsm\")","v":"[例] 10-2xxxxxxx-18-000001(20181001)新規.xlsm"}]
[null,{"$f":"IF(A1=1,\"      10-5200-18-001001(20181101)変更H1234.xlsm\",\"\")","v":""}]
[]
[]
["保険申込の流れ"]
[]
[null,null,null,"・上記５で印刷および押印した書類一式をNEXIまで郵送してください。"]
[null,null,null,"・上記６で保存したファイルをNEXI担当者まで電子メールで送付してください。"]

{"sheet":"項目説明 (企総)","index":1,"n_rows":123,"n_cols":6,"rows_kept":123,"cut":false,"hidden":false,"merged":[[9,0,10,0],[10,1,11,1],[10,4,11,4],[2,0,2,1],[2,2,2,4],[3,0,4,0],[3,1,4,1],[3,2,4,3],[3,4,4,4],[10,5,11,5],[12,2,12,3],[13,2,13,3],[3,5,4,5],[5,3,6,3],[5,4,6,4],[5,5,6,5],[7,2,7,3],[8,2,9,3],[14,2,14,3],[16,0,16,1],[16,2,16,4],[17,1,18,1],[17,4,18,4],[18,0,22,0],[19,1,20,1],[19,4,20,4],[21,1,22,1],[21,4,22,4],[21,5,22,5],[24,0,24,1],[24,2,24,4],[25,1,26,1],[25,4,26,4],[25,5,26,5],[27,1,28,1],[27,4,28,4],[27,5,28,5],[29,1,30,1],[29,4,30,4],[29,5,30,5],[31,1,32,1],[31,4,32,4],[31,5,32,5],[33,1,34,1],[33,4,34,4],[33,5,34,5],[35,1,36,1],[35,4,36,4],[35,5,36,5],[37,1,38,1],[37,4,38,4],[37,5,38,5],[39,1,40,1],[39,4,40,4],[39,5,40,5],[41,1,42,1],[41,4,42,4],[41,5,42,5],[43,1,44,1],[43,4,44,4],[43,5,44,5],[45,1,46,1],[45,4,46,4],[45,5,46,5],[47,1,48,1],[47,4,48,4],[47,5,48,5],[49,1,50,1],[49,2,50,3],[49,4,50,4],[49,5,50,5],[51,1,52,1],[51,4,52,4],[51,5,52,5],[54,0,54,1],[54,2,54,4],[55,1,56,1],[55,4,56,4],[55,5,56,5],[57,0,58,0],[57,1,58,1],[57,4,58,4],[57,5,58,5],[59,1,60,1],[59,4,60,4],[59,5,60,5],[61,1,62,1],[61,4,62,4],[61,5,62,5],[64,0,64,1],[64,2,64,4],[65,1,66,1],[65,4,66,4],[65,5,66,5],[67,1,68,1],[67,4,68,4],[67,5,68,5],[69,1,70,1],[69,4,70,4],[71,2,71,3],[74,0,74,1],[74,2,74,4],[75,2,75,3],[76,2,76,3],[78,0,78,1],[78,2,78,4],[79,2,79,3],[80,1,81,1],[80,4,81,4],[80,5,81,5],[82,1,83,1],[82,4,83,4],[82,5,83,5],[85,0,85,1],[85,2,85,4],[86,1,87,1],[86,4,87,4],[86,5,87,5],[88,2,88,3],[89,2,89,3],[90,1,91,1],[90,4,91,4],[90,5,91,5],[92,2,92,3],[93,1,94,1],[93,2,94,3],[93,4,94,4],[93,5,94,5],[95,2,95,3],[96,1,97,1],[96,4,97,4],[96,5,97,5],[98,2,98,3],[99,2,99,3],[100,2,100,3],[101,2,101,3],[102,1,103,1],[102,4,103,4],[102,5,103,5],[105,0,105,1],[105,2,105,4],[106,1,107,1],[106,4,107,4],[106,5,107,5],[108,2,108,3],[109,1,110,1],[109,2,110,3],[109,4,110,4],[109,5,110,5],[117,2,118,3],[117,4,118,4],[111,1,112,1],[111,2,112,3],[111,4,112,4],[111,5,112,5],[113,1,114,1],[113,2,114,3],[113,4,114,4],[113,5,114,5],[119,1,120,1],[119,4,120,4],[119,5,120,5],[121,2,121,3],[122,2,122,3],[115,1,116,1],[115,2,116,3],[115,4,116,4],[115,5,116,5],[117,1,118,1]]}
[]
[]
["申込人等の内容",null,"※\"新\"は新規申込、\"他\"は新規申込以外、\"○\"は必須、\"△\"は場合により必須、\"-\"は不要、空白は必要に応じて入力"]
[null,"通知種別","○",null,"・作成書類の種別を選択するラジオボタンです。\n・いずれかひとつをクリックして選択してください。\n・選択したラジオボタンにより以下の項目が自動的に切り替わります。\n　①別紙様式番号\n　②書類タイトル\n　③書類タイトル下の規程に関する文章\n　④２ページ目の了解事項（”訂正”を選択した場合のみ）"]
[]
[null,"追順番号","新","○","・保険証券を特定するための番号です。\n・「通知種別」が”新規申込”以外は「保険証券番号」と表示が変わります。\n・数字８桁（年度下２桁＋一連番号６桁）を続けて入力してください。\n　ハイフン\"-\"は入力しないでください。\n［例］　追順番号(保険証券番号)が18-001001の場合、18001001と入力します"]
[null,"保険証券番号","他"]
[null,"申込年月日","○",null,"・書類を提出する日です。\n・入力はyyyy/mm/dd形式で入力してください。\n＊当日であれば”　ｃｔｒｌ　＋　；　（セミコロン）　”で簡単に入力できます（Ｅｘｃｅｌ機能）。"]
[null,"内諾書発行日\n*内諾案件は必須","△",null,"・内諾書が発行された日です。\n・内諾書発行日をyyyy/mm/dd形式で入力してください。"]
["※被保険者または保険金受取人が複数の場合は、上方【複数被保険者等へ】ボタンでジャンプし入力してください。\nなお、３社以上の場合は行追加のうえ入力してください。","内諾番号\n*内諾案件は必須",null,null,"・内諾書の番号です。\n・内諾番号を入力してください。\n・数字８桁（年度下２桁＋一連番号６桁）を続けて入力してください。\n　ハイフン\"-\"は入力しないでください。\n［例］　内諾番号が18-400001の場合、18400001と入力します。"]
[null,"事前承認番号\n*回答書がある場合は必須","新","-","・「内容変更承認申請回答書」に記載されている事前承認番号です。\n・事前承認番号を入力してください。\n・数字８桁（年度下２桁＋一連番号６桁）を続けて入力してください。\n　ハイフン\"-\"は入力しないでください。\n［例］　事前承認番号が18-000001の場合、18000001と入力します。"]
[null,null,"他","△"]
[null,"申込人","○",null,"・申込者の保険利用者コード（シッパーコード）です。\n・コード９桁を入力してください。\n・下段に住所、企業名、役職名および氏名を入力してください。"]
[null,"被保険者","○",null,"・被保険者の保険利用者コード（シッパーコード）です。\n・コード９桁を入力してください。\n・下段に住所、企業名、役職名および氏名を入力してください。\n＊申込人と同じ場合は「□申込人に同じ」にチェックすることで入力不要となります。"]
[null,"保険金受取人","○",null,"・保険金受取人の保険利用者コード（シッパーコード）です。\n・コード９桁を入力してください。\n・下段に住所、企業名、役職名および氏名を入力してください。\n＊申込人と同じ場合は「□申込人に同じ」にチェックすることで入力不要となります。"]
[]
["輸出契約等の内容①(相手方、支払人および保証人)",null,"※\"新\"は新規申込、\"他\"は新規申込以外、\"○\"は必須、\"△\"は場合により必須、\"-\"は不要、空白は必要に応じて入力"]
[null,"契約の相手方","新","○","・輸出契約又は仲介貿易契約の相手方です。\n・海外商社名簿の登録通りにバイヤーコード、名称、住所および格付を入力してください。\n＊相手方が複数の場合は、支払人と異なるバイヤーを入力してください。\n・氏名右の欄にバイヤーコード（国コード３桁＋バイヤーコード７桁）を、住所右の欄には住所枝（２桁）を入力してください。\n＊住所枝は住所が複数登録されていて、かつ、今回の輸出契約書上の住所が住所枝００以外の住所の場合のみ必須になります。\n・バイヤーコードは、国コード（３桁）とバイヤーコード（７桁）を続けて入力してください。　ハイフン\"-\"は入力しないでください。\n［例］　バイヤーコードが304-1001000の場合、3041001000と入力します　\n・バイヤーコード下の欄には国名が自動表示されます。\n＊バイヤーコード先頭の国コードを使用。\n・格付はプルダウンリストから選択してください。\n (GS,GA,GE,EE,EA,EF,EM,EC,ER,PU,PN,PT,SA,SC,GR,SR)"]
["※契約の相手方、代金等支払人または保証人が複数の場合は、上方の【複数支払人等へ】ボタンでジャンプし入力してください。３社以上の場合は行追加のうえ入力してください。\n\nなお、この申込書類には下記要領で必ず入力してください。\n*支払人：格付の最も良いバイヤー\n*相手方：支払人と異なるバイヤー",null,"他"]
[null,"代金等支払人","新","○","・代金の支払人です。\n・入力の手順は上記「契約の相手方」と同じです。\n＊支払人が複数の場合は、最も良い格付のバイヤーを入力してください。"]
[null,null,"他"]
[null,"保証人","新","○","・ＩＬＣ発行（確認）銀行です。\n・ILCが申込時に発行（確認）されている場合のみ入力、それ以外は入力しないでください。\n・格付はプルダウンリストから選択してください。\n (GS,GE,SA,SC,GR,SR)\n　ただし、保証人として適用されるのは、GS格、GE格またはSA格に格付けされている銀行に限ります。\n・入力の手順は上記「契約の相手方」と同じです。"]
[null,null,"他"]
[]
["輸出契約等の内容②\n(国、受渡条件、契約締結日、輸出契約番号、契約形態　等)",null,"※\"新\"は新規申込、\"他\"は新規申込以外、\"○\"は必須、\"△\"は場合により必須、\"-\"は不要、空白は必要に応じて入力"]
[null,"仕向国","新","○","・最終仕向地です。\n・（コード）の欄に国コード(３桁)を入力してください。\n・左の欄には国名が自動表示されます。"]
[null,null,"他"]
[null,"船積国\n*仲介貿易契約のみ必須","新","△","・仲介貿易契約の場合の船積国です。\n・入力の手順は上記「仕向国」と同じです。"]
[null,null,"他"]
[null,"買契約相手国\n*仲介貿易契約のみ必須","新","△","・仲介貿易契約の場合の買契約相手方の所在する国です。\n・入力の手順は上記「仕向国」と同じです。"]
[null,null,"他"]
[null,"受渡条件","新","○","・インコタームズで定義されている受渡条件です。\n・プルダウンリストから選択してください。"]
[null,null,"他"]
[null,"契約締結日","新","○","・輸出契約等を締結した日付です。\n・輸出契約書等に記載された日付を入力してください。\n・入力はyyyy/mm/dd形式で入力してください。"]
[null,null,"他"]
[null,"契約発効日\n*発効条件付きは必須","新","△","・輸出契約等の発効日です。\n・発効条件がついている場合のみ契約発効日を入力してください。\n・入力はyyyy/mm/dd形式で入力してください。"]
[null,null,"他"]
[null,"船積時期(自)","新","○","・輸出契約等における最初の船積予定日です。\n・入力はyyyy/mm/dd形式で入力してください。\n＊船積が１回の場合は、空白にしてください。"]
[null,null,"他"]
[null,"船積時期(至)","新","○","・輸出契約等における最終の船積予定日です。\n・入力はyyyy/mm/dd形式で入力してください。\n＊船積が１回の場合は、ここに入力してください。"]
[null,null,"他"]
[null,"貨物名称\n(HSコード)","新","○","・主な貨物の名称とＨＳ（品目）コードです。\n・ＨＳコードの上６桁を入力してください。"]
[null,null,"他"]
[null,"輸出契約番号","新","○","・輸出契約等を特定する番号です。\n・輸出契約書等に記載されている番号を２５桁以内で入力してください（半角の英数字と、特殊文字を除く記号に限る）。"]
[null,null,"他"]
[null,"リファレンス番号","新","△","・貴社で保険契約を管理するための参照番号です。\n・貴社において、保険契約を管理する番号が必要である場合に１５桁以内で入力してください（半角の英数字と、特殊文字を除く記号に限る）。"]
[null,null,"他"]
[null,"部門コード","新","△","・貴社で部門別に保険契約を管理するためのコードです。\n・貴社において、部門別に保険契約の管理が必要である場合に６桁以内で入力してください（半角の英数字と、特殊文字を除く記号に限る）。"]
[null,null,"他"]
[null,"契約形態","○",null,"・貿易取引の形態です。\n・プルダウンリストから選択してください。\n＊輸出：貨物を日本から出荷する取引\n＊仲介：貨物を日本以外の国から別の国に向けて出荷する取引\n＊混在している場合は、主たる取引を選択してください"]
[]
[null,"船積後付保率\n（非常）","新","○","・船積後の非常危険付保率です。\n・原則９７．５％ですが、オプションで１００％が選択できます。\n・プルダウンリストより選択してください。\n"]
[null,null,"他","-"]
[]
["輸出契約等の内容③(通貨、契約金額　等)",null,"※\"新\"は新規申込、\"他\"は新規申込以外、\"○\"は必須、\"△\"は場合により必須、\"-\"は不要、空白は必要に応じて入力"]
[null,"通貨","新","○","・輸出契約等における決済通貨です。\n・輸出契約書等に記載されている決済通貨をプルダウンリストから選択してください。\n＊ひとつの輸出契約等で４通貨まで入力可能です。5通貨以上の場合はNEXIまでご相談ください。\n＊コード一覧に該当する通貨が無い、または、網掛け(邦貨換算レートが無い)になっている場合はNEXIまでお問い合わせください。"]
[null,null,"他"]
["※別紙との整合性を必ずご確認ください。","契約金額元本","新","○","・輸出契約書等に記載されている契約元本（建値）です。\n・前受金を含め、輸出契約書に記載されている契約元本を建値で入力してください。\n＊通貨に係わらず小数点第2位まで表示されます。"]
[null,null,"他"]
[null,"船積前対象額元本\n（ＦＯＢ価額）","新","○","・船積前は貨物のＦＯＢ価額です。\n＊保険の対象となる契約金額のFOB価額\n・金額を建値で入力してください。\n＊通貨に係わらず小数点第2位まで表示されます。"]
[null,null,"他"]
[null,"船積後対象額\n(元本,金利,合計)","新","○","・船積後は契約上の代金額（船積前に決済される額を除く）です。\n・金額を建値で入力してください。\n＊合計は自動計算されます。\n＊通貨に係わらず小数点第2位まで表示されます。"]
[null,null,"他"]
[]
["保険契約等の内容(オプション、その他)",null,"※\"新\"は新規申込、\"他\"は新規申込以外、\"○\"は必須、\"△\"は場合により必須、\"-\"は不要、空白は必要に応じて入力"]
[null,"希望オプション","新","○","・希望するオプションを選択してください。\n・希望オプションが無い場合は「□無」に、有る場合は希望するオプションにチェックしてください。\n＊オプションで「その他」を選択した場合はその他欄に具体的なオプションを入力してください。"]
[null,null,"他"]
[null,"他の保険契約","新","○","・同一の輸出契約等に対して付保されている他の保険が存在する場合のチェック項目です。\n・他の保険契約が存在する場合は”有”を選択してください。右に項目「保険契約の名称」が表示されるので必ず入力してください。\n\n\n\n＊ＮＥＸＩが取り扱っている他の保険種や民間企業の取引信用保険、海外ＥＣＡが取り扱っている貿易保険を入力してください。海上保険やＰＬ保険等、貿易保険と異なる種類の保険については入力不要です。"]
[null,null,"他"]
[null,"その他","新",null,"・その他欄です。\n・新規申込以外は変更(訂正)内容を簡潔に入力してください。\n[例]・製造遅延によるLS延長、・工程の遅れにより対価確認日および決済日の延長\n　　・追加発注による増額　・契約キャンセル　等\n　なお、詳細に入力する場合は、”別添参照”等と入力し別添資料を作成してください。\n・下記のような事項については必要に応じて入力してください。\n　。複数被保険者、連帯債務契約　等\n　。内容変更通知期限\n　。その他"]
[null,null,"他","○"]
[null,"連絡先","○",null,"・ＮＥＸＩからこの申込みに関する問い合わせを受ける担当者の情報です。\n・担当部課名、担当者名、電話番号およびE-mail全て入力してください。"]
[]
[]
["シートの調整方法について",null,"※\"新\"は新規申込、\"他\"は新規申込以外、\"○\"は必須、\"△\"は場合により必須、\"-\"は不要、空白は必要に応じて入力"]
[null,"【枝追加】ボタン",null,null,"・枝を追加するボタンです。\n・初期設定では５枝分の入力欄が表示されていますが、ボタンをクリックするたびにひと枝分が通貨別合計欄の上に追加されます。"]
[null,"【＋】ボタン\n【－】ボタン",null,null,"・決済情報の数を調整するボタンです。\n・決済情報は最大１１行用意されています。\n・初期表示は６行（頭金の行を含む）ですが、不足している場合は【＋】ボタンをクリックすると１１行表示されます。\n・１１行表示されている状態で【－】ボタンをクリックすると６行表示になります。"]
[]
["各セクションの入力について①",null,"※\"新\"は新規申込、\"他\"は新規申込以外、\"○\"は必須、\"△\"は場合により必須、\"-\"は不要、空白は必要に応じて入力"]
[null,"枝番","○",null,"・輸出契約等において下記に該当する場合、保険上のリスクやてん補範囲が異なる事から枝番を複数設定して保険設計（保険料計算）を行います。\n　①国（仕向・支払・保証）が複数\n　②決済通貨が複数\n　③バイヤー（相手方・支払人・保証人）が複数\n　④貨物、役務または現地調達品が混在し、かつ、明確に分かれている\n＊枝番は最低ひとつ”００”の設定が必要です。\n＊枝番を６以上入力する場合は、上述の【枝追加】ボタンで入力欄を増やしてください。\n\n"]
[null,"元枝番","新","-","・内容変更申請において、新しく枝立てしなくてはならない場合に変更対象となる枝番号を入力してください。\n・紐付けする元の枝番号を数字２桁で入力してください。\n［例］　枝番\"00\"の仕向国が一部変更になり新たに\"01\"の枝を立てる場合は、変更の元となる枝番\"00\"を入力して下さい。また、枝番\"00\"と\"01\"の変更事由は同じコードを入力してください。"]
[null,null,"他","△"]
[null,"変更事由","新","-","・変更の場合の事由です。\n・新規申込および訂正の場合は入力しないでください。\n・コード一覧を参照し、対応する変更事由コード２桁を入力してください。\n＊変更事由名称がコードの下に自動表示されます。"]
[null,null,"他","△"]
[]
["各セクションの入力について②",null,"※\"新\"は新規申込、\"他\"は新規申込以外、\"○\"は必須、\"△\"は場合により必須、\"-\"は不要、空白は必要に応じて入力"]
[null,"船積変更等","新","-","・船積情報を変更する場合の処理区分です。\n・プルダウンリストから選択してください。　（追／修／削）\n＊「修」は、変更・訂正の場合に使用します。\n・船積情報とは以下になります。\n　①船積時期(FS/MS/LS)\n　②船積前対象額元本（FOB価額）\n　③船積後対象額元本"]
[null,null,"他","△"]
["※下線付きの項目は申込書類にも同じ項目があります。両者の相関関係は下表のとおりです。","分類","○",null,"・枝単位の契約形態です。\n・枝情報の種類をプルダウンリストから選択してください。\n　（本邦貨物／仲介貨物／役務／現地調達品）"]
[null,"受渡条件",null,null,"・インコタームズで定義されている受渡条件です。\n・プルダウンリストから選択してください。\n*上記「分類」が役務または現地調達品の場合は、別紙の値(空白を含む)となります。"]
[null,"てん補種別\n船前/船後","新","○","・船積前および船積後のてん補範囲です。\n・プルダウンリストから選択してください。\n＊「分類」が本邦貨物または仲介貨物の場合は、100％前金であっても「船後：総合」を選択してください。\n＊「分類」が役務または現地調達品の場合は船前てん補種別は空白にします。"]
[null,null,"他"]
["（注）通貨のみ別紙の入力が必須です。","完成納期","△",null,"・完成納期案件の場合のフラグです。\n・プルダウンリストから”有”または”無”を入力してください。\n・”有”を選択した場合は、船積時期のＬＳに完成納期日を、FSに初回船積日を入力してください。\n＊「分類」が役務または現地調達品の場合には入力しないでください。"]
[null,"通貨","○",null,"・輸出契約等における決済通貨です。\n・輸出契約書等に記載されている決済通貨をプルダウンリストから選択してください。\n＊プルダウンリストに無い場合はNEXI担当者にご相談ください。"]
[]
[null,"個枠確認番号","-",null,"・この項目は入力しないでください。\n"]
[null,"為替換算率","新","△","・契約金額建値が外貨の場合に邦貨換算するレートです。\n・整数部４桁、小数部６桁以内で入力してください。\n＊コード一覧に該当通貨が無い、または、網掛け(邦貨換算レートが無い)になっている場合はNEXIまでお問い合わせのうえ入力してください。\nそれ以外は自動入力のため、入力は不要です。"]
[null,null,"他"]
[null,"HSコード\n貨物の名称等",null,null,"・貨物の名称とＨＳ（品目）コードです。\n・ＨＳコードの上６桁を入力してください。"]
[null,"仕向国",null,null,"・最終仕向地です。\n・（コード）の欄に３桁の国コードを入力してください。"]
[null,"支払国(支払人)",null,null,"・代金の支払人です。\n・支払国と支払人と項目が分かれていますがセットで入力してください。\n・国コードの欄に３桁の国コードを、支払人コードの欄に７桁のバイヤーコードと支払人名を入力してください。\n＊国名は自動表示されます。\n　"]
[null,"保証国(保証人)",null,null,"・ＩＬＣ発行（確認）銀行です。\n・ＩＬＣ決済の場合に入力してください。\n・保証国と保証人と項目が分かれていますがセットで入力してください。\n・国コードの欄に３桁の国コードを、保証人コードの欄に７桁のバイヤーコードと保証人名を入力してください。\n＊国名は自動表示されます。"]
[null,"船積時期\n（ＦＳ／ＭＳ／ＬＳ）","新","○","・枝単位の初回船積予定日（ＦＳ）と最終船積予定日（ＬＳ）です。\n・ＬＳ起算の決済方法であればＬＳのみ入力してください。\n・「分類」が役務または現地調達品の場合は初回対価確認日（FS)と最終対価確認日（LS)を入力してください。\n・「完成納期」が\"有\"の場合は必ずFSを入力してください。\n・FSは変更できません。\n・入力はyyyy/mm/dd形式で入力してください。\n＊ＭＳは自動算出項目です。ＦＳとＬＳ両方が入力された場合に表示されます。\n　申込書類にも同項目がありますが、別紙が必須になっていますので注意してください。"]
[null,null,"他"]
[]
["決済情報セクションおよび備考欄の入力について",null,"※\"新\"は新規申込、\"他\"は新規申込以外、\"○\"は必須、\"△\"は場合により必須、\"-\"は不要、空白は必要に応じて入力"]
[null,"決済変更等","新","-","・決済情報を変更する場合の処理区分です。\n・プルダウンリストから選択してください。　（追／修／削）\n・決済情報とは以下になります。\n　①決済方法\n　②支払保証\n　③決済金額\n　④決済期日、ユーザンスまたはユーザンス月日指定\n　⑤元枝番\n　⑥決済単位の保険対象元本および金利"]
[null,null,"他","○"]
[null,"割合","-",null,"・頭金を含む決済情報単位の金額割合です。\n・表示項目なので入力はできません。"]
[null,"決済方法（ａ）","○",null,"・輸出契約等に基づく決済方法です。\n・（ａ）の欄に２桁のコードを入力してください。\n＊コード一覧を参照してください。決済方法名は自動表示されます。"]
[]
[null,"支払保証（ｂ）","△",null,"・輸出契約等に基づく支払保証です。\n・（ｂ）の欄に２桁のコードを入力してください。\n＊コード一覧を参照してください。支払保証名は自動表示されます。"]
[]
[null,"元本／金利／合計","○",null,"・決済単位の金額です。\n・元本と金利を入力してください。\n＊合計は自動算出されます。"]
[]
[null,"決済期日","△",null,"・上記の決済方法（ａ）が決済日指定の場合に当該日付を入力してください。\n・入力はyyyy/mm/dd形式で入力してください。\n・決済方法がユーザンス指定の場合は空白にしてください。\n＊ユーザンス指定でも決済期日を入力できますが、ユーザンスとの整合性にご注意ください。また、データ書き出し時はユーザンスが優先されます。\n・変更や訂正において決済方法を変更する場合で、かつ、決済日指定をユーザンス指定に変更する場合は、ハイフン”－”を入力したうえでユーザンスを入力してください。"]
[]
[null,"ユーザンス\n(期間／単)","△",null,"・上記の決済方法（ａ）がユーザンス指定の場合に入力してください。\n・「期間」は整数で入力してください。\n・「単」にユーザンスの単位を指定します。プルダウンリストから”日”または”月”を選択してください。\n・決済方法が決済日指定の場合は空白にしてください。\n＊決済日指定でもユーザンスを入力できますが、決済期日との整合性にご注意ください。また、データ書き出し時は決済期日が優先されます。\n・変更や訂正において決済方法を変更する場合で、かつ、ユーザンス指定を決済日指定に変更する場合は、ハイフン”－”を入力したうえで決済期日を入力してください。"]
[null,null,null,null,null,{"$f":"DBCS(E119)","v":""}]
[null,"変更が生じた日","新","-","・新規申込以外で輸出契約等がアメンドされた日です。\n・入力はyyyy/mm/dd形式で入力してください。"]
[null,null,"他","○"]
[null,"備考",null,null,"・特記事項があれば入力してください。\n・特に下記のケースにおいてはＮＥＸＩ担当者の対応を要しますので具体的に記入してください。\n　①船積№が複数\n　②被保険者が枝単位に相違"]
[null,"通貨別合計",null,null,"・通貨毎の合計欄です。\n・申込書の金額と一致する事を確認のうえ入力してください。\n＊十分ご確認のうえ入力してください。"]

{"sheet":"別紙様式(企総)","index":2,"n_rows":62,"n_cols":39,"rows_kept":62,"cut":false,"hidden":false,"merged":[[58,2,58,28],[59,2,59,28],[60,1,60,28],[52,1,52,28],[53,2,53,28],[54,2,54,28],[55,2,55,28],[56,2,56,28],[57,2,57,28],[48,4,48,6],[50,0,50,28],[51,1,51,28],[44,0,44,3],[44,8,44,11],[44,12,44,28],[45,0,45,3],[45,4,45,28],[46,0,48,3],[46,4,46,6],[46,7,46,28],[47,4,47,6],[47,7,47,28],[48,13,48,15],[48,7,48,12],[48,16,48,28],[42,14,42,17],[42,18,42,28],[43,11,43,13],[43,14,43,17],[43,18,43,20],[43,21,43,28],[41,0,41,2],[42,0,43,3],[42,4,43,6],[42,7,43,8],[42,9,43,10],[42,11,42,13],[40,1,40,2],[40,3,40,7],[39,1,39,2],[39,3,39,7],[39,24,39,28],[40,24,40,28],[39,19,39,23],[40,19,40,23],[39,14,39,18],[40,14,40,18],[39,8,39,13],[40,8,40,13],[38,1,38,2],[38,3,38,7],[37,1,37,2],[37,3,37,7],[37,24,37,28],[38,24,38,28],[37,19,37,23],[38,19,38,23],[37,14,37,18],[38,14,38,18],[37,8,37,13],[38,8,38,13],[30,15,30,16],[30,17,30,22],[30,23,30,24],[34,27,34,28],[35,1,36,2],[35,3,36,7],[34,1,34,8],[34,9,34,13],[34,14,34,17],[34,18,34,19],[34,20,34,21],[34,22,34,26],[36,24,36,28],[36,19,36,23],[36,14,36,18],[35,14,35,28],[35,8,36,13],[29,9,29,14],[29,15,29,16],[29,17,29,22],[29,23,29,24],[29,25,29,28],[32,16,32,25],[32,26,32,28],[33,1,33,8],[33,9,33,13],[33,14,33,17],[33,18,33,28],[30,25,30,28],[31,1,31,4],[31,5,31,8],[31,9,32,10],[31,12,31,15],[31,16,31,25],[31,26,31,28],[32,1,32,4],[32,5,32,8],[32,12,32,15],[30,1,30,6],[30,7,30,8],[30,9,30,14],[23,0,40,0],[23,1,24,2],[23,3,23,4],[23,5,23,23],[23,24,23,27],[24,3,24,4],[24,5,24,22],[24,24,24,27],[25,1,26,2],[25,3,25,4],[25,5,25,23],[25,24,25,27],[26,3,26,4],[26,5,26,22],[26,24,26,27],[27,1,28,2],[27,3,27,4],[27,5,27,23],[27,24,27,27],[28,3,28,4],[28,5,28,22],[28,24,28,27],[29,1,29,6],[29,7,29,8],[20,1,20,2],[20,3,20,13],[20,15,20,16],[20,17,20,27],[21,1,21,2],[21,3,21,13],[21,15,21,16],[21,17,21,27],[18,1,18,2],[18,3,18,13],[18,15,18,16],[18,17,18,27],[19,1,19,2],[19,3,19,13],[19,15,19,16],[19,17,19,27],[11,17,11,20],[11,21,11,24],[12,0,12,2],[12,3,12,6],[12,17,12,20],[12,21,12,24],[16,1,16,2],[16,3,16,13],[17,0,17,2],[17,3,17,6],[17,14,17,18],[17,19,17,22],[13,1,13,2],[13,3,13,13],[14,1,14,2],[14,3,14,13],[15,1,15,2],[15,3,15,13],[13,17,13,20],[13,21,13,24],[2,0,2,5],[4,0,4,28],[5,20,5,22],[5,23,5,27],[6,20,6,22],[6,23,6,27],[7,20,7,22],[7,23,7,27],[9,0,10,28],[8,23,8,27],[8,20,8,22]]}
[null,null,null,null,null,null,null,null,null,null,null,null,null,null,null,null,null,null,null,null,null,null,null,null,null,null,null,null,null,1]
[null,null,null,null,null,null,null,null,null,null,null,null,null,null,null,null,null,null,null,null,null,null,null,null,null,null,null,null,null,2,null,null,null,null,null,null,"NEXI入力欄",null,"※このボタンはNEXIで使用しますので押下しないで下さい。"]
[{"$f":"VLOOKUP(VALUE(AD2&AD1),文言制御,2,0)","v":"別紙様式第５"},null,null,null,null,null,null,null,null,null,null,null,null,null,null,null,null,null,null,null,null,null,null,null,null,null,null,null,null,null,null,null,null,null,null,null,"受理局"]
[null,null,null,null,null,null,null,null,null,null,null,null,null,null,null,null,null,null,null,null,null,null,null,null,null,null,null,null,null,null,null,null,null,null,null,null,"受理日"]
[{"$f":"VLOOKUP(VALUE(AD2&AD1),文言制御,3,0)","v":"貿易一般保険申込書"},null,null,null,null,null,null,null,null,null,null,null,null,null,null,null,null,null,null,null,null,null,null,null,null,null,null,null,null,null,null,null,null,null,null,null,"受理番号"]
[null,null,null,null,null,null,null,null,null,null,null,null,null,null,"（２年未満案件　企総）",null,null,null,null,null,{"$f":"VLOOKUP(VALUE(AD2&AD1),文言制御,5,0)","v":"追順番号"},null,null,null,null,null,null,null,null,null,null,"数字8桁入力。自動編集機能付き"]
[null,null,null,null,null,null,null,null,null,null,null,null,null,null,null,null,null,null,null,null,"特約ｺｰﾄﾞ",null,null,null,null,null,null,null,null,null,null,"数字9桁入力。"]
["株式会社日本貿易保険　御中",null,null,null,null,null,null,null,null,null,null,null,null,null,null,null,null,null,null,null,"申込年月日"]
[null,null,null,null,null,null,null,null,null,null,null,null,null,null,null,null,null,null,null,null,"変更番号"]
[{"$f":"VLOOKUP(VALUE(AD2&AD1),文言制御,4,0)","v":"　貿易一般保険約款及びこれに関する規定並びに内諾(※)の内容を承認し、貿易一般保険包括保険（企業総合）手続細則の規定に基づき、次のとおり貿易一般保険を申し込みます。"}]
[]
[null,null,null,null,null,null,null,null,null,null,null,null,null,null,null,null,null,"※内諾書発行日：",null,null,null,null,null,null,null,null,null,null,null,null,null,"内諾案件の場合は発行日と内諾番号を入力。"]
["申込人",null,null,null,null,null,null,null,null,null,null,null,null,null,null,null,null,"内諾番号：",null,null,null,null,null,null,null,null,null,null,null,null,null,"内諾番号は数字8桁入力。自動編集機能付き"]
[null,"住所：",null,null,null,null,null,null,null,null,null,null,null,null,null,null,null,"事前承認番号："]
[null,"企業名："]
[null,"役職名："]
[" ","氏名："]
["被保険者　",null,null,null,null,null,null,null,null,null,null,null,null,null,"保険金受取人",null,null,null,null,null,null,null,null,null,null,null,null,null,null,false]
[null,"住所：",null,null,null,null,null,null,null,null,null,null,null,null,null,"住所：",null,null,null,null,null,null,null,null,null,null,null,null,null,false]
[null,"企業名：",null,null,null,null,null,null,null,null,null,null,null,null,null,"企業名："]
[null,"役職名：",null,null,null,null,null,null,null,null,null,null,null,null,null,"役職名："]
[null,"氏名：",null,null,null,null,null,null,null,null,null,null,null,null,null,"氏名："]
[null,"※内諾の手続を要しなかった案件については内諾番号及び日付は記入不要です。"]
["輸出契約又は仲介貿易契約","契約の\n相手方",null,"氏名",null,null,null,null,null,null,null,null,null,null,null,null,null,null,null,null,null,null,null,null,null,null,null,null,"格付",null,null,"氏名を正確に入力。その右は国コードとバイヤーコードを続けて入力(3桁+7桁)。"]
[null,null,null,"住所",null,null,null,null,null,null,null,null,null,null,null,null,null,null,null,null,null,null,null,null,{"$f":"IFERROR(IF(LENB(Y24)=10,VLOOKUP(LEFT(Y24,3),国x,2,0),\"\"),\"\")","v":""},null,null,null,null,null,null,"住所を正確に入力。その右は住所枝番(２桁)。住所枝00以外は必須入力。格付はプルダウンリストから入力。"]
[null,"代金等支払人",null,"氏名",null,null,null,null,null,null,null,null,null,null,null,null,null,null,null,null,null,null,null,null,null,null,null,null,"格付"]
[null,null,null,"住所",null,null,null,null,null,null,null,null,null,null,null,null,null,null,null,null,null,null,null,null,{"$f":"IFERROR(IF(LENB(Y26)=10,VLOOKUP(LEFT(Y26,3),国x,2,0),\"\"),\"\")","v":""}]
[null,"保証人",null,"氏名",null,null,null,null,null,null,null,null,null,null,null,null,null,null,null,null,null,null,null,null,null,null,null,null,"格付"]
[null,null,null,"住所",null,null,null,null,null,null,null,null,null,null,null,null,null,null,null,null,null,null,null,null,{"$f":"IFERROR(IF(LENB(Y28)=10,VLOOKUP(LEFT(Y28,3),国x,2,0),\"\"),\"\")","v":""}]
[null,"仕向国",null,null,null,null,null,"(ｺｰﾄﾞ)",null,"船積国",null,null,null,null,null,"(ｺｰﾄﾞ)",null,"買契約相手国",null,null,null,null,null,"(ｺｰﾄﾞ)",null,"受渡条件"]
[null,{"$f":"IFERROR(VLOOKUP(H31,国x,2,0),\"\")","v":""},null,null,null,null,null,null,null,{"$f":"IFERROR(VLOOKUP(P31,国x,2,0),\"\")","v":""},null,null,null,null,null,null,null,{"$f":"IFERROR(VLOOKUP(X31,国x,2,0),\"\")","v":""},null,null,null,null,null,null,null,null,null,null,null,null,null,"国コード3桁を入力すると国名が表示される(コード一覧参照）。受渡条件はリスト選択。"]
[null,"契約締結日",null,null,null,null,null,null,null,"船積\n時期",null,"自",null,null,null,null,"貨物の名称、型又は銘柄等",null,null,null,null,null,null,null,null,null,"(HSｺｰﾄﾞ)"]
[null,"契約発効日",null,null,null,null,null,null,null,null,null,"至",null,null,null,null,null,null,null,null,null,null,null,null,null,null,null,null,null,null,null,"HSｺｰﾄﾞは左6桁入力。前後のカッコは自動編集。"]
[null,"輸出契約番号",null,null,null,null,null,null,null,"リファレンス番号",null,null,null,null,"部門ｺｰﾄﾞ",null,null,null,"代金等の決済方法・決済時期(別紙参照)"]
[null,null,null,null,null,null,null,null,null,null,null,null,null,null,null,null,null,null,"契約形態",null,null,null,"船積後付保率（非常）",null,null,null,null,0.97499999999999998,null,null,null,"輸出契約番号、リファレンス番号および部門コードは各25桁、15桁、6桁が上限。"]
[null,"通貨",null,"契約金額元本",null,null,null,null,"船積前対象額元本\n（FOB価額）",null,null,null,null,null,"船積後対象額",null,null,null,null,null,null,null,null,null,null,null,null,null,null,null,null,"契約形態、付保率はリスト選択。"]
[null,null,null,null,null,null,null,null,null,null,null,null,null,null,"元本",null,null,null,null,"金利",null,null,null,null,"合計"]
[null,null,null,null,null,null,null,null,null,null,null,null,null,null,null,null,null,null,null,null,null,null,null,null,{"$f":"O38+T38","v":0},null,null,null,null,null,null,"ひとつの輸出等契約で４通貨まで入力可能。合計はsum関数。"]
[null,null,null,null,null,null,null,null,null,null,null,null,null,null,null,null,null,null,null,null,null,null,null,null,{"$f":"O39+T39","v":0}]
[null,null,null,null,null,null,null,null,null,null,null,null,null,null,null,null,null,null,null,null,null,null,null,null,{"$f":"O40+T40","v":0}]
[null,null,null,null,null,null,null,null,null,null,null,null,null,null,null,null,null,null,null,null,null,null,null,null,0]
["希望オプション",null,null,null,null,null,null,null,null,null,null,null,null,null,null,null,null,null,null,null,null,null,null,null,null,null,null,null,null,null,null,"希望オプションはチェックボックスで指定。その他を選択した場合はその他欄に希望オプションを記入。"]
["プラント等増加\n費用特約",null,null,null,"付保率\n(上限：10%)",null,null,null,null,"対象\n工事",null,"開始予定日",null,null,null,null,null,null,"保険料支払方法",null,null,null,null,null,null,null,null,null,null,null,null,"上記でプラント等増加費用を選択した場合必須入力。保険料支払い方法はリスト選択。なお、分割払を選択した場合は"]
[null,null,null,null,null,null,null,null,null,null,null,"終了予定日",null,null,null,null,null,null,null,null,null,null,null,null,null,null,null,null,null,null,null,"右セルに2回目支払予定日を必ず入力する。日付(yyyy/mm/dd)入力で前後の文言は自動編集される。"]
["他の保険契約",null,null,null,null,null,null,null,"保険契約の名称",null,null,null,null,null,null,null,null,null,null,null,null,null,null,null,null,null,null,null,null,1,null,"「有」を選択すると右に項目が表示されるので必須入力。"]
["その他"]
["連絡先",null,null,null,"担当部課名："]
[null,null,null,null,"担当者名："]
[null,null,null,null,"電話番号：",null,null,null,null,null,null,null,null,"E-mail："]
[]
["了解事項："]
["１．","保険契約の訂正に係る効力発生日は、保険申込書記載事項の訂正にあっては保険契約締結日とし、変更通知書記載事項の訂正にあっては当該変更に係る保険契約変更効力発生日とする。"]
["２．","保険契約の訂正が行われた場合であっても、当該訂正の申請日以前に発生していた事由（約款第４条第14号の事由にあっては、履行遅滞の発生をいう。以下次項において同じ。）により生じた損失について、日本貿易保険はてん補する責めに任じない。ただし、当該損失が訂正事項に基づいて生じた損失に該当しない場合はこの限りでない。なお、訂正事項に基づいて生じた損失とは、以下のものとする。 "]
[null,"(1)","仕向国の訂正がなされた場合にあっては、当該訂正後の仕向国に係る事由による損失（当該訂正後の仕向国向け取引であることに起因又は関連し他の国・地域において生じた事由による損失を含む）"]
[null,"(2)","支払国の訂正がなされた場合にあっては、当該訂正後の支払国に係る事由による損失（当該訂正後の支払国からの支払であることに起因又は関連し他の国・地域において生じた事由による損失を含む）"]
[null,"(3)","輸出契約等の相手方（輸出契約等の締結の相手方及び支払人）の訂正がなされた場合にあっては、当該訂正後の輸出契約等の相手方に係る事由による損失（当該訂正後の輸出契約等の締結の相手方向け取引であること又は当該訂正後の支払人からの支払であることに起因又は関連し生じた非常事由による損失を含む）"]
[null,"(4)","ＩＬＣ決済を含む保証付案件において、保証内容の訂正がなされた場合にあっては、当該訂正後の保証内容に起因又は関連し保証履行（ＩＬＣ決済を含む。）が行われないことによる損失"]
[null,"(5)","輸出契約等の決済条件に係る不利な条件への訂正（適格銀行が発行若しくは確認するＩＬＣを含む支払保証等が付かなくなったこと又は政府開発援助契約等に該当しなくなったこと等をいう）があった場合において、約款第４条第11号から14号までのいずれかの事由により生じた損失"]
[null,"(6)","保険価額の増額訂正がなされた場合にあっては、当該訂正された部分についての損失"]
[null,"(7)","上記各号に定める以外の場合において、訂正事項に起因して生じた損失（ただし、船積期日若しくは対価の確認日、ユーザンス期間、決済予定日に係る訂正の場合を除く） "]
["３．","前項にかかわらず、約款第８条第５号に係る誤記訂正の場合は、当該訂正の申請に係る日本貿易保険の承認日前に発生していた事由により生じた一切の損失について、日本貿易保険はてん補する責めに任じない。"]
["（注）約款第８条第５号に係る誤記訂正の場合は、当該誤記に係る経緯書を添付の上、本申請を行ってください。"]

{"sheet":"別紙","index":3,"n_rows":136,"n_cols":16,"rows_kept":136,"cut":false,"hidden":false,"merged":[[13,12,13,14],[37,12,37,14],[61,12,61,14],[85,12,85,14],[109,12,109,14],[5,10,5,11],[6,10,6,11],[124,14,125,14],[126,14,127,14],[110,14,111,14],[84,10,84,11],[84,12,84,14],[62,13,63,13],[62,14,63,14],[66,11,67,11],[66,12,67,12],[66,13,67,13],[66,14,67,14],[64,13,65,13],[64,14,65,14],[64,11,65,11],[64,12,65,12],[40,14,41,14],[50,11,51,11],[128,11,129,11],[128,13,129,13],[128,14,129,14],[118,2,119,2],[118,14,119,14],[120,2,121,2],[120,3,121,3],[120,4,120,7],[120,9,121,9],[120,10,121,10],[120,14,121,14],[122,2,123,2],[122,14,123,14],[122,3,123,3],[122,4,122,7],[122,9,123,9],[126,12,127,12],[126,2,127,2],[126,3,127,3],[128,2,129,2],[120,12,121,12],[120,13,121,13],[121,4,121,7],[118,9,119,9],[111,4,111,7],[114,2,115,2],[114,14,115,14],[116,2,117,2],[116,3,117,3],[116,4,116,7],[116,9,117,9],[116,11,117,11],[116,12,117,12],[116,13,117,13],[116,14,117,14],[112,2,113,2],[112,3,113,3],[112,4,112,7],[112,9,113,9],[112,10,113,10],[112,11,113,11],[112,12,113,12],[112,13,113,13],[112,14,113,14],[88,3,89,3],[88,4,88,7],[88,9,89,9],[92,10,93,10],[92,11,93,11],[92,12,93,12],[92,13,93,13],[92,14,93,14],[94,14,95,14],[93,4,93,7],[91,4,91,7],[90,14,91,14],[85,4,85,7],[86,3,87,3],[86,4,86,7],[86,9,87,9],[86,10,87,10],[86,11,87,11],[86,12,87,12],[86,13,87,13],[87,4,87,7],[64,4,64,7],[64,9,65,9],[64,10,65,10],[66,2,67,2],[66,3,67,3],[66,4,66,7],[66,9,67,9],[66,10,67,10],[67,4,67,7],[65,4,65,7],[68,2,69,2],[70,2,71,2],[72,2,73,2],[82,12,82,14],[83,10,83,11],[83,12,83,14],[54,11,55,11],[54,12,55,12],[54,13,55,13],[55,4,55,7],[56,2,57,2],[56,3,57,3],[56,4,56,7],[56,9,57,9],[56,10,57,10],[56,11,57,11],[56,12,57,12],[68,9,69,9],[68,10,69,10],[68,11,69,11],[68,12,69,12],[68,13,69,13],[64,2,65,2],[64,3,65,3],[50,14,51,14],[109,1,129,1],[110,2,111,2],[110,3,111,3],[110,4,110,7],[110,9,111,9],[110,10,111,10],[110,11,111,11],[110,12,111,12],[110,13,111,13],[114,3,115,3],[114,4,114,7],[114,9,115,9],[114,10,115,10],[114,11,115,11],[114,12,115,12],[114,13,115,13],[116,10,117,10],[128,3,129,3],[128,4,128,7],[129,4,129,7],[128,12,129,12],[58,2,60,2],[61,1,81,1],[102,13,103,13],[104,4,104,7],[104,10,105,10],[104,11,105,11],[104,12,105,12],[104,13,105,13],[105,4,105,7],[106,2,108,2],[106,12,106,14],[107,10,107,11],[107,12,107,14],[108,4,108,6],[108,10,108,11],[108,12,108,14],[100,11,101,11],[104,14,105,14],[60,4,60,6],[61,4,61,7],[62,2,63,2],[62,3,63,3],[62,4,62,7],[62,10,63,10],[62,11,63,11],[62,12,63,12],[63,4,63,7],[94,13,95,13],[100,12,101,12],[99,4,99,7],[100,3,101,3],[100,4,100,7],[100,9,101,9],[95,4,95,7],[98,9,99,9],[98,10,99,10],[98,11,99,11],[100,14,101,14],[102,11,103,11],[102,12,103,12],[51,4,51,7],[52,2,53,2],[52,3,53,3],[52,4,52,7],[52,9,53,9],[52,10,53,10],[52,11,53,11],[52,12,53,12],[52,13,53,13],[50,2,51,2],[50,12,51,12],[50,13,51,13],[52,14,53,14],[53,4,53,7],[37,1,57,1],[37,4,37,7],[38,2,39,2],[38,3,39,3],[38,4,38,7],[38,9,39,9],[38,10,39,10],[38,11,39,11],[38,12,39,12],[39,4,39,7],[40,2,41,2],[40,3,41,3],[40,4,40,7],[40,9,41,9],[40,10,41,10],[40,11,41,11],[40,12,41,12],[41,4,41,7],[42,2,43,2],[42,3,43,3],[42,4,42,7],[42,9,43,9],[42,10,43,10],[42,11,43,11],[124,2,125,2],[124,3,125,3],[124,4,124,7],[124,9,125,9],[124,10,125,10],[124,11,125,11],[124,12,125,12],[90,10,91,10],[92,3,93,3],[92,4,92,7],[92,9,93,9],[44,11,45,11],[48,2,49,2],[48,3,49,3],[48,4,48,7],[48,9,49,9],[94,3,95,3],[94,4,94,7],[94,9,95,9],[94,12,95,12],[44,12,45,12],[45,4,45,7],[85,1,105,1],[86,14,87,14],[88,10,89,10],[88,11,89,11],[88,12,89,12],[88,13,89,13],[88,14,89,14],[89,4,89,7],[96,2,97,2],[96,3,97,3],[96,4,96,7],[96,9,97,9],[96,10,97,10],[96,11,97,11],[96,12,97,12],[96,13,97,13],[90,3,91,3],[90,4,90,7],[90,9,91,9],[98,2,99,2],[96,14,97,14],[98,14,99,14],[100,10,101,10],[98,3,99,3],[46,2,47,2],[46,3,47,3],[46,4,46,7],[46,9,47,9],[46,10,47,10],[46,11,47,11],[46,12,47,12],[47,4,47,7],[48,10,49,10],[48,11,49,11],[48,12,49,12],[49,4,49,7],[98,4,98,7],[34,2,36,2],[44,2,45,2],[44,3,45,3],[44,4,44,7],[44,9,45,9],[44,10,45,10],[43,4,43,7],[50,3,51,3],[50,4,50,7],[50,9,51,9],[50,10,51,10],[57,4,57,7],[54,2,55,2],[54,3,55,3],[54,4,54,7],[54,9,55,9],[54,10,55,10],[35,10,35,11],[36,4,36,6],[36,10,36,11],[84,4,84,6],[68,3,69,3],[68,4,68,7],[11,10,11,11],[12,4,12,6],[12,10,12,11],[13,4,13,7],[14,9,15,9],[14,10,15,10],[14,11,15,11],[18,9,19,9],[18,10,19,10],[18,11,19,11],[16,9,17,9],[16,10,17,10],[16,11,17,11],[6,1,9,1],[4,2,6,2],[7,2,9,2],[13,1,33,1],[10,2,12,2],[14,2,15,2],[16,2,17,2],[18,2,19,2],[22,2,23,2],[24,2,25,2],[26,2,27,2],[28,2,29,2],[30,2,31,2],[32,2,33,2],[130,1,135,7],[4,4,5,4],[82,2,84,2],[86,2,87,2],[88,2,89,2],[90,2,91,2],[92,2,93,2],[94,2,95,2],[100,2,101,2],[102,2,103,2],[104,2,105,2],[118,3,119,3],[118,4,118,7],[113,4,113,7],[117,4,117,7],[115,4,115,7],[14,4,14,7],[15,4,15,7],[16,3,17,3],[16,4,16,7],[17,4,17,7],[18,3,19,3],[18,4,18,7],[103,4,103,7],[142,4,142,13],[6,4,6,6],[4,9,4,11],[8,3,9,3],[7,9,7,11],[7,3,7,8],[8,4,8,7],[9,4,9,7],[101,4,101,7],[102,4,102,7],[102,10,103,10],[109,4,109,7],[94,11,95,11],[14,3,15,3],[94,10,95,10],[102,3,103,3],[102,9,103,9],[104,3,105,3],[104,9,105,9],[98,12,99,12],[97,4,97,7],[100,13,101,13],[120,11,121,11],[98,13,99,13],[126,13,127,13],[118,13,119,13],[119,4,119,7],[122,12,123,12],[122,13,123,13],[126,4,126,7],[118,10,119,10],[118,11,119,11],[118,12,119,12],[127,4,127,7],[125,4,125,7],[124,13,125,13],[123,4,123,7],[122,10,123,10],[122,11,123,11],[126,9,127,9],[126,10,127,10],[126,11,127,11],[4,12,4,14],[5,12,5,14],[6,12,6,14],[7,12,7,14],[8,12,9,12],[10,12,10,14],[11,12,11,14],[12,12,12,14],[8,13,8,14],[14,12,15,12],[14,13,15,13],[14,14,15,14],[42,12,43,12],[42,13,43,13],[42,14,43,14],[56,13,57,13],[56,14,57,14],[54,14,55,14],[34,12,34,14],[16,12,17,12],[16,13,17,13],[16,14,17,14],[44,13,45,13],[44,14,45,14],[46,13,47,13],[46,14,47,14],[48,13,49,13],[48,14,49,14],[35,12,35,14],[36,12,36,14],[38,13,39,13],[38,14,39,14],[40,13,41,13],[134,13,134,14],[135,13,135,14],[132,13,132,14],[133,13,133,14],[5,15,9,15],[8,9,9,9],[8,10,9,10],[8,11,9,11],[102,14,103,14],[90,11,91,11],[90,12,91,12],[90,13,91,13],[18,12,19,12],[18,13,19,13],[18,14,19,14],[20,14,21,14],[58,12,58,14],[59,10,59,11],[59,12,59,14],[60,10,60,11],[60,12,60,14],[62,9,63,9],[128,9,129,9],[128,10,129,10],[130,8,131,8],[130,12,131,12],[130,13,131,14],[130,9,130,11],[19,4,19,7],[20,2,21,2],[20,3,21,3],[20,4,20,7],[20,9,21,9],[20,10,21,10],[20,11,21,11],[20,12,21,12],[20,13,21,13],[21,4,21,7],[22,3,23,3],[22,4,22,7],[22,9,23,9],[22,10,23,10],[22,11,23,11],[22,12,23,12],[22,13,23,13],[22,14,23,14],[23,4,23,7],[24,3,25,3],[24,4,24,7],[24,9,25,9],[24,10,25,10],[24,11,25,11],[24,12,25,12],[24,13,25,13],[24,14,25,14],[25,4,25,7],[26,3,27,3],[26,4,26,7],[26,9,27,9],[26,10,27,10],[26,11,27,11],[26,12,27,12],[26,13,27,13],[26,14,27,14],[27,4,27,7],[28,3,29,3],[28,4,28,7],[28,9,29,9],[28,10,29,10],[28,11,29,11],[28,12,29,12],[28,13,29,13],[28,14,29,14],[29,4,29,7],[30,3,31,3],[30,4,30,7],[30,9,31,9],[30,10,31,10],[30,11,31,11],[30,12,31,12],[30,13,31,13],[30,14,31,14],[31,4,31,7],[32,3,33,3],[32,4,32,7],[32,9,33,9],[32,10,33,10],[32,11,33,11],[32,12,33,12],[32,13,33,13],[32,14,33,14],[33,4,33,7],[68,14,69,14],[69,4,69,7],[70,3,71,3],[70,4,70,7],[70,9,71,9],[70,10,71,10],[70,11,71,11],[70,12,71,12],[70,13,71,13],[70,14,71,14],[71,4,71,7],[72,3,73,3],[72,4,72,7],[72,9,73,9],[72,10,73,10],[72,11,73,11],[72,12,73,12],[72,13,73,13],[72,14,73,14],[73,4,73,7],[74,2,75,2],[74,3,75,3],[74,4,74,7],[74,9,75,9],[74,10,75,10],[74,11,75,11],[74,12,75,12],[74,13,75,13],[74,14,75,14],[75,4,75,7],[76,2,77,2],[76,3,77,3],[76,4,76,7],[76,9,77,9],[76,10,77,10],[76,11,77,11],[76,12,77,12],[76,13,77,13],[76,14,77,14],[77,4,77,7],[78,2,79,2],[78,3,79,3],[78,4,78,7],[78,9,79,9],[78,10,79,10],[78,11,79,11],[78,12,79,12],[78,13,79,13],[78,14,79,14],[79,4,79,7],[80,2,81,2],[80,3,81,3],[80,4,80,7],[80,9,81,9],[80,10,81,10],[80,11,81,11],[80,12,81,12],[80,13,81,13],[80,14,81,14],[81,4,81,7]]}
[]
[]
[null,"別紙"]
[]
[null,"枝番","船積変更等","分類","てん補種別\n船前/船後","完成納期","個枠確認番号","仕向国","(ｺｰﾄﾞ)","船積時期(FS/MS/LS)",null,null,"契約金額元本",null,null,"変更が生じた日"]
[null,"元枝番",null,"受渡条件",null,"通貨","為替換算率","支払国","(ｺｰﾄﾞ)","(ｺｰﾄﾞ)","支払人",null,"船積前対象額元本（FOB価額）",null,null,"備考"]
[null,"変更事由",null,"ＨＳｺｰﾄﾞ","貨物の名称等",null,null,"保証国","(ｺｰﾄﾞ)","(ｺｰﾄﾞ)","保証人",null,"船積後対象額元本"]
[null,null,"決済変更等","決済情報[(a)決済ｺｰﾄﾞ、(b)支払保証ｺｰﾄﾞ]",null,null,null,null,null,"保険対象額",null,null,"決済情報"]
[null,null,null,"割合","決済方法(a)",null,null,null,"(a)","元 本","金 利","計","決済期日","ユーザンス"]
[null,null,null,null,"支払保証(b)",null,null,null,"(b)",null,null,null,null,"期間","単"]
[null,null,null,null,null,null,null,{"$f":"IFERROR(VLOOKUP(I11,国x,2,0),\"\")","v":""},null,null,{"$f":"IF(AND(J11<>\"\",L11<>\"\"),J11+(L11-J11)/2,\"-\")","v":"-"}]
[null,null,null,null,null,null,null,{"$f":"IFERROR(VLOOKUP(I12,国x,2,0),\"\")","v":""}]
[null,null,null,null,null,null,null,{"$f":"IFERROR(VLOOKUP(I13,国x,2,0),\"\")","v":""}]
[null,{"$f":"IFERROR(VLOOKUP(B13,変更事由x,2,0),\"\")","v":""},null,{"$f":"IFERROR(IF(OR(ISBLANK(J14),ISBLANK(M11)),\"\",J14/M11),\"\")","v":""},"頭金",null,null,null,null,null,null,{"$f":"SUM(J14,K14)","v":0}]
[null,null,null,{"$f":"IFERROR(IF(OR(ISBLANK(J15),ISBLANK(M11)),\"\",J15/M11),\"\")","v":""},{"$f":"IFERROR(VLOOKUP(I15,決済方法x,2,0),\"\")","v":""},null,null,null,null,null,null,{"$f":"SUM(J15,K15)","v":0}]
[null,null,null,{"$f":"IFERROR(J16/#REF!,\"\")","v":""},{"$f":"IFERROR(VLOOKUP(I16,支払保証x,2,0),\"\")","v":""}]
[null,null,null,{"$f":"IFERROR(IF(OR(ISBLANK(J17),ISBLANK(M11)),\"\",J17/M11),\"\")","v":""},{"$f":"IFERROR(VLOOKUP(I17,決済方法x,2,0),\"\")","v":""},null,null,null,null,null,null,0]
[null,null,null,{"$f":"IFERROR(J18/#REF!,\"\")","v":""},{"$f":"IFERROR(VLOOKUP(I18,支払保証x,2,0),\"\")","v":""}]
[null,null,null,{"$f":"IFERROR(IF(OR(ISBLANK(J19),ISBLANK(M11)),\"\",J19/M11),\"\")","v":""},{"$f":"IFERROR(VLOOKUP(I19,決済方法x,2,0),\"\")","v":""},null,null,null,null,null,null,0]
[null,null,null,{"$f":"IFERROR(J20/#REF!,\"\")","v":""},{"$f":"IFERROR(VLOOKUP(I20,支払保証x,2,0),\"\")","v":""}]
[null,null,null,{"$f":"IFERROR(IF(OR(ISBLANK(J21),ISBLANK(M11)),\"\",J21/M11),\"\")","v":""},{"$f":"IFERROR(VLOOKUP(I21,決済方法x,2,0),\"\")","v":""},null,null,null,null,null,null,0]
[null,null,null,{"$f":"IFERROR(J22/#REF!,\"\")","v":""},{"$f":"IFERROR(VLOOKUP(I22,支払保証x,2,0),\"\")","v":""}]
[null,null,null,{"$f":"IFERROR(IF(OR(ISBLANK(J23),ISBLANK(M11)),\"\",J23/M11),\"\")","v":""},{"$f":"IFERROR(VLOOKUP(I23,決済方法x,2,0),\"\")","v":""},null,null,null,null,null,null,0]
[null,null,null,{"$f":"IFERROR(J24/#REF!,\"\")","v":""},{"$f":"IFERROR(VLOOKUP(I24,支払保証x,2,0),\"\")","v":""}]
[null,null,null,{"$f":"IFERROR(IF(OR(ISBLANK(J25),ISBLANK(M11)),\"\",J25/M11),\"\")","v":""},{"$f":"IFERROR(VLOOKUP(I25,決済方法x,2,0),\"\")","v":""},null,null,null,null,null,null,0]
[null,null,null,{"$f":"IFERROR(J26/#REF!,\"\")","v":""},{"$f":"IFERROR(VLOOKUP(I26,支払保証x,2,0),\"\")","v":""}]
[null,null,null,{"$f":"IFERROR(IF(OR(ISBLANK(J27),ISBLANK(M11)),\"\",J27/M11),\"\")","v":""},{"$f":"IFERROR(VLOOKUP(I27,決済方法x,2,0),\"\")","v":""},null,null,null,null,null,null,0]
[null,null,null,{"$f":"IFERROR(J28/#REF!,\"\")","v":""},{"$f":"IFERROR(VLOOKUP(I28,支払保証x,2,0),\"\")","v":""}]
[null,null,null,{"$f":"IFERROR(IF(OR(ISBLANK(J29),ISBLANK(M11)),\"\",J29/M11),\"\")","v":""},{"$f":"IFERROR(VLOOKUP(I29,決済方法x,2,0),\"\")","v":""},null,null,null,null,null,null,0]
[null,null,null,{"$f":"IFERROR(J30/#REF!,\"\")","v":""},{"$f":"IFERROR(VLOOKUP(I30,支払保証x,2,0),\"\")","v":""}]
[null,null,null,{"$f":"IFERROR(IF(OR(ISBLANK(J31),ISBLANK(M11)),\"\",J31/M11),\"\")","v":""},{"$f":"IFERROR(VLOOKUP(I31,決済方法x,2,0),\"\")","v":""},null,null,null,null,null,null,{"$f":"SUM(J31,K31)","v":0}]
[null,null,null,{"$f":"IFERROR(J32/#REF!,\"\")","v":""},{"$f":"IFERROR(VLOOKUP(I32,支払保証x,2,0),\"\")","v":""}]
[null,null,null,{"$f":"IFERROR(IF(OR(ISBLANK(J33),ISBLANK(M11)),\"\",J33/M11),\"\")","v":""},{"$f":"IFERROR(VLOOKUP(I33,決済方法x,2,0),\"\")","v":""},null,null,null,null,null,null,{"$f":"SUM(J33,K33)","v":0}]
[null,null,null,{"$f":"IFERROR(J34/#REF!,\"\")","v":""},{"$f":"IFERROR(VLOOKUP(I34,支払保証x,2,0),\"\")","v":""}]
[null,null,null,null,null,null,null,{"$f":"IFERROR(VLOOKUP(I35,国x,2,0),\"\")","v":""},null,null,{"$f":"IF(AND(J35<>\"\",L35<>\"\"),J35+(L35-J35)/2,\"-\")","v":"-"}]
[null,null,null,null,null,null,null,{"$f":"IFERROR(VLOOKUP(I36,国x,2,0),\"\")","v":""}]
[null,null,null,null,null,null,null,{"$f":"IFERROR(VLOOKUP(I37,国x,2,0),\"\")","v":""}]
[null,{"$f":"IFERROR(VLOOKUP(B37,変更事由x,2,0),\"\")","v":""},null,{"$f":"IFERROR(IF(OR(ISBLANK(J38),ISBLANK(M35)),\"\",J38/M35),\"\")","v":""},"頭金",null,null,null,null,null,null,{"$f":"SUM(J38,K38)","v":0}]
[null,null,null,{"$f":"IFERROR(IF(OR(ISBLANK(J39),ISBLANK(M35)),\"\",J39/M35),\"\")","v":""},{"$f":"IFERROR(VLOOKUP(I39,決済方法x,2,0),\"\")","v":""},null,null,null,null,null,null,{"$f":"SUM(J39,K39)","v":0}]
[null,null,null,{"$f":"IFERROR(J40/#REF!,\"\")","v":""},{"$f":"IFERROR(VLOOKUP(I40,支払保証x,2,0),\"\")","v":""}]
[null,null,null,{"$f":"IFERROR(IF(OR(ISBLANK(J41),ISBLANK(M35)),\"\",J41/M35),\"\")","v":""},{"$f":"IFERROR(VLOOKUP(I41,決済方法x,2,0),\"\")","v":""},null,null,null,null,null,null,0]
[null,null,null,{"$f":"IFERROR(J42/#REF!,\"\")","v":""},{"$f":"IFERROR(VLOOKUP(I42,支払保証x,2,0),\"\")","v":""}]
[null,null,null,{"$f":"IFERROR(IF(OR(ISBLANK(J43),ISBLANK(M35)),\"\",J43/M35),\"\")","v":""},{"$f":"IFERROR(VLOOKUP(I43,決済方法x,2,0),\"\")","v":""},null,null,null,null,null,null,0]
[null,null,null,{"$f":"IFERROR(J44/#REF!,\"\")","v":""},{"$f":"IFERROR(VLOOKUP(I44,支払保証x,2,0),\"\")","v":""}]
[null,null,null,{"$f":"IFERROR(IF(OR(ISBLANK(J45),ISBLANK(M35)),\"\",J45/M35),\"\")","v":""},{"$f":"IFERROR(VLOOKUP(I45,決済方法x,2,0),\"\")","v":""},null,null,null,null,null,null,0]
[null,null,null,{"$f":"IFERROR(J46/#REF!,\"\")","v":""},{"$f":"IFERROR(VLOOKUP(I46,支払保証x,2,0),\"\")","v":""}]
[null,null,null,{"$f":"IFERROR(IF(OR(ISBLANK(J47),ISBLANK(M35)),\"\",J47/M35),\"\")","v":""},{"$f":"IFERROR(VLOOKUP(I47,決済方法x,2,0),\"\")","v":""},null,null,null,null,null,null,0]
[null,null,null,{"$f":"IFERROR(J48/#REF!,\"\")","v":""},{"$f":"IFERROR(VLOOKUP(I48,支払保証x,2,0),\"\")","v":""}]
[null,null,null,{"$f":"IFERROR(IF(OR(ISBLANK(J49),ISBLANK(M35)),\"\",J49/M35),\"\")","v":""},{"$f":"IFERROR(VLOOKUP(I49,決済方法x,2,0),\"\")","v":""},null,null,null,null,null,null,0]
[null,null,null,{"$f":"IFERROR(J50/#REF!,\"\")","v":""},{"$f":"IFERROR(VLOOKUP(I50,支払保証x,2,0),\"\")","v":""}]
[null,null,null,{"$f":"IFERROR(IF(OR(ISBLANK(J51),ISBLANK(M35)),\"\",J51/M35),\"\")","v":""},{"$f":"IFERROR(VLOOKUP(I51,決済方法x,2,0),\"\")","v":""},null,null,null,null,null,null,0]
[null,null,null,{"$f":"IFERROR(J52/#REF!,\"\")","v":""},{"$f":"IFERROR(VLOOKUP(I52,支払保証x,2,0),\"\")","v":""}]
[null,null,null,{"$f":"IFERROR(IF(OR(ISBLANK(J53),ISBLANK(M35)),\"\",J53/M35),\"\")","v":""},{"$f":"IFERROR(VLOOKUP(I53,決済方法x,2,0),\"\")","v":""},null,null,null,null,null,null,0]
[null,null,null,{"$f":"IFERROR(J54/#REF!,\"\")","v":""},{"$f":"IFERROR(VLOOKUP(I54,支払保証x,2,0),\"\")","v":""}]
[null,null,null,{"$f":"IFERROR(IF(OR(ISBLANK(J55),ISBLANK(M35)),\"\",J55/M35),\"\")","v":""},{"$f":"IFERROR(VLOOKUP(I55,決済方法x,2,0),\"\")","v":""},null,null,null,null,null,null,{"$f":"SUM(J55,K55)","v":0}]
[null,null,null,{"$f":"IFERROR(J56/#REF!,\"\")","v":""},{"$f":"IFERROR(VLOOKUP(I56,支払保証x,2,0),\"\")","v":""}]
[null,null,null,{"$f":"IFERROR(IF(OR(ISBLANK(J57),ISBLANK(M35)),\"\",J57/M35),\"\")","v":""},{"$f":"IFERROR(VLOOKUP(I57,決済方法x,2,0),\"\")","v":""},null,null,null,null,null,null,{"$f":"SUM(J57,K57)","v":0}]
[null,null,null,{"$f":"IFERROR(J58/#REF!,\"\")","v":""},{"$f":"IFERROR(VLOOKUP(I58,支払保証x,2,0),\"\")","v":""}]
[null,null,null,null,null,null,null,{"$f":"IFERROR(VLOOKUP(I59,国x,2,0),\"\")","v":""},null,null,{"$f":"IF(AND(J59<>\"\",L59<>\"\"),J59+(L59-J59)/2,\"-\")","v":"-"}]
[null,null,null,null,null,null,null,{"$f":"IFERROR(VLOOKUP(I60,国x,2,0),\"\")","v":""}]
[null,null,null,null,null,null,null,{"$f":"IFERROR(VLOOKUP(I61,国x,2,0),\"\")","v":""}]
[null,{"$f":"IFERROR(VLOOKUP(B61,変更事由x,2,0),\"\")","v":""},null,{"$f":"IFERROR(IF(OR(ISBLANK(J62),ISBLANK(M59)),\"\",J62/M59),\"\")","v":""},"頭金",null,null,null,null,null,null,{"$f":"SUM(J62,K62)","v":0}]
[null,null,null,{"$f":"IFERROR(IF(OR(ISBLANK(J63),ISBLANK(M59)),\"\",J63/M59),\"\")","v":""},{"$f":"IFERROR(VLOOKUP(I63,決済方法x,2,0),\"\")","v":""},null,null,null,null,null,null,{"$f":"SUM(J63,K63)","v":0}]
[null,null,null,{"$f":"IFERROR(J64/#REF!,\"\")","v":""},{"$f":"IFERROR(VLOOKUP(I64,支払保証x,2,0),\"\")","v":""}]
[null,null,null,{"$f":"IFERROR(IF(OR(ISBLANK(J65),ISBLANK(M59)),\"\",J65/M59),\"\")","v":""},{"$f":"IFERROR(VLOOKUP(I65,決済方法x,2,0),\"\")","v":""},null,null,null,null,null,null,0]
[null,null,null,{"$f":"IFERROR(J66/#REF!,\"\")","v":""},{"$f":"IFERROR(VLOOKUP(I66,支払保証x,2,0),\"\")","v":""}]
[null,null,null,{"$f":"IFERROR(IF(OR(ISBLANK(J67),ISBLANK(M59)),\"\",J67/M59),\"\")","v":""},{"$f":"IFERROR(VLOOKUP(I67,決済方法x,2,0),\"\")","v":""},null,null,null,null,null,null,0]
[null,null,null,{"$f":"IFERROR(J68/#REF!,\"\")","v":""},{"$f":"IFERROR(VLOOKUP(I68,支払保証x,2,0),\"\")","v":""}]
[null,null,null,{"$f":"IFERROR(IF(OR(ISBLANK(J69),ISBLANK(M59)),\"\",J69/M59),\"\")","v":""},{"$f":"IFERROR(VLOOKUP(I69,決済方法x,2,0),\"\")","v":""},null,null,null,null,null,null,0]
[null,null,null,{"$f":"IFERROR(J70/#REF!,\"\")","v":""},{"$f":"IFERROR(VLOOKUP(I70,支払保証x,2,0),\"\")","v":""}]
[null,null,null,{"$f":"IFERROR(IF(OR(ISBLANK(J71),ISBLANK(M59)),\"\",J71/M59),\"\")","v":""},{"$f":"IFERROR(VLOOKUP(I71,決済方法x,2,0),\"\")","v":""},null,null,null,null,null,null,0]
[null,null,null,{"$f":"IFERROR(J72/#REF!,\"\")","v":""},{"$f":"IFERROR(VLOOKUP(I72,支払保証x,2,0),\"\")","v":""}]
[null,null,null,{"$f":"IFERROR(IF(OR(ISBLANK(J73),ISBLANK(M59)),\"\",J73/M59),\"\")","v":""},{"$f":"IFERROR(VLOOKUP(I73,決済方法x,2,0),\"\")","v":""},null,null,null,null,null,null,0]
[null,null,null,{"$f":"IFERROR(J74/#REF!,\"\")","v":""},{"$f":"IFERROR(VLOOKUP(I74,支払保証x,2,0),\"\")","v":""}]
[null,null,null,{"$f":"IFERROR(IF(OR(ISBLANK(J75),ISBLANK(M59)),\"\",J75/M59),\"\")","v":""},{"$f":"IFERROR(VLOOKUP(I75,決済方法x,2,0),\"\")","v":""},null,null,null,null,null,null,0]
[null,null,null,{"$f":"IFERROR(J76/#REF!,\"\")","v":""},{"$f":"IFERROR(VLOOKUP(I76,支払保証x,2,0),\"\")","v":""}]
[null,null,null,{"$f":"IFERROR(IF(OR(ISBLANK(J77),ISBLANK(M59)),\"\",J77/M59),\"\")","v":""},{"$f":"IFERROR(VLOOKUP(I77,決済方法x,2,0),\"\")","v":""},null,null,null,null,null,null,0]
[null,null,null,{"$f":"IFERROR(J78/#REF!,\"\")","v":""},{"$f":"IFERROR(VLOOKUP(I78,支払保証x,2,0),\"\")","v":""}]
[null,null,null,{"$f":"IFERROR(IF(OR(ISBLANK(J79),ISBLANK(M59)),\"\",J79/M59),\"\")","v":""},{"$f":"IFERROR(VLOOKUP(I79,決済方法x,2,0),\"\")","v":""},null,null,null,null,null,null,{"$f":"SUM(J79,K79)","v":0}]
[null,null,null,{"$f":"IFERROR(J80/#REF!,\"\")","v":""},{"$f":"IFERROR(VLOOKUP(I80,支払保証x,2,0),\"\")","v":""}]
[null,null,null,{"$f":"IFERROR(IF(OR(ISBLANK(J81),ISBLANK(M59)),\"\",J81/M59),\"\")","v":""},{"$f":"IFERROR(VLOOKUP(I81,決済方法x,2,0),\"\")","v":""},null,null,null,null,null,null,{"$f":"SUM(J81,K81)","v":0}]
[null,null,null,{"$f":"IFERROR(J82/#REF!,\"\")","v":""},{"$f":"IFERROR(VLOOKUP(I82,支払保証x,2,0),\"\")","v":""}]
[null,null,null,null,null,null,null,{"$f":"IFERROR(VLOOKUP(I83,国x,2,0),\"\")","v":""},null,null,{"$f":"IF(AND(J83<>\"\",L83<>\"\"),J83+(L83-J83)/2,\"-\")","v":"-"}]
[null,null,null,null,null,null,null,{"$f":"IFERROR(VLOOKUP(I84,国x,2,0),\"\")","v":""}]
[null,null,null,null,null,null,null,{"$f":"IFERROR(VLOOKUP(I85,国x,2,0),\"\")","v":""}]
[null,{"$f":"IFERROR(VLOOKUP(B85,変更事由x,2,0),\"\")","v":""},null,{"$f":"IFERROR(IF(OR(ISBLANK(J86),ISBLANK(M83)),\"\",J86/M83),\"\")","v":""},"頭金",null,null,null,null,null,null,{"$f":"SUM(J86,K86)","v":0}]
[null,null,null,{"$f":"IFERROR(IF(OR(ISBLANK(J87),ISBLANK(M83)),\"\",J87/M83),\"\")","v":""},{"$f":"IFERROR(VLOOKUP(I87,決済方法x,2,0),\"\")","v":""},null,null,null,null,null,null,{"$f":"SUM(J87,K87)","v":0}]
[null,null,null,{"$f":"IFERROR(J88/#REF!,\"\")","v":""},{"$f":"IFERROR(VLOOKUP(I88,支払保証x,2,0),\"\")","v":""}]
[null,null,null,{"$f":"IFERROR(IF(OR(ISBLANK(J89),ISBLANK(M83)),\"\",J89/M83),\"\")","v":""},{"$f":"IFERROR(VLOOKUP(I89,決済方法x,2,0),\"\")","v":""},null,null,null,null,null,null,0]
[null,null,null,{"$f":"IFERROR(J90/#REF!,\"\")","v":""},{"$f":"IFERROR(VLOOKUP(I90,支払保証x,2,0),\"\")","v":""}]
[null,null,null,{"$f":"IFERROR(IF(OR(ISBLANK(J91),ISBLANK(M83)),\"\",J91/M83),\"\")","v":""},{"$f":"IFERROR(VLOOKUP(I91,決済方法x,2,0),\"\")","v":""},null,null,null,null,null,null,0]
[null,null,null,{"$f":"IFERROR(J92/#REF!,\"\")","v":""},{"$f":"IFERROR(VLOOKUP(I92,支払保証x,2,0),\"\")","v":""}]
[null,null,null,{"$f":"IFERROR(IF(OR(ISBLANK(J93),ISBLANK(M83)),\"\",J93/M83),\"\")","v":""},{"$f":"IFERROR(VLOOKUP(I93,決済方法x,2,0),\"\")","v":""},null,null,null,null,null,null,0]
[null,null,null,{"$f":"IFERROR(J94/#REF!,\"\")","v":""},{"$f":"IFERROR(VLOOKUP(I94,支払保証x,2,0),\"\")","v":""}]
[null,null,null,{"$f":"IFERROR(IF(OR(ISBLANK(J95),ISBLANK(M83)),\"\",J95/M83),\"\")","v":""},{"$f":"IFERROR(VLOOKUP(I95,決済方法x,2,0),\"\")","v":""},null,null,null,null,null,null,0]
[null,null,null,{"$f":"IFERROR(J96/#REF!,\"\")","v":""},{"$f":"IFERROR(VLOOKUP(I96,支払保証x,2,0),\"\")","v":""}]
[null,null,null,{"$f":"IFERROR(IF(OR(ISBLANK(J97),ISBLANK(M83)),\"\",J97/M83),\"\")","v":""},{"$f":"IFERROR(VLOOKUP(I97,決済方法x,2,0),\"\")","v":""},null,null,null,null,null,null,0]
[null,null,null,{"$f":"IFERROR(J98/#REF!,\"\")","v":""},{"$f":"IFERROR(VLOOKUP(I98,支払保証x,2,0),\"\")","v":""}]
[null,null,null,{"$f":"IFERROR(IF(OR(ISBLANK(J99),ISBLANK(M83)),\"\",J99/M83),\"\")","v":""},{"$f":"IFERROR(VLOOKUP(I99,決済方法x,2,0),\"\")","v":""},null,null,null,null,null,null,0]
[null,null,null,{"$f":"IFERROR(J100/#REF!,\"\")","v":""},{"$f":"IFERROR(VLOOKUP(I100,支払保証x,2,0),\"\")","v":""}]
[null,null,null,{"$f":"IFERROR(IF(OR(ISBLANK(J101),ISBLANK(M83)),\"\",J101/M83),\"\")","v":""},{"$f":"IFERROR(VLOOKUP(I101,決済方法x,2,0),\"\")","v":""},null,null,null,null,null,null,0]
[null,null,null,{"$f":"IFERROR(J102/#REF!,\"\")","v":""},{"$f":"IFERROR(VLOOKUP(I102,支払保証x,2,0),\"\")","v":""}]
[null,null,null,{"$f":"IFERROR(IF(OR(ISBLANK(J103),ISBLANK(M83)),\"\",J103/M83),\"\")","v":""},{"$f":"IFERROR(VLOOKUP(I103,決済方法x,2,0),\"\")","v":""},null,null,null,null,null,null,{"$f":"SUM(J103,K103)","v":0}]
[null,null,null,{"$f":"IFERROR(J104/#REF!,\"\")","v":""},{"$f":"IFERROR(VLOOKUP(I104,支払保証x,2,0),\"\")","v":""}]
[null,null,null,{"$f":"IFERROR(IF(OR(ISBLANK(J105),ISBLANK(M83)),\"\",J105/M83),\"\")","v":""},{"$f":"IFERROR(VLOOKUP(I105,決済方法x,2,0),\"\")","v":""},null,null,null,null,null,null,{"$f":"SUM(J105,K105)","v":0}]
[null,null,null,{"$f":"IFERROR(J106/#REF!,\"\")","v":""},{"$f":"IFERROR(VLOOKUP(I106,支払保証x,2,0),\"\")","v":""}]
[null,null,null,null,null,null,null,{"$f":"IFERROR(VLOOKUP(I107,国x,2,0),\"\")","v":""},null,null,{"$f":"IF(AND(J107<>\"\",L107<>\"\"),J107+(L107-J107)/2,\"-\")","v":"-"}]
[null,null,null,null,null,null,null,{"$f":"IFERROR(VLOOKUP(I108,国x,2,0),\"\")","v":""}]
[null,null,null,null,null,null,null,{"$f":"IFERROR(VLOOKUP(I109,国x,2,0),\"\")","v":""}]
[null,{"$f":"IFERROR(VLOOKUP(B109,変更事由x,2,0),\"\")","v":""},null,{"$f":"IFERROR(IF(OR(ISBLANK(J110),ISBLANK(M107)),\"\",J110/M107),\"\")","v":""},"頭金",null,null,null,null,null,null,{"$f":"SUM(J110,K110)","v":0}]
[null,null,null,{"$f":"IFERROR(IF(OR(ISBLANK(J111),ISBLANK(M107)),\"\",J111/M107),\"\")","v":""},{"$f":"IFERROR(VLOOKUP(I111,決済方法x,2,0),\"\")","v":""},null,null,null,null,null,null,{"$f":"SUM(J111,K111)","v":0}]
[null,null,null,{"$f":"IFERROR(J112/#REF!,\"\")","v":""},{"$f":"IFERROR(VLOOKUP(I112,支払保証x,2,0),\"\")","v":""}]
[null,null,null,{"$f":"IFERROR(IF(OR(ISBLANK(J113),ISBLANK(M107)),\"\",J113/M107),\"\")","v":""},{"$f":"IFERROR(VLOOKUP(I113,決済方法x,2,0),\"\")","v":""},null,null,null,null,null,null,0]
[null,null,null,{"$f":"IFERROR(J114/#REF!,\"\")","v":""},{"$f":"IFERROR(VLOOKUP(I114,支払保証x,2,0),\"\")","v":""}]
[null,null,null,{"$f":"IFERROR(IF(OR(ISBLANK(J115),ISBLANK(M107)),\"\",J115/M107),\"\")","v":""},{"$f":"IFERROR(VLOOKUP(I115,決済方法x,2,0),\"\")","v":""},null,null,null,null,null,null,0]
[null,null,null,{"$f":"IFERROR(J116/#REF!,\"\")","v":""},{"$f":"IFERROR(VLOOKUP(I116,支払保証x,2,0),\"\")","v":""}]
[null,null,null,{"$f":"IFERROR(IF(OR(ISBLANK(J117),ISBLANK(M107)),\"\",J117/M107),\"\")","v":""},{"$f":"IFERROR(VLOOKUP(I117,決済方法x,2,0),\"\")","v":""},null,null,null,null,null,null,0]
[null,null,null,{"$f":"IFERROR(J118/#REF!,\"\")","v":""},{"$f":"IFERROR(VLOOKUP(I118,支払保証x,2,0),\"\")","v":""}]
[null,null,null,{"$f":"IFERROR(IF(OR(ISBLANK(J119),ISBLANK(M107)),\"\",J119/M107),\"\")","v":""},{"$f":"IFERROR(VLOOKUP(I119,決済方法x,2,0),\"\")","v":""},null,null,null,null,null,null,0]
[null,null,null,{"$f":"IFERROR(J120/#REF!,\"\")","v":""},{"$f":"IFERROR(VLOOKUP(I120,支払保証x,2,0),\"\")","v":""}]
[null,null,null,{"$f":"IFERROR(IF(OR(ISBLANK(J121),ISBLANK(M107)),\"\",J121/M107),\"\")","v":""},{"$f":"IFERROR(VLOOKUP(I121,決済方法x,2,0),\"\")","v":""},null,null,null,null,null,null,0]
[null,null,null,{"$f":"IFERROR(J122/#REF!,\"\")","v":""},{"$f":"IFERROR(VLOOKUP(I122,支払保証x,2,0),\"\")","v":""}]
[null,null,null,{"$f":"IFERROR(IF(OR(ISBLANK(J123),ISBLANK(M107)),\"\",J123/M107),\"\")","v":""},{"$f":"IFERROR(VLOOKUP(I123,決済方法x,2,0),\"\")","v":""},null,null,null,null,null,null,0]
[null,null,null,{"$f":"IFERROR(J124/#REF!,\"\")","v":""},{"$f":"IFERROR(VLOOKUP(I124,支払保証x,2,0),\"\")","v":""}]
[null,null,null,{"$f":"IFERROR(IF(OR(ISBLANK(J125),ISBLANK(M107)),\"\",J125/M107),\"\")","v":""},{"$f":"IFERROR(VLOOKUP(I125,決済方法x,2,0),\"\")","v":""},null,null,null,null,null,null,0]
[null,null,null,{"$f":"IFERROR(J126/#REF!,\"\")","v":""},{"$f":"IFERROR(VLOOKUP(I126,支払保証x,2,0),\"\")","v":""}]
[null,null,null,{"$f":"IFERROR(IF(OR(ISBLANK(J127),ISBLANK(M107)),\"\",J127/M107),\"\")","v":""},{"$f":"IFERROR(VLOOKUP(I127,決済方法x,2,0),\"\")","v":""},null,null,null,null,null,null,{"$f":"SUM(J127,K127)","v":0}]
[null,null,null,{"$f":"IFERROR(J128/#REF!,\"\")","v":""},{"$f":"IFERROR(VLOOKUP(I128,支払保証x,2,0),\"\")","v":""}]
[null,null,null,{"$f":"IFERROR(IF(OR(ISBLANK(J129),ISBLANK(M107)),\"\",J129/M107),\"\")","v":""},{"$f":"IFERROR(VLOOKUP(I129,決済方法x,2,0),\"\")","v":""},null,null,null,null,null,null,{"$f":"SUM(J129,K129)","v":0}]
[null,null,null,{"$f":"IFERROR(J130/#REF!,\"\")","v":""},{"$f":"IFERROR(VLOOKUP(I130,支払保証x,2,0),\"\")","v":""}]
[null,"通貨別合計",null,null,null,null,null,null,"通貨","船積後対象額",null,null,"契約金額元本","船積前\n対象額元本"]
[null,null,null,null,null,null,null,null,null,"元本","金利","合計"]
[null,null,null,null,null,null,null,null,null,null,null,{"$f":"SUM(J133,K133)","v":0}]
[null,null,null,null,null,null,null,null,null,null,null,{"$f":"SUM(J134,K134)","v":0}]
[null,null,null,null,null,null,null,null,null,null,null,{"$f":"SUM(J135,K135)","v":0}]
[null,null,null,null,null,null,null,null,null,null,null,{"$f":"SUM(J136,K136)","v":0}]

{"sheet":"複数支払人等","index":4,"n_rows":5,"n_cols":11,"rows_kept":5,"cut":false,"hidden":false,"merged":[[5,8,6,8],[5,1,6,1],[5,2,6,2],[5,3,6,3],[5,5,6,5],[5,6,6,6],[5,7,6,7],[3,8,4,8],[3,3,4,3],[3,1,4,1],[3,2,4,2],[3,5,4,5],[3,6,4,6],[3,7,4,7]]}
[]
[]
[null,"国コード","バイヤーコード","住所\n枝","バイヤー名\n住所","格付","相手方","支払人","保証人"]
[null,null,null,null,null,null,null,null,null,null,"●３社以上の場合は空白行をコピーしたうえで入力してください。"]
[null,null,null,null,null,null,null,null,null,null,"●変更通知（承認申請）書や訂正承認申請の場合にも必ず添付してください。"]

{"sheet":"複数被保険者等","index":5,"n_rows":5,"n_cols":7,"rows_kept":5,"cut":false,"hidden":false,"merged":[[3,1,4,1],[3,3,4,3],[3,4,4,4],[5,1,6,1],[5,3,6,3],[5,4,6,4]]}
[]
[]
[null,"企業コード","企業名\n住所","被保険者","保険金\n受取人"]
[null,null,null,null,null,null,"●３社以上の場合は空白行をコピーしたうえで入力してください。"]
[null,null,null,null,null,null,"●変更通知（承認申請）書や訂正承認申請の場合にも必ず添付してください。"]

{"sheet":"コード一覧","index":6,"n_rows":295,"n_cols":45,"rows_kept":295,"cut":false,"hidden":false,"merged":[[1,40,1,41],[1,29,1,30],[1,32,1,33],[1,34,1,35],[1,36,1,37],[1,38,1,39],[1,24,1,25],[1,26,1,27],[1,1,1,4],[1,7,1,8],[1,22,1,23],[1,19,1,20],[1,14,1,15],[1,16,1,17]]}
[]
[null,"通貨コード\n*網掛の通貨の邦貨換算レートは\nNEXIまでお問い合わせください。",null,null,null,null,null,"国コード",null,null,null,"コード","決済方法",null,"船積後（対価確認後）\n非常危険　保険料計算期間",null,"＜参考＞\n決済パターン",null,null,"支払保証",null,null,"ユーザンス月日指定",null,"変更事由",null,"受渡条件",null,"貨物","修正削除フラグ",null,"分類","契約形態",null,"船積後付保率（非常）",null,"保険料支払方法",null,"てん補種別",null,"有無",null,"相手方格付","支払人格付","保証人格付"]
[null,"通貨","通貨コード","表示１","表示","通貨y",null,"国コード","国名","表示",null,null,null,null,"LS案件","MS案件","機器","役務",null,"コード","内容",null,"コード","内容","コード","内容","コード","内容","内容","コード","内容","内容","コード","内容","コード","内容","コード","内容","コード","内容","コード","内容","内容","内容","内容"]
[null,"アメリカドル","001","001 アメリカドル","USD","JPY",null,"103","大韓民国",{"$f":"H4&\" \"&I4","v":"103 大韓民国"},null,"10","L/C AT SIGHT  ",{"$f":"L4&\" \"&M4","v":"10 L/C AT SIGHT  "},"30日","30日","○","×",null,"90","ＩＬＣ",null,2,"日","01","増額新規",1,"FOB","本邦貨物",1,"削","本邦貨物","11","輸出"," 975",0.97499999999999998,1,"一括払","2","総合",1,"有","GS","GS","GS"]
[null,"円","015","015 円","JPY","USD",null,"104","北朝鮮",{"$f":"H5&\" \"&I5","v":"104 北朝鮮"},null,"11","L/C *** DAYS AFTER B/L DATE  ",{"$f":"L5&\" \"&M5","v":"11 L/C *** DAYS AFTER B/L DATE  "},"***日","***日","○","×",null,"04","特定政府機関",null,1,"月","02","減額変更",2,"C&F","仲介貨物",2,"修","仲介貨物","15","仲介","1000",1,2,"分割払",null,null,null,null,"GA","GA","GE"]
[null,"ユーロ","091","091 ユーロ","EUR","EUR",null,"105","中華人民共和国","105 中華人民共和国",null,"12","L/C *** DAYS AFTER SIGHT      ","12 L/C *** DAYS AFTER SIGHT      ","***日 + 30日","***日 + 30日","○","×",null,"10","円借款",null,null,null,"03","通貨の変更",3,"CIF","役務",3,"追","役務",null,null,null,null,null,null,null,null,null,null,"GE","GE","SA"]
[null,"ＵＡＥ　ディルハム","061","061 ＵＡＥ　ディルハム","AED","AED",null,"106","台湾","106 台湾",null,"19","L/C OTHER","19 L/C OTHER","LS～LP","MS～MP","○","×",null,"11","無償援助",null,null,null,"04","貨物の変更",4,"FAS","現地調達品",null,null,"現地調達品",null,null,null,null,null,null,null,null,null,null,"EE","EE","SC"]
[null,"アイルランド　ポンド","046","046 アイルランド　ポンド","IEP","ATS",null,"107","モンゴル","107 モンゴル",null,"20","D/A *** DAYS AFTER B/L DATE    ","20 D/A *** DAYS AFTER B/L DATE    ","***日","***日","○","×",null,"20","ＩＢＲＤ(国際復興開発銀行)",null,null,null,"05","契約形態の変更",5,"EXW",null,null,null,null,null,null,null,null,null,null,null,null,null,null,"EA","EA","GR"]
[null,"アルジェリア　Ｄ","078","078 アルジェリア　Ｄ","DZD","AUD",null,"108","香港","108 香港",null,"21","D/A *** DAYS AFTER SIGHT  ","21 D/A *** DAYS AFTER SIGHT  ","***日 + 30日","***日 + 30日","○","×",null,"21","ＩＤＡ(国際開発協会)",null,null,null,"06","船積予定時期の変更",6,"FOB Air",null,null,null,null,null,null,null,null,null,null,null,null,null,null,"EF","EF","SR"]
[null,"イエメン　リヤール","062","062 イエメン　リヤール","YER","BDT",null,"110","ベトナム","110 ベトナム",null,"29","D/A OTHER  ","29 D/A OTHER  ","LS～LP","MS～MP","○","×",null,"22","ＩＦＣ(国際金融公社)",null,null,null,"07","船積時期の変更（短縮）",7,"FRC",null,null,null,null,null,null,null,null,null,null,null,null,null,null,"EM","EM"]
[null,"イギリスポンド","002","002 イギリスポンド","GBP","BHD",null,"111","タイ","111 タイ",null,"30","D/P AT SIGHT     ","30 D/P AT SIGHT     ","30日","30日","○","×",null,"23","ＡＤＢ(アジア開発銀行)",null,null,null,"10","支払国の変更",9,"その他",null,null,null,null,null,null,null,null,null,null,null,null,null,null,"EC","EC"]
[null,"イラン　リヤル","053","053 イラン　リヤル","IRR","BRL",null,"112","シンガポール","112 シンガポール",null,"31","D/P *** DAYS AFTER B/L DATE   ","31 D/P *** DAYS AFTER B/L DATE   ","***日","***日","○","×",null,"24","ＪＢＩＣ(国際協力銀行)",null,null,null,"11","売相手国の変更",null,null,null,null,null,null,null,null,null,null,null,null,null,null,null,null,"ER","ER"]
[null,"インドネシアルピー","030","030 インドネシアルピー","IDR","CAD",null,"113","マレーシア","113 マレーシア",null,"32","D/P *** DAYS AFTER SIGHT   ","32 D/P *** DAYS AFTER SIGHT   ","***日 + 30日","***日 + 30日","○","×",null,"41","ＡＦＤＢ(アフリカ開発銀行)",null,null,null,"12","仕向国の変更",null,null,null,null,null,null,null,null,null,null,null,null,null,null,null,null,"PU","PU"]
[null,"インドルピー","029","029 インドルピー","INR","CHF",null,"116","ブルネイ","116 ブルネイ",null,"39","D/P OTHER","39 D/P OTHER","LS～LP","MS～MP","○","×",null,"42","ＡＦＤＦ(アフリカ開発基金)",null,null,null,"13","同一国支払人の変更",null,null,null,null,null,null,null,null,null,null,null,null,null,null,null,null,"PN","PN"]
[null,"エジプト　ポンド","079","079 エジプト　ポンド","EGP","CNY",null,"117","フィリピン","117 フィリピン",null,"40","REMITTANCE AT SIGHT  ","40 REMITTANCE AT SIGHT  ","30日","30日","○","×",null,"44","ＩＤＢ(米州開発銀行)",null,null,null,"14","同一国相手方の変更",null,null,null,null,null,null,null,null,null,null,null,null,null,null,null,null,"PT","PT"]
[null,"オーストラリアドル","016","016 オーストラリアドル","AUD","COP",null,"118","インドネシア","118 インドネシア",null,"41","REMITTANCE *** DAYS AFTER B/L DATE  ","41 REMITTANCE *** DAYS AFTER B/L DATE  ","***日","***日","○","×",null,"45","CABEI",null,null,null,"15","決済条件の変更（延長）",null,null,null,null,null,null,null,null,null,null,null,null,null,null,null,null,"SA","SA"]
[null,"オーストリアシリング","010","010 オーストリアシリング","ATS","CZK",null,"120","カンボジア","120 カンボジア",null,"42","REMITTANCE *** DAYS AFTER RECEIPT OF DOCUMENTS  ","42 REMITTANCE *** DAYS AFTER RECEIPT OF DOCUMENTS  ","***日 + 30日","***日 + 30日","○","×",null,"46","CAF",null,null,null,"16","決済条件の変更（短縮）",null,null,null,null,null,null,null,null,null,null,null,null,null,null,null,null,"SC","SC"]
[null,"オランダギルダー","007","007 オランダギルダー","NLG","DEM",null,"121","ラオス","121 ラオス",null,"49","REMITTANCE OTHER  ","49 REMITTANCE OTHER  ","LS～LP","MS～MP","○","×",null,"47","ＣＤＢ(カリブ開発銀行)",null,null,null,"17","決済条件の変更（その他）",null,null,null,null,null,null,null,null,null,null,null,null,null,null,null,null,"GR","GR"]
[null,"カタール　リヤル","057","057 カタール　リヤル","QAR","DKK",null,"122","ミャンマー","122 ミャンマー",null,"50","AUTHORIZATION TO PAY AT SIGHT       ","50 AUTHORIZATION TO PAY AT SIGHT       ","30日","30日","○","×",null,"48","ＥＤＦ(欧州開発基金)",null,null,null,"99","その他の変更",null,null,null,null,null,null,null,null,null,null,null,null,null,null,null,null,"SR","SR"]
[null,"カナダドル","003","003 カナダドル","CAD","DZD",null,"123","インド","123 インド",null,"59","AUTHORIZATION TO PAY OTHER","59 AUTHORIZATION TO PAY OTHER","LS～LP","MS～MP","×","×",null,"49","ＥＩＢ(欧州投資銀行)"]
[null,"カンコクウォン","037","037 カンコクウォン","KRW","EGP",null,"124","パキスタン","124 パキスタン",null,"60","100% ADVANCE PAYMENT  ","60 100% ADVANCE PAYMENT  ","-","-","○","×",null,"74","ＩＦＡＤ(国際農業開発基金)"]
[null,"クウェート　Ｄ","055","055 クウェート　Ｄ","KWD","FRF",null,"125","スリランカ","125 スリランカ",null,"64","PROGRESS PAYMENT(EQUIPMENT) ","64 PROGRESS PAYMENT(EQUIPMENT) ","***日","***日","○","×",null,"75","ＥＢＲＤ(欧州復興開発銀行)"]
[null,"ケニヤ　シリング","082","082 ケニヤ　シリング","KES","GBP",null,"126","モルディブ","126 モルディブ",null,"65","PROGRESS PAYMENT(SERVICE)    ","65 PROGRESS PAYMENT(SERVICE)    ","-","***日","×","○",null,"91","L/G"]
[null,"コロンビア　ペソ","074","074 コロンビア　ペソ","COP","HKD",null,"127","バングラデシュ","127 バングラデシュ",null,"70","RETENTION(EQUIPMENT)   ","70 RETENTION(EQUIPMENT)   ","LS～MP","MS～MP","○","×",null,"92","本船担保"]
[null,"サウジアラビア　Ｒ","058","058 サウジアラビア　Ｒ","SAR","HUF",null,"128","東ティモール","128 東ティモール",null,"71","RETENTION(SERVICE)     ","71 RETENTION(SERVICE)     ","-","MS～MP","×","○",null,"99","その他の保証"]
[null,"シンガポールドル","020","020 シンガポールドル","SGD","IDR",null,"129","マカオ","129 マカオ",null,"73","MILESTONE(SCHEDULED)PAYMENT(MULTIPLE EQUIPMENT)","73 MILESTONE(SCHEDULED)PAYMENT(MULTIPLE EQUIPMENT)","LS～LP","MS～MP","○","×"]
[null,"人民元","017","017 人民元","CNY","IEP",null,"130","アフガニスタン","130 アフガニスタン",null,"75","MILESTONE(SCHEDULED)PAYMENT(ONE-TIME EQUIPMENT)","75 MILESTONE(SCHEDULED)PAYMENT(ONE-TIME EQUIPMENT)","LS～LP","MS～MP","○","×"]
[null,"スイスフラン","004","004 スイスフラン","CHF","INR",null,"131","ネパール","131 ネパール",null,"76","MILESTONE PAYMENT(SERVICE) ","76 MILESTONE PAYMENT(SERVICE) ","-","***日","×","○"]
[null,"スウエーデンクローネ","006","006 スウエーデンクローネ","SEK","IRR",null,"132","ブータン","132 ブータン",null,"77","SCHEDULED PAYMENT (MULTIPLE SERVICE)  ","77 SCHEDULED PAYMENT (MULTIPLE SERVICE)  ","-","MS～MP","×","○"]
[null,"スリランカルピー","038","038 スリランカルピー","LKR","KES",null,"133","イラン","133 イラン",null,"78","SCHEDULED PAYMENT (ONE-TIME SERVICE) ","78 SCHEDULED PAYMENT (ONE-TIME SERVICE) ","-","MS～MP","×","○"]
[null,"タイバーツ","040","040 タイバーツ","THB","KRW",null,"134","イラク","134 イラク",null,"80","EQUAL PAYMENT OF PRINCIPAL OVER ONE YEAR","80 EQUAL PAYMENT OF PRINCIPAL OVER ONE YEAR","LS～LP","MS～MP","○","×"]
[null,"タイワンドル","039","039 タイワンドル","TWD","KWD",null,"135","バーレーン","135 バーレーン",null,"81","EQUAL PAYMENT OF PRINCIPAL OVER ONE YEAR（SHIPPING　BASIS）","81 EQUAL PAYMENT OF PRINCIPAL OVER ONE YEAR（SHIPPING　BASIS）","LS～LP","MS～MP","○","×"]
[null,"チェコ　コルナ","092","092 チェコ　コルナ","CZK","LKR",null,"136","（旧）イエメン","136 （旧）イエメン",null,"88","LOCAL PAYMENT (SERVICE)  ",{"$f":"L33&\" \"&M33","v":"88 LOCAL PAYMENT (SERVICE)  "},"-","***日","×","○"]
[null,"チュニジア　Ｄ","087","087 チュニジア　Ｄ","TND","LYD",null,"137","サウジアラビア","137 サウジアラビア",null,"89","LOCAL PAYMENT(EQUIPMENT)   ",{"$f":"L34&\" \"&M34","v":"89 LOCAL PAYMENT(EQUIPMENT)   "},"***日","***日","○","×"]
[null,"デンマーククローネ","011","011 デンマーククローネ","DKK","MAD",null,"138","クウェート","138 クウェート",null,"98","SETTLEMENT OTHER (SERVICE) ",{"$f":"L35&\" \"&M35","v":"98 SETTLEMENT OTHER (SERVICE) "},"-","MS～MP","×","○"]
[null,"ドイツマルク","005","005 ドイツマルク","DEM","MXN",null,"140","カタール","140 カタール",null,"99","SETTLEMENT OTHER (EQUIPMENT) ",{"$f":"L36&\" \"&M36","v":"99 SETTLEMENT OTHER (EQUIPMENT) "},"LS～LP","MS～MP","○","×"]
[null,"トルコ　リラ","097","097 トルコ　リラ","TRL","MYR",null,"141","オマーン","141 オマーン"]
[null,"トルコ　リラ（旧）","060","060 トルコ　リラ（旧）","TRL(old)","NGN",null,"143","イスラエル","143 イスラエル"]
[null,"ナイジェリア　Ｎ","085","085 ナイジェリア　Ｎ","NGN","NLG",null,"144","ヨルダン","144 ヨルダン"]
[null,"ニュージランドドル","018","018 ニュージランドドル","NZD","NOK",null,"145","シリア","145 シリア"]
[null,"ノルウェークローネ","013","013 ノルウェークローネ","NOK","NZD",null,"146","レバノン","146 レバノン"]
[null,"パキスタンルピー","034","034 パキスタンルピー","PKR","PHP",null,"147","アラブ首長国連邦","147 アラブ首長国連邦"]
[null,"バハレーン　Ｄ","052","052 バハレーン　Ｄ","BHD","PKR",null,"148","ガザ・エリコ","148 ガザ・エリコ"]
[null,"ハンガリー　フォリント","093","093 ハンガリー　フォリント","HUF","PLN",null,"149","イエメン","149 イエメン"]
[null,"バングラディシュタカ","026","026 バングラディシュタカ","BDT","PTE",null,"150","アゼルバイジャン","150 アゼルバイジャン"]
[null,"フィリピンペソ","036","036 フィリピンペソ","PHP","QAR",null,"151","アルメニア","151 アルメニア"]
[null,"ブラジル　レアル","072","072 ブラジル　レアル","BRL","RUB",null,"152","ウズベキスタン","152 ウズベキスタン"]
[null,"フランスフラン","009","009 フランスフラン","FRF","SAR",null,"153","カザフスタン","153 カザフスタン"]
[null,"ベトナムドン","041","041 ベトナムドン","VND","SEK",null,"154","キルギス","154 キルギス"]
[null,"ベネズエラ　Ｂ","077","077 ベネズエラ　Ｂ","VEB","SGD",null,"155","タジキスタン","155 タジキスタン"]
[null,"ポーランド　ズロチ","094","094 ポーランド　ズロチ","PLN","THB",null,"156","トルクメニスタン","156 トルクメニスタン"]
[null,"ポルトガルエスクード","014","014 ポルトガルエスクード","PTE","TND",null,"157","ジョージア","157 ジョージア"]
[null,"香港ドル","019","019 香港ドル","HKD","TRL",null,"158","西岸・ガザ（パレスチ","158 西岸・ガザ（パレスチ"]
[null,"マレーシアリンギッド","032","032 マレーシアリンギッド","MYR","TRL(old)",null,"192","日本","192 日本"]
[null,"ミナミアフリカ　Ｒ","086","086 ミナミアフリカ　Ｒ","ZAR","TWD",null,"193","サウジアラビア・クウ","193 サウジアラビア・クウ"]
[null,"メキシコ　ペソ","090","090 メキシコ　ペソ","MXN","VEB",null,"199","キプロス（船舶）","199 キプロス（船舶）"]
[null,"モロッコ　ダーラム","084","084 モロッコ　ダーラム","MAD","VND",null,"201","アイスランド","201 アイスランド"]
[null,"リビア　ディナール","083","083 リビア　ディナール","LYD","YER",null,"202","ノルウェー","202 ノルウェー"]
[null,"ロシア　ルーブル","049","049 ロシア　ルーブル","RUB","ZAR",null,"203","スウェーデン","203 スウェーデン"]
[null,"その他通貨","999","999 その他通貨","その他","その他",null,"204","デンマーク","204 デンマーク"]
[null,null,null,null,null,null,null,"205","英国","205 英国"]
[null,null,null,null,null,null,null,"206","アイルランド","206 アイルランド"]
[null,null,null,null,null,null,null,"207","オランダ","207 オランダ"]
[null,null,null,null,null,null,null,"208","ベルギー","208 ベルギー"]
[null,null,null,null,null,null,null,"209","ルクセンブルク","209 ルクセンブルク"]
[null,null,null,null,null,null,null,"210","フランス","210 フランス"]
[null,null,null,null,null,null,null,"211","モナコ","211 モナコ"]
[null,null,null,null,null,null,null,"212","アンドラ","212 アンドラ"]
[null,null,null,null,null,null,null,"213","ドイツ",{"$f":"H69&\" \"&I69","v":"213 ドイツ"}]
[null,null,null,null,null,null,null,"214","（旧）東ドイツ","214 （旧）東ドイツ"]
[null,null,null,null,null,null,null,"215","スイス","215 スイス"]
[null,null,null,null,null,null,null,"216","アゾレス諸島（葡）","216 アゾレス諸島（葡）"]
[null,null,null,null,null,null,null,"217","ポルトガル","217 ポルトガル"]
[null,null,null,null,null,null,null,"218","スペイン","218 スペイン"]
[null,null,null,null,null,null,null,"219","ジブラルタル","219 ジブラルタル"]
[null,null,null,null,null,null,null,"220","イタリア","220 イタリア"]
[null,null,null,null,null,null,null,"221","マルタ","221 マルタ"]
[null,null,null,null,null,null,null,"222","フィンランド","222 フィンランド"]
[null,null,null,null,null,null,null,"223","ポーランド","223 ポーランド"]
[null,null,null,null,null,null,null,"224","ロシア","224 ロシア"]
[null,null,null,null,null,null,null,"225","オーストリア","225 オーストリア"]
[null,null,null,null,null,null,null,"226","（旧）チェコスロヴァ","226 （旧）チェコスロヴァ"]
[null,null,null,null,null,null,null,"227","ハンガリー","227 ハンガリー"]
[null,null,null,null,null,null,null,"228","セルビア","228 セルビア"]
[null,null,null,null,null,null,null,"229","アルバニア","229 アルバニア"]
[null,null,null,null,null,null,null,"230","ギリシャ","230 ギリシャ"]
[null,null,null,null,null,null,null,"231","ルーマニア","231 ルーマニア"]
[null,null,null,null,null,null,null,"232","ブルガリア","232 ブルガリア"]
[null,null,null,null,null,null,null,"233","キプロス","233 キプロス"]
[null,null,null,null,null,null,null,"234","トルコ","234 トルコ"]
[null,null,null,null,null,null,null,"235","エストニア","235 エストニア"]
[null,null,null,null,null,null,null,"236","ラトビア","236 ラトビア"]
[null,null,null,null,null,null,null,"237","リトアニア","237 リトアニア"]
[null,null,null,null,null,null,null,"238","ウクライナ","238 ウクライナ"]
[null,null,null,null,null,null,null,"239","ベラルーシ","239 ベラルーシ"]
[null,null,null,null,null,null,null,"240","モルドバ","240 モルドバ"]
[null,null,null,null,null,null,null,"241","クロアチア","241 クロアチア"]
[null,null,null,null,null,null,null,"242","スロベニア","242 スロベニア"]
[null,null,null,null,null,null,null,"243","ボスニア・ヘルツェゴ","243 ボスニア・ヘルツェゴ"]
[null,null,null,null,null,null,null,"244","マケドニア","244 マケドニア"]
[null,null,null,null,null,null,null,"245","チェコ","245 チェコ"]
[null,null,null,null,null,null,null,"246","スロバキア","246 スロバキア"]
[null,null,null,null,null,null,null,"247","モンテネグロ","247 モンテネグロ"]
[null,null,null,null,null,null,null,"248","コソボ","248 コソボ"]
[null,null,null,null,null,null,null,"270","チャネル諸島（ジャー","270 チャネル諸島（ジャー"]
[null,null,null,null,null,null,null,"271","チャネル諸島（ガ管区","271 チャネル諸島（ガ管区"]
[null,null,null,null,null,null,null,"280","リヒテンシュタイン","280 リヒテンシュタイン"]
[null,null,null,null,null,null,null,"281","バチカン","281 バチカン"]
[null,null,null,null,null,null,null,"282","サンマリノ","282 サンマリノ"]
[null,null,null,null,null,null,null,"283","（旧）ソビエト連邦","283 （旧）ソビエト連邦"]
[null,null,null,null,null,null,null,"284","（旧）チェコ地域","284 （旧）チェコ地域"]
[null,null,null,null,null,null,null,"285","（旧）スロヴァキア地","285 （旧）スロヴァキア地"]
[null,null,null,null,null,null,null,"299","マルタ（船舶）","299 マルタ（船舶）"]
[null,null,null,null,null,null,null,"301","グリーンランド（デ）","301 グリーンランド（デ）"]
[null,null,null,null,null,null,null,"302","カナダ","302 カナダ"]
[null,null,null,null,null,null,null,"303","サンピエール島・ミク","303 サンピエール島・ミク"]
[null,null,null,null,null,null,null,"304","アメリカ合衆国","304 アメリカ合衆国"]
[null,null,null,null,null,null,null,"305","メキシコ","305 メキシコ"]
[null,null,null,null,null,null,null,"306","グアテマラ","306 グアテマラ"]
[null,null,null,null,null,null,null,"307","ホンジュラス","307 ホンジュラス"]
[null,null,null,null,null,null,null,"308","ベリーズ","308 ベリーズ"]
[null,null,null,null,null,null,null,"309","エルサルバドル","309 エルサルバドル"]
[null,null,null,null,null,null,null,"310","ニカラグア","310 ニカラグア"]
[null,null,null,null,null,null,null,"311","コスタリカ","311 コスタリカ"]
[null,null,null,null,null,null,null,"312","パナマ","312 パナマ"]
[null,null,null,null,null,null,null,"313","パナマ運河地帯","313 パナマ運河地帯"]
[null,null,null,null,null,null,null,"314","バミューダ島（英）","314 バミューダ島（英）"]
[null,null,null,null,null,null,null,"315","バハマ","315 バハマ"]
[null,null,null,null,null,null,null,"316","ジャマイカ","316 ジャマイカ"]
[null,null,null,null,null,null,null,"317","タークス・カイコス諸","317 タークス・カイコス諸"]
[null,null,null,null,null,null,null,"319","バルバドス","319 バルバドス"]
[null,null,null,null,null,null,null,"320","トリニダード・トバコ","320 トリニダード・トバコ"]
[null,null,null,null,null,null,null,"321","キューバ",{"$f":"H133&\" \"&I133","v":"321 キューバ"}]
[null,null,null,null,null,null,null,"322","ハイチ","322 ハイチ"]
[null,null,null,null,null,null,null,"323","ドミニカ共和国","323 ドミニカ共和国"]
[null,null,null,null,null,null,null,"324","プエルトリコ（米）","324 プエルトリコ（米）"]
[null,null,null,null,null,null,null,"325","米領バージン諸島","325 米領バージン諸島"]
[null,null,null,null,null,null,null,"326","蘭領アンティル","326 蘭領アンティル"]
[null,null,null,null,null,null,null,"327","仏領西インド諸島","327 仏領西インド諸島"]
[null,null,null,null,null,null,null,"328","ケイマン諸島（英）","328 ケイマン諸島（英）"]
[null,null,null,null,null,null,null,"329","グレナダ","329 グレナダ"]
[null,null,null,null,null,null,null,"330","セントルシア","330 セントルシア"]
[null,null,null,null,null,null,null,"331","アンティグア・バーブ","331 アンティグア・バーブ"]
[null,null,null,null,null,null,null,"332","英領バージン諸島","332 英領バージン諸島"]
[null,null,null,null,null,null,null,"333","ドミニカ","333 ドミニカ"]
[null,null,null,null,null,null,null,"334","モンセラット（英）","334 モンセラット（英）"]
[null,null,null,null,null,null,null,"335","セントクリストファー","335 セントクリストファー"]
[null,null,null,null,null,null,null,"336","セントビンセント・グ","336 セントビンセント・グ"]
[null,null,null,null,null,null,null,"337","アンギラ（英）","337 アンギラ（英）"]
[null,null,null,null,null,null,null,"380","アルバ（蘭）","380 アルバ（蘭）"]
[null,null,null,null,null,null,null,"381","キュラソー（蘭）","381 キュラソー（蘭）"]
[null,null,null,null,null,null,null,"382","サバ（蘭）","382 サバ（蘭）"]
[null,null,null,null,null,null,null,"383","セント・マーチン（蘭","383 セント・マーチン（蘭"]
[null,null,null,null,null,null,null,"384","セント・マーチン（仏","384 セント・マーチン（仏"]
[null,null,null,null,null,null,null,"385","ボナイル（蘭）","385 ボナイル（蘭）"]
[null,null,null,null,null,null,null,"386","セント・ユースタチウ","386 セント・ユースタチウ"]
[null,null,null,null,null,null,null,"395","バルバドス（船舶）","395 バルバドス（船舶）"]
[null,null,null,null,null,null,null,"396","ケイマン諸島（船舶）","396 ケイマン諸島（船舶）"]
[null,null,null,null,null,null,null,"397","バミューダ・英（船舶","397 バミューダ・英（船舶"]
[null,null,null,null,null,null,null,"398","バハマ（船舶）","398 バハマ（船舶）"]
[null,null,null,null,null,null,null,"399","パナマ（船舶）","399 パナマ（船舶）"]
[null,null,null,null,null,null,null,"401","コロンビア","401 コロンビア"]
[null,null,null,null,null,null,null,"402","ベネズエラ","402 ベネズエラ"]
[null,null,null,null,null,null,null,"403","ガイアナ","403 ガイアナ"]
[null,null,null,null,null,null,null,"404","スリナム","404 スリナム"]
[null,null,null,null,null,null,null,"405","仏領ギアナ","405 仏領ギアナ"]
[null,null,null,null,null,null,null,"406","エクアドル","406 エクアドル"]
[null,null,null,null,null,null,null,"407","ペルー","407 ペルー"]
[null,null,null,null,null,null,null,"408","ボリビア","408 ボリビア"]
[null,null,null,null,null,null,null,"409","チリ","409 チリ"]
[null,null,null,null,null,null,null,"410","ブラジル","410 ブラジル"]
[null,null,null,null,null,null,null,"411","パラグアイ","411 パラグアイ"]
[null,null,null,null,null,null,null,"412","ウルグアイ","412 ウルグアイ"]
[null,null,null,null,null,null,null,"413","アルゼンチン","413 アルゼンチン"]
[null,null,null,null,null,null,null,"414","フォークランド（マル","414 フォークランド（マル"]
[null,null,null,null,null,null,null,"415","英領南極基地","415 英領南極基地"]
[null,null,null,null,null,null,null,"501","モロッコ","501 モロッコ"]
[null,null,null,null,null,null,null,"502","セウタ及びメリリャ（","502 セウタ及びメリリャ（"]
[null,null,null,null,null,null,null,"503","アルジェリア","503 アルジェリア"]
[null,null,null,null,null,null,null,"504","チュニジア","504 チュニジア"]
[null,null,null,null,null,null,null,"505","リビア","505 リビア"]
[null,null,null,null,null,null,null,"506","エジプト","506 エジプト"]
[null,null,null,null,null,null,null,"507","スーダン","507 スーダン"]
[null,null,null,null,null,null,null,"508","西サハラ","508 西サハラ"]
[null,null,null,null,null,null,null,"509","モーリタニア","509 モーリタニア"]
[null,null,null,null,null,null,null,"510","セネガル","510 セネガル"]
[null,null,null,null,null,null,null,"511","ガンビア","511 ガンビア"]
[null,null,null,null,null,null,null,"512","ギニアビサウ","512 ギニアビサウ"]
[null,null,null,null,null,null,null,"513","ギニア","513 ギニア"]
[null,null,null,null,null,null,null,"514","シエラレオネ","514 シエラレオネ"]
[null,null,null,null,null,null,null,"515","リベリア","515 リベリア"]
[null,null,null,null,null,null,null,"516","コートジボワール","516 コートジボワール"]
[null,null,null,null,null,null,null,"517","ガーナ","517 ガーナ"]
[null,null,null,null,null,null,null,"518","トーゴ","518 トーゴ"]
[null,null,null,null,null,null,null,"519","ベナン","519 ベナン"]
[null,null,null,null,null,null,null,"520","マリ","520 マリ"]
[null,null,null,null,null,null,null,"521","ブルキナファソ",{"$f":"H197&\" \"&I197","v":"521 ブルキナファソ"}]
[null,null,null,null,null,null,null,"522","カーボベルデ","522 カーボベルデ"]
[null,null,null,null,null,null,null,"523","カナリア諸島（西）","523 カナリア諸島（西）"]
[null,null,null,null,null,null,null,"524","ナイジェリア","524 ナイジェリア"]
[null,null,null,null,null,null,null,"525","ニジェール","525 ニジェール"]
[null,null,null,null,null,null,null,"526","ルワンダ","526 ルワンダ"]
[null,null,null,null,null,null,null,"527","カメルーン","527 カメルーン"]
[null,null,null,null,null,null,null,"528","チャド","528 チャド"]
[null,null,null,null,null,null,null,"529","中央アフリカ共和国","529 中央アフリカ共和国"]
[null,null,null,null,null,null,null,"530","赤道ギニア","530 赤道ギニア"]
[null,null,null,null,null,null,null,"531","ガボン","531 ガボン"]
[null,null,null,null,null,null,null,"532","コンゴ共和国","532 コンゴ共和国"]
[null,null,null,null,null,null,null,"533","コンゴ民主共和国","533 コンゴ民主共和国"]
[null,null,null,null,null,null,null,"534","ブルンジ","534 ブルンジ"]
[null,null,null,null,null,null,null,"535","アンゴラ","535 アンゴラ"]
[null,null,null,null,null,null,null,"536","サントメ・プリンシペ","536 サントメ・プリンシペ"]
[null,null,null,null,null,null,null,"537","セントヘレナ島（英）","537 セントヘレナ島（英）"]
[null,null,null,null,null,null,null,"538","エチオピア","538 エチオピア"]
[null,null,null,null,null,null,null,"539","ジブチ","539 ジブチ"]
[null,null,null,null,null,null,null,"540","ソマリア","540 ソマリア"]
[null,null,null,null,null,null,null,"541","ケニア","541 ケニア"]
[null,null,null,null,null,null,null,"542","ウガンダ","542 ウガンダ"]
[null,null,null,null,null,null,null,"543","タンザニア","543 タンザニア"]
[null,null,null,null,null,null,null,"544","セーシェル","544 セーシェル"]
[null,null,null,null,null,null,null,"545","モザンビーク","545 モザンビーク"]
[null,null,null,null,null,null,null,"546","マダガスカル","546 マダガスカル"]
[null,null,null,null,null,null,null,"547","モーリシャス","547 モーリシャス"]
[null,null,null,null,null,null,null,"548","レユニオン（仏）","548 レユニオン（仏）"]
[null,null,null,null,null,null,null,"549","ジンバブエ","549 ジンバブエ"]
[null,null,null,null,null,null,null,"550","ナミビア","550 ナミビア"]
[null,null,null,null,null,null,null,"551","南アフリカ共和国","551 南アフリカ共和国"]
[null,null,null,null,null,null,null,"552","レソト","552 レソト"]
[null,null,null,null,null,null,null,"553","マラウイ","553 マラウイ"]
[null,null,null,null,null,null,null,"554","ザンビア","554 ザンビア"]
[null,null,null,null,null,null,null,"555","ボツワナ","555 ボツワナ"]
[null,null,null,null,null,null,null,"556","エスワティニ","556 エスワティニ"]
[null,null,null,null,null,null,null,"557","英領インド洋地域","557 英領インド洋地域"]
[null,null,null,null,null,null,null,"558","コモロ","558 コモロ"]
[null,null,null,null,null,null,null,"559","エリトリア","559 エリトリア"]
[null,null,null,null,null,null,null,"560","南スーダン共和国","560 南スーダン共和国"]
[null,null,null,null,null,null,null,"580","マディラ諸島（葡）","580 マディラ諸島（葡）"]
[null,null,null,null,null,null,null,"598","マディラ（葡）（船舶","598 マディラ（葡）（船舶"]
[null,null,null,null,null,null,null,"599","リベリア（船舶）","599 リベリア（船舶）"]
[null,null,null,null,null,null,null,"601","オーストラリア","601 オーストラリア"]
[null,null,null,null,null,null,null,"602","パプアニューギニア","602 パプアニューギニア"]
[null,null,null,null,null,null,null,"605","その他オーストラリア","605 その他オーストラリア"]
[null,null,null,null,null,null,null,"606","ニュージーランド","606 ニュージーランド"]
[null,null,null,null,null,null,null,"607","クック諸島","607 クック諸島"]
[null,null,null,null,null,null,null,"608","トケラウ諸島（ニュー","608 トケラウ諸島（ニュー"]
[null,null,null,null,null,null,null,"609","ニウェ島（ニュージー","609 ニウェ島（ニュージー"]
[null,null,null,null,null,null,null,"610","サモア独立国","610 サモア独立国"]
[null,null,null,null,null,null,null,"611","バヌアツ","611 バヌアツ"]
[null,null,null,null,null,null,null,"612","フィジー","612 フィジー"]
[null,null,null,null,null,null,null,"613","ソロモン","613 ソロモン"]
[null,null,null,null,null,null,null,"614","トンガ","614 トンガ"]
[null,null,null,null,null,null,null,"615","キリバス","615 キリバス"]
[null,null,null,null,null,null,null,"616","ピトケアン諸島（英）","616 ピトケアン諸島（英）"]
[null,null,null,null,null,null,null,"617","ナウル","617 ナウル"]
[null,null,null,null,null,null,null,"618","ニューカレドニア（仏","618 ニューカレドニア（仏"]
[null,null,null,null,null,null,null,"619","仏領ポリネシア","619 仏領ポリネシア"]
[null,null,null,null,null,null,null,"620","グァム（米）","620 グァム（米）"]
[null,null,null,null,null,null,null,"621","米領サモア","621 米領サモア"]
[null,null,null,null,null,null,null,"622","米領オセアニア","622 米領オセアニア"]
[null,null,null,null,null,null,null,"623","マリアナ・マーシャル","623 マリアナ・マーシャル"]
[null,null,null,null,null,null,null,"624","ツバル",{"$f":"H261&\" \"&I261","v":"624 ツバル"}]
[null,null,null,null,null,null,null,"625","マーシャル諸島","625 マーシャル諸島"]
[null,null,null,null,null,null,null,"626","ミクロネシア","626 ミクロネシア"]
[null,null,null,null,null,null,null,"627","北マリアナ諸島（米）","627 北マリアナ諸島（米）"]
[null,null,null,null,null,null,null,"628","パラオ","628 パラオ"]
[null,null,null,null,null,null,null,"680","ノーフォーク島（豪）","680 ノーフォーク島（豪）"]
[null,null,null,null,null,null,null,"681","タヒチ（仏）","681 タヒチ（仏）"]
[null,null,null,null,null,null,null,"682","ケルマディック諸島（","682 ケルマディック諸島（"]
[null,null,null,null,null,null,null,"683","ミッドウェー諸島（米","683 ミッドウェー諸島（米"]
[null,null,null,null,null,null,null,"684","ソサエティ諸島（仏）","684 ソサエティ諸島（仏）"]
[null,null,null,null,null,null,null,"685","ウェーク島（米）","685 ウェーク島（米）"]
[null,null,null,null,null,null,null,"686","ワリス・フテュナ諸島","686 ワリス・フテュナ諸島"]
[null,null,null,null,null,null,null,"687","クリスマス島（豪）","687 クリスマス島（豪）"]
[null,null,null,null,null,null,null,"688","ココス諸島（豪）","688 ココス諸島（豪）"]
[null,null,null,null,null,null,null,"689","ジョンストン島（米）","689 ジョンストン島（米）"]
[null,null,null,null,null,null,null,"690","ツアモツ諸島（仏）","690 ツアモツ諸島（仏）"]
[null,null,null,null,null,null,null,"691","マルケサス諸島（仏）","691 マルケサス諸島（仏）"]
[null,null,null,null,null,null,null,"692","仏領ポリネシア","692 仏領ポリネシア"]
[null,null,null,null,null,null,null,"698","マーシャル諸島（船舶","698 マーシャル諸島（船舶"]
[null,null,null,null,null,null,null,"699","バヌアツ（船舶）","699 バヌアツ（船舶）"]
[null,null,null,null,null,null,null,"790","公海等","790 公海等"]
[null,null,null,null,null,null,null,null,null,{"$f":"#REF!&\" \"&#REF!","v":{"$error":"#REF!"}}]
[null,null,null,null,null,null,null,null,null,{"$f":"#REF!&\" \"&#REF!","v":{"$error":"#REF!"}}]
[null,null,null,null,null,null,null,null,null,{"$f":"#REF!&\" \"&#REF!","v":{"$error":"#REF!"}}]
[null,null,null,null,null,null,null,null,null,{"$f":"#REF!&\" \"&#REF!","v":{"$error":"#REF!"}}]
[null,null,null,null,null,null,null,null,null,{"$f":"#REF!&\" \"&#REF!","v":{"$error":"#REF!"}}]
[null,null,null,null,null,null,null,null,null,{"$f":"#REF!&\" \"&#REF!","v":{"$error":"#REF!"}}]
[null,null,null,null,null,null,null,null,null,{"$f":"#REF!&\" \"&#REF!","v":{"$error":"#REF!"}}]
[null,null,null,null,null,null,null,null,null,{"$f":"#REF!&\" \"&#REF!","v":{"$error":"#REF!"}}]
[null,null,null,null,null,null,null,null,null,{"$f":"#REF!&\" \"&#REF!","v":{"$error":"#REF!"}}]
[null,null,null,null,null,null,null,null,null,{"$f":"#REF!&\" \"&#REF!","v":{"$error":"#REF!"}}]
[null,null,null,null,null,null,null,null,null,{"$f":"#REF!&\" \"&#REF!","v":{"$error":"#REF!"}}]
[null,null,null,null,null,null,null,null,null,{"$f":"#REF!&\" \"&#REF!","v":{"$error":"#REF!"}}]
[null,null,null,null,null,null,null,null,null,{"$f":"#REF!&\" \"&#REF!","v":{"$error":"#REF!"}}]
[null,null,null,null,null,null,null,null,null,{"$f":"#REF!&\" \"&#REF!","v":{"$error":"#REF!"}}]

{"sheet":"決済方法の入力方法","index":7,"n_rows":36,"n_cols":5,"rows_kept":36,"cut":false,"hidden":false,"merged":[[1,3,1,4]]}
[]
[null,"コード","決済方法","入力有効／無効"]
[null,null,null,"ユーザンス","決済期日"]
[null,"10","L/C AT SIGHT  ","×","×"]
[null,"11","L/C *** DAYS AFTER B/L DATE  ","○","×"]
[null,"12","L/C *** DAYS AFTER SIGHT      ","○","×"]
[null,"19","L/C OTHER","×","○"]
[null,"20","D/A *** DAYS AFTER B/L DATE    ","○","×"]
[null,"21","D/A *** DAYS AFTER SIGHT  ","○","×"]
[null,"29","D/A OTHER  ","×","○"]
[null,"30","D/P AT SIGHT     ","×","×"]
[null,"31","D/P *** DAYS AFTER B/L DATE   ","○","×"]
[null,"32","D/P *** DAYS AFTER SIGHT   ","○","×"]
[null,"39","D/P OTHER","×","○"]
[null,"40","REMITTANCE AT SIGHT  ","×","×"]
[null,"41","REMITTANCE *** DAYS AFTER B/L DATE  ","○","×"]
[null,"42","REMITTANCE *** DAYS AFTER RECEIPT OF DOCUMENTS  ","○","×"]
[null,"49","REMITTANCE OTHER  ","×","○"]
[null,"50","AUTHORIZATION TO PAY AT SIGHT       ","×","×"]
[null,"59","AUTHORIZATION TO PAY OTHER","×","○"]
[null,"60","100% ADVANCE PAYMENT  ","×","×"]
[null,"64","PROGRESS PAYMENT(EQUIPMENT) ","○","×"]
[null,"65","PROGRESS PAYMENT(SERVICE)    ","○","×"]
[null,"70","RETENTION(EQUIPMENT)   ","×","○"]
[null,"71","RETENTION(SERVICE)     ","×","○"]
[null,"73","MILESTONE(SCHEDULED)PAYMENT(MULTIPLE EQUIPMENT)","×","○"]
[null,"75","MILESTONE(SCHEDULED)PAYMENT(ONE-TIME EQUIPMENT)","×","○"]
[null,"76","MILESTONE PAYMENT(SERVICE) ","○","×"]
[null,"77","SCHEDULED PAYMENT (MULTIPLE SERVICE)  ","×","○"]
[null,"78","SCHEDULED PAYMENT (ONE-TIME SERVICE) ","×","○"]
[null,"80","EQUAL PAYMENT OF PRINCIPAL OVER ONE YEAR","×","○"]
[null,"81","EQUAL PAYMENT OF PRINCIPAL OVER ONE YEAR（SHIPPING　BASIS）","○","×"]
[null,"88","LOCAL PAYMENT (SERVICE)  ","○","×"]
[null,"89","LOCAL PAYMENT(EQUIPMENT)   ","○","×"]
[null,"98","SETTLEMENT OTHER (SERVICE) ","×","○"]
[null,"99","SETTLEMENT OTHER (EQUIPMENT) ","×","○"]

{"sheet":"文言制御","index":8,"n_rows":9,"n_cols":5,"rows_kept":9,"cut":false,"hidden":true,"merged":[]}
["NO","様式番号","タイトル","文言","文言２"]
[11,"別紙様式第１－１","貿易一般保険申込書","　貿易一般保険約款及びこれに関する規定並びに内諾(※)の内容を承認し、貿易一般保険包括保険（機械設備・鉄道システム・船舶：一般案件）手続細則の規定に基づき、次のとおり貿易一般保険を申し込みます。","追順番号"]
[12,"別紙様式第２－２","貿易一般保険訂正承認申請書","　[保険申込書／変更通知書]の記載事項について、以下のとおり訂正を希望し承認を申請します。当社は、以下に記載する了解事項について理解した上で保険契約の訂正の申請を行います。","保険証券番号"]
[13,"別紙様式第２－１","貿易一般保険（変更通知書）","　輸出契約等を次のとおり変更しましたので貿易一般保険  包括保険（機械設備・鉄道システム・船舶：一般案件）手続細則の規定に基づき、通知します。","保険証券番号"]
[14,"別紙様式第２－１","貿易一般保険（変更承認申請書）","　輸出契約等を次のとおり（変更した・変更したい）ので  貿易一般保険包括保険（機械設備・鉄道システム・船舶  ：一般案件）手続細則の規定に基づき、承認を申請します。","保険証券番号"]
[21,"別紙様式第５","貿易一般保険申込書","　貿易一般保険約款及びこれに関する規定並びに内諾(※)の内容を承認し、貿易一般保険包括保険（企業総合）手続細則の規定に基づき、次のとおり貿易一般保険を申し込みます。","追順番号"]
[22,"別紙様式第６－２","貿易一般保険訂正承認申請書","　[保険申込書／変更通知書]の記載事項について、以下のとおり訂正を希望し承認を申請します。当社は、以下に記載する了解事項について理解した上で保険契約の訂正の申請を行います。","保険証券番号"]
[23,"別紙様式第６－１","貿易一般保険（変更通知書）","　輸出契約等を次のとおり変更しましたので、貿易一般保険包括保険（企業総合）手続細則の規定に基づき、通知します。","保険証券番号"]
[24,"別紙様式第６－１","貿易一般保険（変更承認申請書）","　輸出契約等を次のとおり（変更した・変更したい）ので、貿易一般  保険包括保険（企業総合）手続細則の規定に基づき、承認を申請します。","保険証券番号"]

{"sheet":"シート項目定義（別紙様式）","index":9,"n_rows":112,"n_cols":31,"rows_kept":112,"cut":false,"hidden":true,"merged":[[0,25,1,25],[0,27,0,30],[0,8,1,8],[0,9,1,9],[0,10,1,10],[0,11,1,11],[0,12,1,12],[0,13,0,14],[91,24,95,24],[0,7,1,7],[0,0,1,0],[0,1,1,1],[0,2,1,2],[0,3,0,4],[0,5,0,6],[0,15,0,23],[0,24,1,24]]}
["＃","項目分類","項目名","ファイル出力",null,"表示／非表示",null,"入力","UI","表示形式","セル書式","関数","入力形式","属性色",null,"入力チェック",null,null,null,null,null,null,null,null,"備考","VBA定義名","PREFIX","レイアウト"]
[null,null,null,"ファイル項目名","編集仕様","設備","企総",null,null,null,null,null,null,"設備","企総","必須\n（新規）","必須\n（新規以外）","桁数","桁数以下","属性","範囲","相関","エラー項目名","固有エラーメッセージ",null,null,"IN1","アドレス","Offset\nBase","Offset\nRow","Offset\nCol"]
[{"$f":"IF(C3=\"\",\"\",ROW()-2)","v":1},"通知種別","通知種別","処理種別",null,"表示","表示","○","ラジオボタン",null,"－","－",null,"黄色","黄色","必須","必須",1,null,null,null,null,null,null,"デフォルト：新規申込","IN1_TCH_SHUBETU","_TCH_SHUBETU","$AD$1"]
[{"$f":"IF(C4=\"\",\"\",ROW()-2)","v":2},"別紙様式","別紙様式","－",null,"表示","表示",null,"テキスト","通知種別に応じて可変","－",null,null,null,null,null,null,null,null,null,null,null,null,null,"文言制御シート参照","IN1_BESI_YOSIKI","_BESI_YOSIKI","$A$3"]
[3,"申込書名称","申込書名称","－",null,"表示","表示",null,"テキスト","通知種別に応じて可変","－",null,null,null,null,null,null,null,null,null,null,null,null,null,"文言制御シート参照","IN1_MSKM_NM","_MSKM_NM","$A$5"]
[4,"様式文言","様式文言","－",null,"表示","表示",null,"テキスト","通知種別に応じて可変","－",null,null,null,null,null,null,null,null,null,null,null,null,null,"文言制御シート参照","IN1_YOSIKI_MNGN","_YOSIKI_MNGN","$A$9"]
[5,{"$f":"VLOOKUP(VALUE('別紙様式(企総)'!$AD$2&'別紙様式(企総)'!$AD$1),文言制御,5,0)","v":"追順番号"},{"$f":"VLOOKUP(VALUE('別紙様式(企総)'!$AD$2&'別紙様式(企総)'!$AD$1),文言制御,5,0)&\"（タイトル）\"","v":"追順番号（タイトル）"},null,null,"表示","表示",null,"テキスト","追順番号\n保険証券番号","－",null,null,null,null,null,null,null,null,null,null,null,null,null,"新規：「追順番号」\n新規以外：「保険証券番号」","IN1_OIBAN_TITL","_OIBAN_TITL","$U$6"]
[6,{"$f":"VLOOKUP(VALUE('別紙様式(企総)'!$AD$2&'別紙様式(企総)'!$AD$1),文言制御,5,0)","v":"追順番号"},{"$f":"VLOOKUP(VALUE('別紙様式(企総)'!$AD$2&'別紙様式(企総)'!$AD$1),文言制御,5,0)","v":"追順番号"},"証券番号－年\n証券番号－一連番号","年：先頭2桁\n一連番号：右6桁","表示","表示","○","Ｔボックス","XX-XXXXXX形式","00-000000",null,99999999,"黄色","黄色","必須","必須",null,null,null,null,null,{"$f":"VLOOKUP(VALUE('別紙様式(企総)'!$AD$2&'別紙様式(企総)'!$AD$1),文言制御,5,0)","v":"追順番号"},null,"新規：「追順番号」\n新規以外：「保険証券番号」","IN1_OIBAN_NO","_OIBAN_NO","$X$6"]
[7,"特約コード","特約コード","証券番号－シッパー",null,"非表示","表示","○","Ｔボックス","XXXXXXXXX形式","0000000",null,"999999999",null,"黄色","必須","必須",9,null,"半角数字",null,null,"特約コード",null,null,"IN1_TYK_CD","_TYK_CD","$X$7"]
[8,"申込年月日","申込年月日","保険申込日",null,"表示","表示","○","Ｔボックス","yyyy年m月d日形式","日付（yyyy年m月d日）",null,"yyyy/m/d","黄色","黄色","必須","必須",null,null,"有効日付",null,null,"申込年月日",null,null,"IN1_MSKMBI_YMD","_MSKMBI_YMD","$X$8"]
[9,"変更番号","変更番号","－",null,"表示※","表示","○","Ｔボックス",null,null,null,null,"桃色","桃色",null,null,null,null,null,null,null,"変更番号",null,"新規：非表示\n新規以外：表示","IN1_HENK_NO","_HENK_NO","$X$9"]
[10,"内諾発効日","内諾発効日","－",null,"表示","表示","○","Ｔボックス","yyyy年m月d日形式","日付（yyyy年m月d日）",null,"yyyy/m/d","桃色","桃色",null,null,null,null,"有効日付",null,null,"内諾発効日",null,null,"IN1_NINBI_YMD","_NINBI_YMD","$V$12"]
[11,"内諾番号","内諾番号","内諾番号",null,"表示","表示","○","Ｔボックス","XX-XXXXXX形式","00-000000",null,"99999999","緑色","緑色",null,null,8,null,"半角数字",null,null,"内諾番号","入力は8桁でお願いします。\n年2桁と一連番号6桁を連続して入力してください。",null,"IN1_NDK_NO","_NDK_NO","$V$13"]
[12,"事前承認番号","事前承認番号","－",null,"表示※","表示","○","Ｔボックス",null,null,null,null,"桃色","桃色",null,null,8,null,"半角数字",null,null,"事前承認番号","入力は8桁でお願いします。\n年2桁と一連番号6桁を連続して入力してください。","新規：非表示\n新規以外：表示","IN1_JIZEN_SHONINNO","_JIZEN_SHONINNO","$V$14"]
[13,"申込人","申込人（コード）","証券番号－シッパー\n申込者",null,"表示","表示","○","Ｔボックス","(XXXXXXXXX)形式","\"(\"000000000\")\"",null,999999999,"黄色","黄色","必須","必須",9,null,"半角数字",null,null,"申込人",null,null,"IN1_MSKMN_SPRCD","_MSKMN_SPRCD","$D$13"]
[14,"申込人","申込人（住所）","－",null,"表示","表示","○","Ｔボックス",null,null,null,null,"桃色","桃色",null,null,null,null,null,null,null,null,null,null,"IN1_MSKMN_ADDR","_MSKMN_ADDR","$D$14"]
[15,"申込人","申込人（企業名）","－",null,"非表示","表示","○","Ｔボックス",null,null,null,null,null,"桃色",null,null,null,null,null,null,null,null,null,null,"IN1_MSKMN_CORP","_MSKMN_CORP","$D$15"]
[16,"申込人","申込人（役職名）","－",null,"非表示","表示","○","Ｔボックス",null,null,null,null,null,"桃色",null,null,null,null,null,null,null,null,null,null,"IN1_MSKMN_YAKU","_MSKMN_YAKU","$D$16"]
[17,"申込人","申込人（氏名）","－",null,"表示","表示","○","Ｔボックス",null,null,null,null,"桃色","桃色",null,null,null,null,null,null,null,null,null,null,"IN1_MSKMN_NM","_MSKMN_NM","$D$17"]
[18,"被保険者","被保険者（コード）","被保険者","値が未入力かつ、チェックボックス「申込人に同じ」がチェックされている場合⇒申込人／コードを使用","表示","表示","○","Ｔボックス","(XXXXXXXXX)形式","\"(\"000000000\")\"",null,999999999,"紫色","紫色",null,null,9,null,"半角数字",null,null,"被保険者",null,null,"IN1_HHK_SPRCD","_HHK_SPRCD","$D$18"]
[19,"被保険者","被保険者（住所）","－",null,"表示","表示","○","Ｔボックス",null,null,null,null,"桃色","桃色",null,null,null,null,null,null,null,null,null,null,"IN1_HHK_ADDR","_HHK_ADDR","$D$19"]
[20,"被保険者","被保険者（企業名）","－",null,"非表示","表示","○","Ｔボックス",null,null,null,null,null,"桃色",null,null,null,null,null,null,null,null,null,null,"IN1_HHK_CORP","_HHK_CORP","$D$20"]
[21,"被保険者","被保険者（役職名）","－",null,"非表示","表示","○","Ｔボックス",null,null,null,null,null,"桃色",null,null,null,null,null,null,null,null,null,null,"IN1_HHK_YAKU","_HHK_YAKU","$D$21"]
[22,"被保険者","被保険者（氏名）","－",null,"表示","表示","○","Ｔボックス",null,null,null,null,"桃色","桃色",null,null,null,null,null,null,null,null,null,null,"IN1_HHK_NM","_HHK_NM","$D$22"]
[23,"被保険者","被保険者（チェックボックス）","－",null,"非表示","表示","○","Ｃボックス",null,"－","－",null,null,null,null,null,null,null,null,null,null,null,null,null,"IN1_HHK_FLG","_HHK_FLG","$AD$19"]
[24,"保険金受取人","保険金受取人（コード）","保険金受取人","値が未入力かつ、チェックボックスがチェックされている場合\n設備：被保険者コードを使用\n企総：申込人コードを使用","表示","表示","○","Ｔボックス","(XXXXXXXXX)形式","\"(\"000000000\")\"",null,999999999,"紫色","紫色",null,null,9,null,"半角数字",null,null,"保険金受取人",null,null,"IN1_UKENIN_SPRCD","_UKENIN_SPRCD","$T$18"]
[25,"保険金受取人","保険金受取人（住所）","－",null,"表示","表示","○","Ｔボックス",null,null,null,null,"桃色","桃色",null,null,null,null,null,null,null,null,null,null,"IN1_UKENIN_ADDR","_UKENIN_ADDR","$R$19"]
[26,"保険金受取人","保険金受取人（企業名）","－",null,"非表示","表示","○","Ｔボックス",null,null,null,null,null,"桃色",null,null,null,null,null,null,null,null,null,null,"IN1_UKENIN_CORP","_UKENIN_CORP","$R$20"]
[27,"保険金受取人","保険金受取人（役職名）","－",null,"非表示","表示","○","Ｔボックス",null,null,null,null,null,"桃色",null,null,null,null,null,null,null,null,null,null,"IN1_UKENIN_YAKU","_UKENIN_YAKU","$R$21"]
[28,"保険金受取人","保険金受取人（氏名）","－",null,"表示","表示","○","Ｔボックス",null,null,null,null,"桃色","桃色",null,null,null,null,null,null,null,null,null,null,"IN1_UKENIN_NM","_UKENIN_NM","$R$22"]
[29,"保険金受取人","保険金受取人（チェックボックス）","－",null,"表示","表示","○","Ｃボックス",null,"－","－",null,null,null,null,null,null,null,null,null,null,null,null,null,"IN1_UKENIN_FLG","_UKENIN_FLG","$AD$18"]
[30,"契約の相手方","契約の相手方（コード）","売契約相手国\n売契約相手方",null,"表示","表示","○","Ｔボックス","XXX-XXXXXXX形式","000\"-\"0000000",null,null,"紫色","紫色",null,null,10,null,"半角数字",null,null,"契約の相手方","入力は10桁でお願いします。\n国コード3桁とバイヤーコード7桁を連続して入力してください。",null,"IN1_AI_BYRCD","_AI_BYRCD","$Y$24"]
[31,"契約の相手方","契約の相手方（国名称）","－",null,"表示","表示",null,"Ｔボックス","コードの先頭3桁をキーにコード一覧（国）から名称取得",null,"=IFERROR(VLOOKUP(VALUE(LEFT([コード],3)),国x,2,0),\"\")",null,null,null,null,null,null,null,null,null,null,null,null,null,"IN1_AI_KNNM","_AI_KNNM","$Y$25"]
[32,"契約の相手方","契約の相手方（氏名）","－",null,"表示","表示","○","Ｔボックス",null,null,null,null,"桃色","桃色",null,null,null,null,null,null,null,null,null,null,"IN1_AI_NM","_AI_NM","$F$24"]
[33,"契約の相手方","契約の相手方（住所）","－",null,"表示","表示","○","Ｔボックス",null,null,null,null,"桃色","桃色",null,null,null,null,null,null,null,null,null,null,"IN1_AI_ADDR","_AI_ADDR","$F$25"]
[34,"契約の相手方","契約の相手方（住所枝）","－",null,"表示","表示","○","Ｔボックス",null,"00",null,null,"桃色","桃色",null,null,2,null,"半角数字",null,null,"契約の相手方（住所枝）",null,null,"IN1_AI_ADDR_EDA","_AI_ADDR_EDA","$X$25"]
[35,"契約の相手方","契約の相手方（格付）","－",null,"表示","表示","○","Ｔボックス",null,null,null,null,"桃色","桃色",null,null,null,null,null,"相手方格付.内容",null,"契約の相手方（格付）",null,null,"IN1_AI_KKZ","_AI_KKZ","$AC$25"]
[36,"代金等支払人","代金等支払人（コード）","支払人",null,"表示","表示","○","Ｔボックス","XXX-XXXXXXX形式","000\"-\"0000000",null,null,"青色","青色",null,null,10,null,"半角数字",null,null,"代金等支払人","入力は10桁でお願いします。\n国コード3桁とバイヤーコード7桁を連続して入力してください。",null,"IN1_SHR_BYRCD","_SHR_BYRCD","$Y$26"]
[37,"代金等支払人","代金等支払人（国名称）","－",null,"表示","表示",null,"Ｔボックス","コードの先頭3桁をキーにコード一覧（国）から名称取得",null,"=IFERROR(VLOOKUP(VALUE(LEFT([コード],3)),国x,2,0),\"\")",null,null,null,null,null,null,null,null,null,null,null,null,null,"IN1_SHR_KNNM","_SHR_KNNM","$Y$27"]
[38,"代金等支払人","代金等支払人（氏名）","－",null,"表示","表示","○","Ｔボックス",null,null,null,null,"桃色","桃色",null,null,null,null,null,null,null,null,null,null,"IN1_SHR_NM","_SHR_NM","$F$26"]
[39,"代金等支払人","代金等支払人（住所）","－",null,"表示","表示","○","Ｔボックス",null,null,null,null,"桃色","桃色",null,null,null,null,null,null,null,null,null,null,"IN1_SHR_ADDR","_SHR_ADDR","$F$27"]
[40,"代金等支払人","代金等支払人（住所枝）","－",null,"表示","表示","○","Ｔボックス",null,"00",null,null,"桃色","桃色",null,null,2,null,"半角数字",null,null,"代金等支払人（住所枝）",null,null,"IN1_SHR_ADDR_EDA","_SHR_ADDR_EDA","$X$27"]
[41,"代金等支払人","代金等支払人（格付）","－",null,"表示","表示","○","Ｔボックス",null,null,null,null,"桃色","桃色",null,null,null,null,null,"支払人格付.内容",null,"代金等支払人（格付）",null,null,"IN1_SHR_KKZ","_SHR_KKZ","$AC$27"]
[42,"保証人","保証人（コード）","保証人",null,"表示","表示","○","Ｔボックス","XXX-XXXXXXX形式","000\"-\"0000000",null,null,"青色","青色",null,null,10,null,"半角数字",null,null,"保証人","入力は10桁でお願いします。\n国コード3桁とバイヤーコード7桁を連続して入力してください。",null,"IN1_HSHNIN_BYRCD","_HSHNIN_BYRCD","$Y$28"]
[43,"保証人","保証人（国名称）","－",null,"表示","表示",null,"テキスト","コードの先頭3桁をキーにコード一覧（国）から名称取得",null,"=IFERROR(VLOOKUP(VALUE(LEFT([コード],3)),国x,2,0),\"\")",null,null,null,null,null,null,null,null,null,null,null,null,null,"IN1_HSHNIN_KNNM","_HSHNIN_KNNM","$Y$29"]
[44,"保証人","保証人（氏名）","－",null,"表示","表示","○","Ｔボックス",null,null,null,null,"桃色","桃色",null,null,null,null,null,null,null,null,null,null,"IN1_HSHNIN_NM","_HSHNIN_NM","$F$28"]
[45,"保証人","保証人（住所）","－",null,"表示","表示","○","Ｔボックス",null,null,null,null,"桃色","桃色",null,null,null,null,null,null,null,null,null,null,"IN1_HSHNIN_ADDR","_HSHNIN_ADDR","$F$29"]
[46,"保証人","保証人（住所枝）","－",null,"表示","表示","○","Ｔボックス",null,"00",null,null,"桃色","桃色",null,null,2,null,"半角数字",null,null,"保証人（住所枝）",null,null,"IN1_HSHNIN_ADDR_EDA","_HSHNIN_ADDR_EDA","$X$29"]
[47,"保証人","保証人（格付）","－",null,"表示","表示","○","Ｔボックス",null,null,null,null,"桃色","桃色",null,null,null,null,null,"保証人格付.内容",null,"保証人（格付）",null,null,"IN1_HSHNIN_KKZ","_HSHNIN_KKZ","$AC$29"]
[48,"仕向国","仕向国（コード）","仕向国",null,"表示","表示","○","Ｔボックス","(XXX)形式","\"(\"000\")\"",null,null,"青色","青色",null,null,3,null,"半角数字",null,null,"仕向国",null,null,"IN1_SMK_KNCD","_SMK_KNCD","$H$31"]
[49,"仕向国","仕向国（国名称）","－",null,"表示","表示",null,"テキスト","コード一覧から名称取得",null,"=IFERROR(VLOOKUP([コード],国x,2,0),\"\")",null,null,null,null,null,null,null,null,null,null,"仕向国（国名称）",null,null,"IN1_SMK_KNNM","_SMK_KNNM","$B$31"]
[50,"船積国","船積国（コード）","船積国",null,"表示","表示","○","Ｔボックス","(XXX)形式","\"(\"000\")\"",null,null,"緑色","緑色",null,null,3,null,"半角数字",null,null,"船積国",null,null,"IN1_FZUMI_KNCD","_FZUMI_KNCD","$P$31"]
[51,"船積国","船積国（国名称）","－",null,"表示","表示",null,"テキスト","コード一覧から名称取得",null,"=IFERROR(VLOOKUP([コード],国x,2,0),\"\")",null,null,null,null,null,null,null,null,null,null,"船積国（国名称）",null,null,"IN1_FZUMI_KNNM","_FZUMI_KNNM","$J$31"]
[52,"買契約相手国","買契約相手国（コード）","買契約相手国",null,"表示","表示","○","Ｔボックス","(XXX)形式","\"(\"000\")\"",null,null,"緑色","緑色",null,null,3,null,"半角数字",null,null,"買契約相手国",null,null,"IN1_KKEI_AI_KNCD","_KKEI_AI_KNCD","$X$31"]
[53,"買契約相手国","買契約相手国（国名称）","－",null,"表示","表示",null,"テキスト","コード一覧から名称取得",null,"=IFERROR(VLOOKUP([コード],国x,2,0),\"\")",null,null,null,null,null,null,null,null,null,null,"買契約相手国（国名称）",null,null,"IN1_KKEI_AI_KNNM","_KKEI_AI_KNNM","$R$31"]
[54,"受渡条件","受渡条件","受渡条件",null,"表示","表示","○","プルダウン","コード一覧：受渡条件",null,null,null,"青色","青色",null,null,null,null,null,"受渡条件.内容",null,"受渡条件",null,null,"IN1_UKE_JKN","_UKE_JKN","$Z$31"]
[55,"契約締結日","契約締結日","輸出契約等締結日",null,"表示","表示","○","Ｔボックス","yyyy年m月d日形式","日付（yyyy年m月d日）",null,null,"黄色","黄色","必須",null,null,null,"有効日付",null,null,"契約締結日",null,null,"IN1_KEI_TKTUBI_YMD","_KEI_TKTUBI_YMD","$F$32"]
[56,"契約発効日","契約発効日","輸出契約等発効日",null,"表示","表示","○","Ｔボックス","yyyy年m月d日形式","日付（yyyy年m月d日）",null,null,"緑色","緑色",null,null,null,null,"有効日付",null,null,"契約発効日",null,null,"IN1_KEI_HAKKOBI_YMD","_KEI_HAKKOBI_YMD","$F$33"]
[57,"船積時期","船積時期／自","－",null,"表示","表示","○","Ｔボックス","yyyy年m月d日形式","日付（yyyy年m月d日）",null,null,"桃色","桃色",null,null,null,null,"有効日付",null,null,"船積時期／自",null,null,"IN1_FZUMI_JIKI_JI","_FZUMI_JIKI_JI","$M$32"]
[58,"船積時期","船積時期／至","－",null,"表示","表示","○","Ｔボックス","yyyy年m月d日形式","日付（yyyy年m月d日）",null,null,"桃色","桃色",null,null,null,null,"有効日付",null,null,"船積時期／至",null,null,"IN1_FZUMI_JIKI_SI","_FZUMI_JIKI_SI","$M$33"]
[59,"HSコード","HSコード","貨物",null,"表示","表示","○","Ｔボックス","(XXXXXX)形式","\"(\"@\")\"",null,null,"青色","青色",null,null,6,null,"半角数字",null,null,"HSコード",null,null,"IN1_KMOTU_CD","_KMOTU_CD","$AA$33"]
[60,"貨物名称","貨物名称","－",null,"表示","表示","○","Ｔボックス",null,null,null,null,"桃色","桃色",null,null,null,null,null,null,null,"貨物名称",null,null,"IN1_KMOTU_NM","_KMOTU_NM","$Q$33"]
[61,"輸出契約番号","輸出契約番号","輸出契約等番号",null,"表示","表示","○","Ｔボックス",null,"文字列",null,null,"黄色","黄色","必須",null,null,25,"半角",null,null,"輸出契約番号",null,null,"IN1_YS_KEINO","_YS_KEINO","$B$35"]
[62,"リファレンス番号","リファレンス番号","リファレンス番号",null,"表示","表示","○","Ｔボックス",null,null,null,null,"緑色","緑色",null,null,null,15,"半角",null,null,"リファレンス番号",null,null,"IN1_REF_NO","_REF_NO","$J$35"]
[63,"部門コード","部門ｺｰﾄﾞ","被保険者部門",null,"表示","表示","○","Ｔボックス",null,"文字列",null,null,"緑色","緑色",null,null,null,6,"半角",null,null,"部門ｺｰﾄﾞ",null,null,"IN1_BUMON_CD","_BUMON_CD","$O$35"]
[64,"契約形態","契約形態","契約形態",null,"表示","表示","○","プルダウン","選択：輸出,仲介",null,null,null,"黄色","黄色","必須","必須",null,null,null,"契約形態.内容",null,"契約形態",null,null,"IN1_KEI_KEITAI","_KEI_KEITAI","$U$35"]
[65,"船積後付保率（非常）","船積後付保率（非常）","船積後付保率（非常）",null,"表示","表示","○","プルダウン","選択：97.5%,100%","パーセンテージ（.0%）",null,null,"紫色","紫色",null,null,null,null,null,"船積後付保率（非常）.内容",null,"船積後付保率（非常）",null,null,"IN1_FGO_HJ_FHRT","_FGO_HJ_FHRT","$AB$35"]
[66,"通貨１","通貨","通貨",null,"表示","表示","○","プルダウン","コード一覧：通貨",null,null,null,"桃色","桃色",null,null,null,null,null,"通貨コード.表示",null,"通貨",null,null,"IN1_TKA1_TKA_CD","_TKA1_TKA_CD","$B$38"]
[{"$f":"IF(C69=\"\",\"\",ROW()-2)","v":67},"通貨１","契約金額元本","輸出契約等元本",null,"表示","表示","○","Ｔボックス",null,"通貨（.00)",null,null,"桃色","桃色",null,null,null,13.2,"半角小数",null,null,"契約金額元本",null,null,"IN1_TKA1_KEI_KG_GPN","_TKA1_KEI_KG_GPN","$D$38"]
[68,"通貨１","船積前対象額元本\n（FOB価額）","船積前保険対象額",null,"表示","表示","○","Ｔボックス",null,"通貨（.00)",null,null,"桃色","桃色",null,null,null,13.2,"半角小数",null,null,"船積前対象額元本（FOB価額）",null,null,"IN1_TKA1_FMAE_HKTSG_GPN","_TKA1_FMAE_HKTSG_GPN","$I$38"]
[69,"通貨１","船積後対象額／元本","船積後保険対象額",null,"表示","表示","○","Ｔボックス",null,"通貨（.00)",null,null,"桃色","桃色",null,null,null,13.2,"半角小数",null,null,"船積後対象額／元本",null,null,"IN1_TKA1_FGO_HKTSG_GPN","_TKA1_FGO_HKTSG_GPN","$O$38"]
[70,"通貨１","船積後対象額／金利","－",null,"表示","表示","○","Ｔボックス",null,"通貨（.00)",null,null,"桃色","桃色",null,null,null,13.2,"半角小数",null,null,"船積後対象額／金利",null,null,"IN1_TKA1_FGO_HKTSG_KNR","_TKA1_FGO_HKTSG_KNR","$T$38"]
[71,"通貨１","船積後対象額／合計","－",null,"表示","表示",null,"テキスト","元本+金利の合計（自動計算）","通貨（.00)","=[元本]＋[金利]",null,"桃色","桃色",null,null,null,null,null,null,null,"船積後対象額／合計",null,null,"IN1_TKA1_FGO_HKTSG_SUM","_TKA1_FGO_HKTSG_SUM","$Y$38"]
[72,"通貨２","通貨","－",null,"表示","表示","○","プルダウン","コード一覧：通貨",null,null,null,"桃色","桃色",null,null,null,null,null,"通貨コード.表示",null,"通貨",null,null,"IN1_TKA2_TKA_DSP","_TKA2_TKA_DSP","$B$39"]
[73,"通貨２","契約金額元本","－",null,"表示","表示","○","Ｔボックス",null,"通貨（.00)",null,null,"桃色","桃色",null,null,null,13.2,"半角小数",null,null,"契約金額元本",null,null,"IN1_TKA2_KEI_KG_GPN","_TKA2_KEI_KG_GPN","$D$39"]
[74,"通貨２","船積前対象額元本\n（FOB価額）","－",null,"表示","表示","○","Ｔボックス",null,"通貨（.00)",null,null,"桃色","桃色",null,null,null,13.2,"半角小数",null,null,"船積前対象額元本（FOB価額）",null,null,"IN1_TKA2_FMAE_HKTSG_GPN","_TKA2_FMAE_HKTSG_GPN","$I$39"]
[75,"通貨２","船積後対象額／元本","－",null,"表示","表示","○","Ｔボックス",null,"通貨（.00)",null,null,"桃色","桃色",null,null,null,13.2,"半角小数",null,null,"船積後対象額／元本",null,null,"IN1_TKA2_FGO_HKTSG_GPN","_TKA2_FGO_HKTSG_GPN","$O$39"]
[76,"通貨２","船積後対象額／金利","－",null,"表示","表示","○","Ｔボックス",null,"通貨（.00)",null,null,"桃色","桃色",null,null,null,13.2,"半角小数",null,null,"船積後対象額／金利",null,null,"IN1_TKA2_FGO_HKTSG_KNR","_TKA2_FGO_HKTSG_KNR","$T$39"]
[77,"通貨２","船積後対象額／合計","－",null,"表示","表示",null,"テキスト","元本+金利の合計（自動計算）","通貨（.00)","=[元本]＋[金利]",null,"桃色","桃色",null,null,null,null,null,null,null,"船積後対象額／合計",null,null,"IN1_TKA2_FGO_HKTSG_SUM","_TKA2_FGO_HKTSG_SUM","$Y$39"]
[78,"通貨３","通貨","－",null,"表示","表示","○","プルダウン","コード一覧：通貨",null,null,null,"桃色","桃色",null,null,null,null,null,"通貨コード.表示",null,"通貨",null,null,"IN1_TKA3_TKA_DSP","_TKA3_TKA_DSP","$B$40"]
[79,"通貨３","契約金額元本","－",null,"表示","表示","○","Ｔボックス",null,"通貨（.00)",null,null,"桃色","桃色",null,null,null,13.2,"半角小数",null,null,"契約金額元本",null,null,"IN1_TKA3_KEI_KG_GPN","_TKA3_KEI_KG_GPN","$D$40"]
[80,"通貨３","船積前対象額元本\n（FOB価額）","－",null,"表示","表示","○","Ｔボックス",null,"通貨（.00)",null,null,"桃色","桃色",null,null,null,13.2,"半角小数",null,null,"船積前対象額元本（FOB価額）",null,null,"IN1_TKA3_FMAE_HKTSG_GPN","_TKA3_FMAE_HKTSG_GPN","$I$40"]
[81,"通貨３","船積後対象額／元本","－",null,"表示","表示","○","Ｔボックス",null,"通貨（.00)",null,null,"桃色","桃色",null,null,null,13.2,"半角小数",null,null,"船積後対象額／元本",null,null,"IN1_TKA3_FGO_HKTSG_GPN","_TKA3_FGO_HKTSG_GPN","$O$40"]
[82,"通貨３","船積後対象額／金利","－",null,"表示","表示","○","Ｔボックス",null,"通貨（.00)",null,null,"桃色","桃色",null,null,null,13.2,"半角小数",null,null,"船積後対象額／金利",null,null,"IN1_TKA3_FGO_HKTSG_KNR","_TKA3_FGO_HKTSG_KNR","$T$40"]
[83,"通貨３","船積後対象額／合計","－",null,"表示","表示",null,"テキスト","元本+金利の合計（自動計算）","通貨（.00)","=[元本]＋[金利]",null,"桃色","桃色",null,null,null,null,null,null,null,"船積後対象額／合計",null,null,"IN1_TKA3_FGO_HKTSG_SUM","_TKA3_FGO_HKTSG_SUM","$Y$40"]
[84,"通貨４","通貨","－",null,"表示","表示","○","プルダウン","コード一覧：通貨",null,null,null,"桃色","桃色",null,null,null,null,null,"通貨コード.表示",null,"通貨",null,null,"IN1_TKA4_TKA_DSP","_TKA4_TKA_DSP","$B$41"]
[85,"通貨４","契約金額元本","－",null,"表示","表示","○","Ｔボックス",null,"通貨（.00)",null,null,"桃色","桃色",null,null,null,13.2,"半角小数",null,null,"契約金額元本",null,null,"IN1_TKA4_KEI_KG_GPN","_TKA4_KEI_KG_GPN","$D$41"]
[86,"通貨４","船積前対象額元本\n（FOB価額）","－",null,"表示","表示","○","Ｔボックス",null,"通貨（.00)",null,null,"桃色","桃色",null,null,null,13.2,"半角小数",null,null,"船積前対象額元本（FOB価額）",null,null,"IN1_TKA4_FMAE_HKTSG_GPN","_TKA4_FMAE_HKTSG_GPN","$I$41"]
[87,"通貨４","船積後対象額／元本","－",null,"表示","表示","○","Ｔボックス",null,"通貨（.00)",null,null,"桃色","桃色",null,null,null,13.2,"半角小数",null,null,"船積後対象額／元本",null,null,"IN1_TKA4_FGO_HKTSG_GPN","_TKA4_FGO_HKTSG_GPN","$O$41"]
[88,"通貨４","船積後対象額／金利","－",null,"表示","表示","○","Ｔボックス",null,"通貨（.00)",null,null,"桃色","桃色",null,null,null,13.2,"半角小数",null,null,"船積後対象額／金利",null,null,"IN1_TKA4_FGO_HKTSG_KNR","_TKA4_FGO_HKTSG_KNR","$T$41"]
[89,"通貨４","船積後対象額／合計","－",null,"表示","表示",null,"テキスト","元本+金利の合計（自動計算）","通貨（.00)","=[元本]＋[金利]",null,"桃色","桃色",null,null,null,null,null,null,null,"船積後対象額／合計",null,null,"IN1_TKA4_FGO_HKTSG_SUM","_TKA4_FGO_HKTSG_SUM","$Y$41"]
[90,"希望オプション","希望OP／無","－",null,"表示","表示","○","Ｃボックス","チェックボックス形式","－","－",null,"緑色","緑色","相関必須",null,null,null,null,null,null,"希望OP／無",null,"相関必須について：\n「無」、またはそれ以外の要素のどちらかがチェックされていること","IN1_OP_NASI","_OP_NASI","OBJECT"]
[91,"希望オプション","希望OP／外貨建対応","特約商品－外貨建",null,"表示","表示","○","Ｃボックス","チェックボックス形式","－","－",null,"緑色","緑色","相関必須",null,null,null,null,null,null,"希望OP／外貨建対応",null,null,"IN1_OP_GKADT","_OP_GKADT","OBJECT"]
[92,"希望オプション","希望OP／プラント等増加費用","増加費用てん補種別","システム導出","表示","表示","○","Ｃボックス","チェックボックス形式","－","－",null,"緑色","緑色","相関必須",null,null,null,null,null,null,"希望OP／プラント等増加費用",null,null,"IN1_OP_ZKHI","_OP_ZKHI","OBJECT"]
[93,"希望オプション","希望OP／エスカレ","特殊契約－エスカレーションクローズ","無視","表示","表示","○","Ｃボックス","チェックボックス形式","－","－",null,"緑色","緑色","相関必須",null,null,null,null,null,null,"希望OP／エスカレ",null,null,"IN1_OP_ESCA","_OP_ESCA","OBJECT"]
[94,"希望オプション","希望OP／その他","－",null,"表示","表示","○","Ｃボックス","チェックボックス形式","－","－",null,"緑色","緑色","相関必須",null,null,null,null,null,null,"希望OP／その他",null,null,"IN1_OP_SONOTA","_OP_SONOTA","OBJECT"]
[95,"付保率","付保率","－",null,"表示","非表示","○","Ｔボックス","%形式","パーセンテージ（0）",null,null,"桃色",null,null,null,null,2,"半角数字",null,null,"付保率",null,null,"IN1_FHRT","_FHRT","$H$43"]
[96,"対象工事","対象工事／開始予定日","－",null,"表示","非表示","○","Ｔボックス","yyyy年m月d日形式","日付（yyyy年m月d日）",null,null,"桃色",null,null,null,null,null,"有効日付",null,null,"対象工事／開始予定日",null,null,"IN1_KJI_KAIBI_YMD","_KJI_KAIBI_YMD","$O$43"]
[97,"対象工事","対象工事／終了予定日","－",null,"表示","非表示","○","Ｔボックス","yyyy年m月d日形式","日付（yyyy年m月d日）",null,null,"桃色",null,null,null,null,null,"有効日付",null,null,"対象工事／終了予定日",null,null,"IN1_KJI_SHUBI_YMD","_KJI_SHUBI_YMD","$O$44"]
[98,"保険料支払方法","保険料支払方法","－",null,"表示","非表示","○","プルダウン","選択：一括払,分割払","－","－",null,"黄色",null,"必須",null,null,null,null,"保険料支払方法.内容",null,"保険料支払方法",null,null,"IN1_HKK_SHR_HOHO","_HKK_SHR_HOHO","$S$44"]
[99,"第２回支払予定日","第２回支払予定日","－",null,"表示","表示","○","Ｔボックス","(第2回支払予定日：yyyy年mm月dd日形式)形式","\"(第2回支払予定日：\" yyyy\"年\"mm\"月\"dd\"日)\"",null,null,"桃色",null,null,null,null,null,"有効日付",null,null,"支払予定日",null,"支払方法を「分割払」選択時に、\n支払予定日入力時","IN1_2ND_SHRYOTBI_YMD","_2ND_SHRYOTBI_YMD","$V$44"]
[100,"他の保険契約","他の保険契約","他の保険契約","無視","表示","表示","○","ラジオボタン","選択：無,有","－","－",null,"緑色","黄色","必須","必須",null,null,null,null,null,"他の保険契約",null,"デフォルト：無","IN1_TA_HKKEI","_TA_HKKEI","$AD$45"]
[101,"保険契約の名称","保険契約の名称","－",null,"表示","表示","○","Ｔボックス",null,null,null,null,"緑色","緑色",null,null,null,null,null,null,null,"保険契約の名称",null,"他の保険契約が有の場合、\n項目名含めて表示","IN1_HKTK_NM","_HKTK_NM","$M$45"]
[102,"その他","その他","－",null,"表示","表示","○","Ｔボックス",null,null,null,null,"桃色","桃色",null,null,null,null,null,null,null,"その他",null,null,"IN1_SONOTA","_SONOTA","$E$46"]
[103,"連絡先","連絡先（担当部課名）","－",null,"表示","表示","○","Ｔボックス",null,null,null,null,"桃色","桃色",null,null,null,null,null,null,null,"連絡先（担当部課名）",null,null,"IN1_RNRAK_TNTBUKA","_RNRAK_TNTBUKA","$H$47"]
[104,"連絡先","連絡先（担当者名）","－",null,"表示","表示","○","Ｔボックス",null,null,null,null,"桃色","桃色",null,null,null,null,null,null,null,"連絡先（担当者名）",null,null,"IN1_RNRAK_TNTSHA","_RNRAK_TNTSHA","$H$48"]
[105,"連絡先","連絡先（電話番号）","－",null,"表示","表示","○","Ｔボックス",null,null,null,null,"桃色","桃色",null,null,null,null,null,null,null,"連絡先（電話番号）",null,null,"IN1_RNRAK_TEL","_RNRAK_TEL","$H$49"]
[106,"連絡先","連絡先（E-mail）","－",null,"表示","表示","○","Ｔボックス",null,null,null,null,"桃色","桃色",null,null,null,null,null,null,null,"連絡先（E-mail）",null,null,"IN1_RNRAK_ML","_RNRAK_ML","$Q$49"]
[107,"了解事項","了解事項","－",null,"表示","表示",null,"テキスト","訂正内変選択時、固定文言を表示","－",null,null,null,null,null,null,null,null,null,null,null,"了解事項",null,null,"IN1_RYKAI_JIKOU","_RYKAI_JIKOU","$A$51"]
[108,"NEXI入力欄","受理局","証券番号－本支店\n受理本支店",null,"表示","表示","○","Ｔボックス",null,"－",null,null,"黄色","黄色","NEXI必須","NEXI必須",2,null,"半角数字",null,null,"受理局",null,null,"IN1_JHNS_CD","_JHNS_CD","$AL$3"]
[109,"NEXI入力欄","受理日","受理日",null,"表示","表示","○","Ｔボックス",null,"－",null,null,"黄色","黄色","NEXI必須","NEXI必須",null,null,"有効日付",null,null,"受理日",null,null,"IN1_JRBI_YMD","_JRBI_YMD","$AL$4"]
[110,"NEXI入力欄","受理番号","受理番号",null,"表示","表示","○","Ｔボックス",null,"－",null,null,"黄色","黄色","NEXI必須","NEXI必須",5,null,"半角数字",null,null,"受理番号",null,null,"IN1_JR_NO","_JR_NO","$AL$5"]

{"sheet":"シート項目定義（別紙）","index":10,"n_rows":183,"n_cols":31,"rows_kept":183,"cut":false,"hidden":true,"merged":[[180,13,180,14],[181,13,181,14],[182,13,182,14],[174,13,174,14],[175,13,175,14],[176,13,176,14],[177,13,177,14],[178,13,178,14],[179,13,179,14],[168,13,168,14],[169,13,169,14],[170,13,170,14],[171,13,171,14],[172,13,172,14],[173,13,173,14],[162,13,162,14],[163,13,163,14],[164,13,164,14],[165,13,165,14],[166,13,166,14],[167,13,167,14],[156,13,156,14],[157,13,157,14],[158,13,158,14],[159,13,159,14],[160,13,160,14],[161,13,161,14],[147,13,147,14],[148,13,148,14],[149,13,149,14],[150,13,150,14],[151,13,151,14],[152,13,152,14],[153,13,153,14],[154,13,154,14],[155,13,155,14],[38,24,157,24],[131,13,131,14],[141,13,141,14],[142,13,142,14],[143,13,143,14],[144,13,144,14],[145,13,145,14],[146,13,146,14],[132,13,132,14],[133,13,133,14],[134,13,134,14],[118,13,118,14],[119,13,119,14],[120,13,120,14],[121,13,121,14],[122,13,122,14],[108,13,108,14],[109,13,109,14],[110,13,110,14],[135,13,135,14],[136,13,136,14],[137,13,137,14],[138,13,138,14],[139,13,139,14],[140,13,140,14],[123,13,123,14],[124,13,124,14],[125,13,125,14],[126,13,126,14],[127,13,127,14],[128,13,128,14],[129,13,129,14],[130,13,130,14],[96,13,96,14],[97,13,97,14],[98,13,98,14],[84,13,84,14],[85,13,85,14],[86,13,86,14],[111,13,111,14],[112,13,112,14],[113,13,113,14],[114,13,114,14],[115,13,115,14],[116,13,116,14],[99,13,99,14],[100,13,100,14],[101,13,101,14],[102,13,102,14],[103,13,103,14],[104,13,104,14],[105,13,105,14],[106,13,106,14],[107,13,107,14],[117,13,117,14],[74,13,74,14],[60,13,60,14],[61,13,61,14],[62,13,62,14],[87,13,87,14],[88,13,88,14],[89,13,89,14],[90,13,90,14],[91,13,91,14],[92,13,92,14],[75,13,75,14],[76,13,76,14],[77,13,77,14],[78,13,78,14],[79,13,79,14],[80,13,80,14],[81,13,81,14],[82,13,82,14],[83,13,83,14],[93,13,93,14],[94,13,94,14],[95,13,95,14],[63,13,63,14],[69,13,69,14],[70,13,70,14],[71,13,71,14],[72,13,72,14],[73,13,73,14],[46,13,46,14],[47,13,47,14],[48,13,48,14],[49,13,49,14],[50,13,50,14],[51,13,51,14],[52,13,52,14],[53,13,53,14],[64,13,64,14],[65,13,65,14],[66,13,66,14],[67,13,67,14],[68,13,68,14],[54,13,54,14],[55,13,55,14],[56,13,56,14],[57,13,57,14],[58,13,58,14],[59,13,59,14],[40,13,40,14],[41,13,41,14],[42,13,42,14],[43,13,43,14],[44,13,44,14],[45,13,45,14],[34,13,34,14],[35,13,35,14],[36,13,36,14],[37,13,37,14],[38,13,38,14],[39,13,39,14],[28,13,28,14],[29,13,29,14],[30,13,30,14],[31,13,31,14],[32,13,32,14],[33,13,33,14],[22,13,22,14],[23,13,23,14],[24,13,24,14],[25,13,25,14],[26,13,26,14],[27,13,27,14],[16,13,16,14],[17,13,17,14],[18,13,18,14],[19,13,19,14],[20,13,20,14],[21,13,21,14],[10,13,10,14],[11,13,11,14],[12,13,12,14],[13,13,13,14],[14,13,14,14],[15,13,15,14],[4,13,4,14],[5,13,5,14],[6,13,6,14],[7,13,7,14],[8,13,8,14],[9,13,9,14],[0,15,0,23],[0,24,1,24],[0,25,1,25],[0,0,1,0],[0,1,1,1],[0,2,1,2],[0,3,0,4],[0,5,0,6],[0,7,1,7],[0,27,0,30],[2,13,2,14],[3,13,3,14],[0,8,1,8],[0,9,1,9],[0,10,1,10],[0,11,1,11],[0,12,1,12],[0,13,0,14]]}
["＃","項目分類","項目名","ファイル出力",null,"表示／非表示",null,"入力","UI","表示形式","セル書式","関数","入力形式","属性色",null,"入力チェック",null,null,null,null,null,null,null,null,"備考","VBA定義名","PREFIX","レイアウト"]
[null,null,null,"ファイル項目名","編集仕様","設備","企総",null,null,null,null,null,null,"設備","企総","必須\n（新規）","必須\n（新規以外）","桁数","桁数以下","属性","範囲","相関","エラー項目名","固有エラーメッセージ",null,null,"IN2","アドレス","Offset\nBase","Offset\nRow","Offset\nCol"]
[{"$f":"IF(C3=\"\",\"\",ROW()-2)","v":1},"枝情報","枝番","枝番",null,"表示","表示","○","Ｔボックス",null,"文字列",null,null,"黄色",null,"必須","必須",2,null,"半角数字",null,null,"枝番",null,"必須チェックについて：\n当シートの必須チェックについては、対象枝情報の枝番が入力されている場合にのみ実施","IN2_EDA#","_EDA#",null,"IN2_EDA",0,0]
[{"$f":"IF(C4=\"\",\"\",ROW()-2)","v":2},"枝情報","元枝番","－",null,"表示","表示","○","Ｔボックス",null,"文字列",null,null,null,null,null,null,2,null,"半角数字",null,null,"元枝番",null,null,"IN2_MOTO_EDA","_MOTO_EDA",null,"IN2_EDA",1,0]
[3,"枝情報／変更事由","変更事由（コード）","変更事由",null,"表示","表示","○","Ｔボックス","(XX)形式","\"(\"@\")\"",null,null,"橙色",null,null,null,2,null,"半角数字",null,null,"変更事由",null,null,"IN2_HENK_JYU_CD","_HENK_JYU_CD",null,"IN2_EDA",2,0]
[4,"枝情報／変更事由","変更事由名称","－",null,"表示","表示",null,"テキスト",null,"－","=VLOOKUP([コード],変更事由x,2,0)",null,null,null,null,null,null,null,null,null,null,"変更事由名称",null,null,"IN2_HENK_JYU_NM","_HENK_JYU_NM",null,"IN2_EDA",3,0]
[5,"枝情報／船前変更等","船前変更等","－",null,"表示","表示","○","プルダウン","選択：変,追,削","－","－",null,"橙色",null,null,null,null,null,null,"修正削除フラグ.内容",null,"船前変更等",null,null,"IN2_FMAE_HENKOND","_FMAE_HENKOND",null,"IN2_EDA",0,1]
[6,"枝情報／分類","分類","－",null,"表示","表示","○","プルダウン","コード一覧：分類","－","－",null,"黄色",null,"必須","必須",null,null,null,"貨物.内容",null,"分類",null,null,"IN2_BUNRUI","_BUNRUI",null,"IN2_EDA",0,2]
[7,"枝情報／受渡条件","受渡条件","受渡条件",null,"表示","表示","○","プルダウン","コード一覧：受渡条件","－","－",null,"青色",null,"相関必須","相関必須",null,null,null,"受渡条件.内容",null,"受渡条件",null,"相関必須について：\n別紙様式シートの受渡条件が未設定の場合、必須チェックを実行","IN2_UKE_JKN","_UKE_JKN",null,"IN2_EDA",1,2]
[8,"枝情報／てん補種別","てん補種別／船前","船積前てん補種別",null,"表示","表示","○","プルダウン","コード一覧：てん補種別","－","－",null,"緑色",null,"相関必須","相関必須",null,null,null,"てん補種別.内容",null,"てん補種別／船前",null,null,"IN2_FMAE_TENPOSHU","_FMAE_TENPOSHU",null,"IN2_EDA",0,3]
[9,"枝情報／てん補種別","てん補種別／船後","船積後てん補種別",null,"表示","表示","○","プルダウン","コード一覧：てん補種別","－","－",null,"緑色",null,"相関必須","相関必須",null,null,null,"てん補種別.内容",null,"てん補種別／船後",null,null,"IN2_FGO_TENPOSHU","_FGO_TENPOSHU",null,"IN2_EDA",1,3]
[10,"枝情報／完成納期","完成納期","特殊契約－完成納期","企総は無視","表示","表示","○","プルダウン","選択：有,無","－","－",null,"緑色",null,null,null,null,null,null,"有無.内容",null,"完成納期",null,null,"IN2_KANSEI_NOKI","_KANSEI_NOKI",null,"IN2_EDA",0,4]
[11,"枝情報／通貨","通貨","通貨",null,"表示","表示","○","プルダウン","コード一覧：通貨","－","－",null,"黄色",null,"必須","必須",null,null,null,"通貨コード.表示",null,"通貨",null,null,"IN2_TKA_NM","_TKA_NM",null,"IN2_EDA",1,4]
[12,"枝情報／個枠確認番号","個枠確認番号","確認管理番号",null,"表示","表示","○","Ｔボックス","XX-XXXXXX形式","00-000000",null,"99999999","緑色",null,null,null,8,null,"半角数字",null,null,"個枠確認番号","入力は8桁でお願いします。\n年2桁と一連番号6桁を連続して入力してください。",null,"IN2_WK_KAKU_NO","_WK_KAKU_NO",null,"IN2_EDA",0,5]
[13,"枝情報／為替換算率","為替換算率","為替換算率",null,"表示","表示","○","Ｔボックス","@XXX.XX形式","\"@\"#,##0.00",null,"0.00","紫色",null,null,null,null,4.5999999999999996,"半角小数",null,null,"為替換算率",null,null,"IN2_KWS_KNSN_BAIRT","_KWS_KNSN_BAIRT",null,"IN2_EDA",1,5]
[14,"枝情報／仕向国","仕向国（コード）","仕向国",null,"表示","表示","○","Ｔボックス",null,null,null,null,"青色",null,"相関必須","相関必須",3,null,"半角数字",null,null,"仕向国",null,"相関必須について：\n別紙様式シートの仕向国（コード）が未設定の場合、必須チェックを実行","IN2_SMK_KNCD","_SMK_KNCD",null,"IN2_EDA",0,7]
[15,"枝情報／仕向国","仕向国（名称）","－",null,"表示","表示",null,"テキスト","コード一覧から名称取得",null,"=IFERROR(VLOOKUP([コード],国x,2,0),\"\")",null,null,null,null,null,null,null,null,null,null,null,null,null,"IN2_SMK_KNNM","_SMK_KNNM",null,"IN2_EDA",0,6]
[16,"枝情報／支払国","支払国（コード）","支払国",null,"表示","表示","○","Ｔボックス",null,null,null,null,"青色",null,"相関必須","相関必須",3,null,"半角数字",null,null,"支払国",null,"相関必須について：\n別紙様式シートの支払国（コード）が未設定の場合、必須チェックを実行","IN2_SHR_KNCD","_SHR_KNCD",null,"IN2_EDA",1,7]
[17,"枝情報／支払国","支払国（名称）","－",null,"表示","表示",null,"テキスト","コード一覧から名称取得",null,"=IFERROR(VLOOKUP([コード],国x,2,0),\"\")",null,null,null,null,null,null,null,null,null,null,null,null,null,"IN2_SHR_KNNM","_SHR_KNNM",null,"IN2_EDA",1,6]
[18,"枝情報／保証国","保証国（コード）","保証国",null,"表示","表示","○","Ｔボックス",null,null,null,null,"青色",null,null,null,3,null,"半角数字",null,null,"保証国",null,null,"IN2_HSH_KNCD","_HSH_KNCD",null,"IN2_EDA",2,7]
[19,"枝情報／保証国","保証国（名称）","－",null,"表示","表示",null,"テキスト","コード一覧から名称取得",null,"=IFERROR(VLOOKUP([コード],国x,2,0),\"\")",null,null,null,null,null,null,null,null,null,null,null,null,null,"IN2_HSH_KNNM","_HSH_KNNM",null,"IN2_EDA",2,6]
[20,"枝情報／ＨＳコード","HSコード","貨物",null,"表示","表示","○","Ｔボックス",null,null,null,null,"青色",null,"相関必須","相関必須",6,null,"半角数字",null,null,"HSコード",null,"相関必須について：\n別紙様式シートのHSｺｰﾄﾞが未設定の場合、必須チェックを実行","IN2_KMOTU_CD","_KMOTU_CD",null,"IN2_EDA",2,2]
[21,"枝情報／貨物の名称等","貨物名称","－",null,"表示","表示","○","Ｔボックス",null,null,null,null,"桃色",null,null,null,null,null,null,null,null,"貨物名称",null,null,"IN2_KMOTU_NM","_KMOTU_NM",null,"IN2_EDA",2,3]
[22,"枝情報／船積時期","船積時期（FS）","Ｆ／Ｓ予定日",null,"表示","表示","○","Ｔボックス","yyyy/m/d形式","日付（yyyy/m/d）",null,null,"緑色",null,null,null,null,null,"有効日付",null,null,"船積時期（FS）",null,null,"IN2_FS_HI","_FS_HI",null,"IN2_EDA",0,8]
[23,"枝情報／船積時期","船積時期（MS）","－",null,"表示","表示","○","Ｔボックス","yyyy/m/d形式","日付（yyyy/m/d）","=IF(AND([FS]<>\"\",[LS]<>\"\"),[FS]+([LS]-[FS])/2,\"-\")",null,"桃色",null,null,null,null,null,"有効日付",null,null,"船積時期（MS）",null,null,"IN2_MS_HI","_MS_HI",null,"IN2_EDA",0,9]
[24,"枝情報／船積時期","船積時期（LS）","Ｌ／Ｓ予定日",null,"表示","表示","○","Ｔボックス","yyyy/m/d形式","日付（yyyy/m/d）",null,null,"黄色",null,"必須","必須",null,null,"有効日付",null,null,"船積時期（LS）",null,null,"IN2_LS_HI","_LS_HI",null,"IN2_EDA",0,10]
[25,"枝情報／支払人","支払人（コード）","支払人",null,"表示","表示","○","Ｔボックス",null,null,null,null,"青色",null,"相関必須","相関必須",7,null,"半角数字",null,null,"支払人",null,"相関必須について：\n別紙様式シートの代金等支払人（コード）が未設定の場合、必須チェックを実行","IN2_SHRNIN_BYRCD","_SHRNIN_BYRCD",null,"IN2_EDA",1,8]
[26,"枝情報／支払人","支払人（名称）","－",null,"表示","表示","○","Ｔボックス",null,null,null,null,"桃色",null,null,null,null,null,null,null,null,null,null,null,"IN2_SHRNIN_BYRNM","_SHRNIN_BYRNM",null,"IN2_EDA",1,9]
[27,"枝情報／保証人","保証人（コード）","保証人",null,"表示","表示","○","Ｔボックス",null,null,null,null,"青色",null,null,null,7,null,"半角数字",null,null,"保証人",null,null,"IN2_HSHNIN_BYRCD","_HSHNIN_BYRCD",null,"IN2_EDA",2,8]
[28,"枝情報／保証人","保証人（名称）","－",null,"表示","表示","○","Ｔボックス",null,null,null,null,"桃色",null,null,null,null,null,null,null,null,null,null,null,"IN2_HSHNIN_BYRNM","_HSHNIN_BYRNM",null,"IN2_EDA",2,9]
[29,"枝情報／契約金額元本","契約金額元本","輸出契約等元本",null,"表示","表示","○","Ｔボックス",null,"通貨（.00）",null,null,"黄色",null,"必須","必須",null,13.2,"半角小数",null,null,"契約金額元本",null,null,"IN2_KEI_KG_GPN","_KEI_KG_GPN",null,"IN2_EDA",0,11]
[30,"枝情報／船積前対象額元本","船前対象額元本（FOB価額）","船積前保険対象額",null,"表示","表示","○","Ｔボックス",null,"通貨（.00）",null,null,"緑色",null,"相関必須","相関必須",null,13.2,"半角小数",null,null,"船前対象額元本（FOB価額）",null,null,"IN2_FMAE_HKTSG_GPN","_FMAE_HKTSG_GPN",null,"IN2_EDA",1,11]
[31,"枝情報／船積後対象額元本","船後対象額元本","船積後保険対象額",null,"表示","表示","○","Ｔボックス",null,"通貨（.00）",null,null,"黄色",null,"相関必須","相関必須",null,13.2,"半角小数",null,null,"船後対象額元本",null,null,"IN2_FGO_HKTSG_GPN","_FGO_HKTSG_GPN",null,"IN2_EDA",2,11]
[32,"枝情報／変更が生じた日","変更が生じた日","輸出契約等変更日",null,"表示","表示","○","Ｔボックス","yyyy/m/d形式",null,null,null,"橙色",null,null,null,null,null,"有効日付",null,null,"変更が生じた日",null,null,"IN2_HNK_HASEIBI","_HNK_HASEIBI",null,"IN2_EDA",0,14]
[33,"枝情報／頭金","割合","－",null,"表示","表示","○","テキスト",null,null,"=IFERROR([保険対象額／元本]/[契約金額元本],\"\")",null,"桃色",null,null,null,null,null,null,null,null,"割合",null,null,"IN2_ATMK_WARIAI","_ATMK_WARIAI",null,"IN2_EDA",3,2]
[34,"枝情報／頭金","保険対象額（元本）","－",null,"表示","表示","○","Ｔボックス",null,null,null,null,"桃色",null,null,null,null,13.2,"半角小数",null,null,"保険対象額（元本）",null,null,"IN2_ATMK_HKTSG_GPN","_ATMK_HKTSG_GPN",null,"IN2_EDA",3,8]
[35,"枝情報／頭金","保険対象額（金利）","－",null,"表示","表示","○","Ｔボックス",null,null,null,null,"桃色",null,null,null,null,13.2,"半角小数",null,null,"保険対象額（金利）",null,null,"IN2_ATMK_HKTSG_KNR","_ATMK_HKTSG_KNR",null,"IN2_EDA",3,9]
[36,"枝情報／頭金","保険対象額（計）","－",null,"表示","表示","○","テキスト",null,null,"=SUM([元本],[金利])",null,"桃色",null,null,null,null,null,null,null,null,"保険対象額（計）",null,null,"IN2_ATMK_HKTSG_SUM","_ATMK_HKTSG_SUM",null,"IN2_EDA",3,10]
[37,"枝情報／決済情報１","船後変更等","－",null,"表示","表示","○","Ｔボックス","選択：変,追,削",null,null,"項目定義（別紙様式(企総)）","橙色",null,null,null,null,null,null,"修正削除フラグ.内容",null,"船後変更等",null,"相関必須について：\n\n１．決済情報関連項目の相関必須チェック\n＜対象項目＞\n　決済方法コード、保険対象額（元本）、保険対象額（金利）\n\n＜チェック要否判定条件＞\n①「枝番」が入力されていない場合は、チェック対象外\n②「変更事由コード」がブランク（新規）、\"01\"（増額新規）以外はチェック対象外\n③「てん補種別／船後」がブランク（船後てん補なし）はチェック対象外\n④2決済目以降は対象外\n\n\n２．決済方法との相関必須チェック\n＜対象項目＞\n　決済期日、ユーザンス\n\n＜チェック要否判定条件＞\n①「枝番」が入力されていない場合は、チェック対象外\n②決済方法コードをもとに決済方法の入力方法から判定。入力有効／無効のどちらかが○ならチェック対象。どちらも×の場合はチェック対象外\n\n＜入力済み判定条件＞\n以下のどちらかを満たせば入力済みと判定\n①決済期日が入力済み\n②ユーザンスは期間と月日指定の両方が入力済み\n","IN2_KES1_FGO_HENKOND","_KES#_FGO_HENKOND",null,"IN2_EDA",4,1]
[38,"枝情報／決済情報１","割合","－",null,"表示","表示","○","テキスト",null,null,"=IFERROR([保険対象額／元本]/[契約金額元本],\"\")",null,"桃色",null,null,null,null,null,null,null,null,"割合",null,null,"IN2_KES1_WARIAI","_KES#_WARIAI",null,"IN2_EDA",4,2]
[39,"枝情報／決済情報１","決済方法（コード）","－",null,"表示","表示","○","Ｔボックス",null,null,null,null,"黄色",null,"相関必須","相関必須",2,null,"半角数字",null,null,"決済方法",null,null,"IN2_KES1_HOHO_CD","_KES#_HOHO_CD",null,"IN2_EDA",4,7]
[40,"枝情報／決済情報１","決済方法（名称）","決済方法１",null,"表示","表示",null,"テキスト","コード一覧から名称取得",null,"=IFERROR(VLOOKUP([決済コード],決済方法x,2,0),\"\")",null,null,null,null,null,null,null,null,null,null,"決済方法（名称）",null,null,"IN2_KES1_HOHO_NM","_KES#_HOHO_NM",null,"IN2_EDA",4,3]
[41,"枝情報／決済情報１","支払保証（コード）","－",null,"表示","表示","○","Ｔボックス",null,null,null,null,"緑色",null,null,null,2,null,"半角数字",null,null,"支払保証",null,null,"IN2_KES1_SHR_HSH_CD","_KES#_SHR_HSH_CD",null,"IN2_EDA",5,7]
[42,"枝情報／決済情報１","支払保証（名称）","決済支払保証１",null,"表示","表示",null,"テキスト","コード一覧から名称取得",null,"=IFERROR(VLOOKUP([支払保証コード],支払保証x,2,0),\"\")",null,null,null,null,null,null,null,null,null,null,"支払保証（名称）",null,null,"IN2_KES1_SHR_HSH_NM","_KES#_SHR_HSH_NM",null,"IN2_EDA",5,3]
[43,"枝情報／決済情報１","保険対象額（元本）","決済元本１",null,"表示","表示","○","Ｔボックス",null,null,null,null,"黄色",null,"相関必須","相関必須",null,13.2,"半角小数",null,null,"保険対象額（元本）",null,null,"IN2_KES1_HKTSG_GPN","_KES#_HKTSG_GPN",null,"IN2_EDA",4,8]
[44,"枝情報／決済情報１","保険対象額（金利）","決済金利１",null,"表示","表示","○","Ｔボックス",null,null,null,null,"緑色",null,null,null,null,13.2,"半角小数",null,null,"保険対象額（金利）",null,null,"IN2_KES1_HKTSG_KNR","_KES#_HKTSG_KNR",null,"IN2_EDA",4,9]
[45,"枝情報／決済情報１","保険対象額（計）","－",null,"表示","表示",null,"テキスト",null,null,"=SUM([元本],[金利])",null,"黄色",null,null,null,null,null,null,null,null,"保険対象額（計）",null,null,"IN2_KES1_HKTSG_SUM","_KES#_HKTSG_SUM",null,"IN2_EDA",4,10]
[46,"枝情報／決済情報１","決済期日","決済予定日１",null,"表示","表示","○","Ｔボックス","yyyy/m/d形式",null,null,null,"黄色",null,"相関必須","相関必須",null,null,"有効日付",null,null,"決済期日",null,null,"IN2_KES1_KESBI","_KES#_KESBI",null,"IN2_EDA",4,11]
[47,"枝情報／決済情報１","ユーザンス（期間）","ユーザンス期間１",null,"表示","表示","○","Ｔボックス",null,null,null,null,"黄色",null,"相関必須","相関必須",null,3,"半角数字",null,null,"ユーザンス（期間）",null,null,"IN2_KES1_USANCE_KKN","_KES#_USANCE_KKN",null,"IN2_EDA",4,12]
[48,"枝情報／決済情報１","ユーザンス（月日指定）","ユーザンス月日指定１",null,"表示","表示","○","プルダウン","コード一覧：月日",null,null,null,"黄色",null,"相関必須","相関必須",null,null,null,"ユーザンス月日指定.内容",null,"ユーザンス（月日指定）",null,null,"IN2_KES1_USANCE_TANI","_KES#_USANCE_TANI",null,"IN2_EDA",4,13]
[49,"枝情報／決済情報２","船後変更等","－",null,"表示","表示","○","Ｔボックス","選択：変,追,削",null,null,"項目定義（別紙様式(企総)）","橙色",null,{"$f":"IF(P$39=\"\",\"\",P$39)","v":""},"","","","","修正削除フラグ.内容",null,"船後変更等",null,null,"IN2_KES2_FGO_HENKOND","_KES#_FGO_HENKOND",null,"IN2_EDA",6,1]
[50,"枝情報／決済情報２","割合","－",null,"表示","表示","○","テキスト",null,null,"=IFERROR([保険対象額／元本]/[契約金額元本],\"\")",null,"桃色",null,{"$f":"IF(P$40=\"\",\"\",P$40)","v":""},"","","","",null,null,"割合",null,null,"IN2_KES2_WARIAI","_KES#_WARIAI",null,"IN2_EDA",6,2]
[51,"枝情報／決済情報２","決済方法（コード）","－",null,"表示","表示","○","Ｔボックス",null,null,null,null,"黄色",null,null,null,2,"","半角数字",null,null,"決済方法",null,null,"IN2_KES2_HOHO_CD","_KES#_HOHO_CD",null,"IN2_EDA",6,7]
[52,"枝情報／決済情報２","決済方法（名称）","決済方法２",null,"表示","表示",null,"テキスト","コード一覧から名称取得",null,"=IFERROR(VLOOKUP([決済コード],決済方法x,2,0),\"\")",null,null,null,null,null,"","","",null,null,"決済方法（名称）",null,null,"IN2_KES2_HOHO_NM","_KES#_HOHO_NM",null,"IN2_EDA",6,3]
[53,"枝情報／決済情報２","支払保証（コード）","－",null,"表示","表示","○","Ｔボックス",null,null,null,null,"緑色",null,null,null,2,"","半角数字",null,null,"支払保証",null,null,"IN2_KES2_SHR_HSH_CD","_KES#_SHR_HSH_CD",null,"IN2_EDA",7,7]
[54,"枝情報／決済情報２","支払保証（名称）","決済支払保証２",null,"表示","表示",null,"テキスト","コード一覧から名称取得",null,"=IFERROR(VLOOKUP([支払保証コード],支払保証x,2,0),\"\")",null,null,null,{"$f":"IF(P$44=\"\",\"\",P$44)","v":""},"","","","",null,null,"支払保証（名称）",null,null,"IN2_KES2_SHR_HSH_NM","_KES#_SHR_HSH_NM",null,"IN2_EDA",7,3]
[55,"枝情報／決済情報２","保険対象額（元本）","決済元本２",null,"表示","表示","○","Ｔボックス",null,null,null,null,"黄色",null,null,null,"",13.2,"半角小数",null,null,"保険対象額（元本）",null,null,"IN2_KES2_HKTSG_GPN","_KES#_HKTSG_GPN",null,"IN2_EDA",6,8]
[56,"枝情報／決済情報２","保険対象額（金利）","決済金利２",null,"表示","表示","○","Ｔボックス",null,null,null,null,"緑色",null,null,null,"",13.2,"半角小数",null,null,"保険対象額（金利）",null,null,"IN2_KES2_HKTSG_KNR","_KES#_HKTSG_KNR",null,"IN2_EDA",6,9]
[57,"枝情報／決済情報２","保険対象額（計）","－",null,"表示","表示",null,"テキスト",null,null,"=SUM([元本],[金利])",null,"黄色",null,null,null,"","","",null,null,"保険対象額（計）",null,null,"IN2_KES2_HKTSG_SUM","_KES#_HKTSG_SUM",null,"IN2_EDA",6,10]
[58,"枝情報／決済情報２","決済期日","決済予定日２",null,"表示","表示","○","Ｔボックス","yyyy/m/d形式",null,null,null,"黄色",null,"相関必須","相関必須","","","有効日付",null,null,"決済期日",null,null,"IN2_KES2_KESBI","_KES#_KESBI",null,"IN2_EDA",6,11]
[59,"枝情報／決済情報２","ユーザンス（期間）","ユーザンス期間２",null,"表示","表示","○","Ｔボックス",null,null,null,null,"黄色",null,"相関必須","相関必須","",3,"半角数字",null,null,"ユーザンス（期間）",null,null,"IN2_KES2_USANCE_KKN","_KES#_USANCE_KKN",null,"IN2_EDA",6,12]
[60,"枝情報／決済情報２","ユーザンス（月日指定）","ユーザンス月日指定２",null,"表示","表示","○","プルダウン","コード一覧：月日",null,null,null,"黄色",null,"相関必須","相関必須","","","","ユーザンス月日指定.内容",null,"ユーザンス（月日指定）",null,null,"IN2_KES2_USANCE_TANI","_KES#_USANCE_TANI",null,"IN2_EDA",6,13]
[61,"枝情報／決済情報３","船後変更等","－",null,"表示","表示","○","Ｔボックス","選択：変,追,削",null,null,"項目定義（別紙様式(企総)）","橙色",null,"","","","","","修正削除フラグ.内容",null,"船後変更等",null,null,"IN2_KES3_FGO_HENKOND","_KES#_FGO_HENKOND",null,"IN2_EDA",8,1]
[62,"枝情報／決済情報３","割合","－",null,"表示","表示","○","テキスト",null,null,"=IFERROR([保険対象額／元本]/[契約金額元本],\"\")",null,"桃色",null,{"$f":"IF(P$40=\"\",\"\",P$40)","v":""},"","","","",null,null,"割合",null,null,"IN2_KES3_WARIAI","_KES#_WARIAI",null,"IN2_EDA",8,2]
[63,"枝情報／決済情報３","決済方法（コード）","－",null,"表示","表示","○","Ｔボックス",null,null,null,null,"黄色",null,null,null,2,"","半角数字",null,null,"決済方法",null,null,"IN2_KES3_HOHO_CD","_KES#_HOHO_CD",null,"IN2_EDA",8,7]
[64,"枝情報／決済情報３","決済方法（名称）","決済方法３",null,"表示","表示",null,"テキスト","コード一覧から名称取得",null,"=IFERROR(VLOOKUP([決済コード],決済方法x,2,0),\"\")",null,null,null,null,null,"","","",null,null,"決済方法（名称）",null,null,"IN2_KES3_HOHO_NM","_KES#_HOHO_NM",null,"IN2_EDA",8,3]
[65,"枝情報／決済情報３","支払保証（コード）","－",null,"表示","表示","○","Ｔボックス",null,null,null,null,"緑色",null,null,null,2,"","半角数字",null,null,"支払保証",null,null,"IN2_KES3_SHR_HSH_CD","_KES#_SHR_HSH_CD",null,"IN2_EDA",9,7]
[{"$f":"IF(C68=\"\",\"\",ROW()-2)","v":66},"枝情報／決済情報３","支払保証（名称）","決済支払保証３",null,"表示","表示",null,"テキスト","コード一覧から名称取得",null,"=IFERROR(VLOOKUP([支払保証コード],支払保証x,2,0),\"\")",null,null,null,{"$f":"IF(P$44=\"\",\"\",P$44)","v":""},"","","","",null,null,"支払保証（名称）",null,null,"IN2_KES3_SHR_HSH_NM","_KES#_SHR_HSH_NM",null,"IN2_EDA",9,3]
[67,"枝情報／決済情報３","保険対象額（元本）","決済元本３",null,"表示","表示","○","Ｔボックス",null,null,null,null,"黄色",null,null,null,"",13.2,"半角小数",null,null,"保険対象額（元本）",null,null,"IN2_KES3_HKTSG_GPN","_KES#_HKTSG_GPN",null,"IN2_EDA",8,8]
[68,"枝情報／決済情報３","保険対象額（金利）","決済金利３",null,"表示","表示","○","Ｔボックス",null,null,null,null,"緑色",null,null,null,"",13.2,"半角小数",null,null,"保険対象額（金利）",null,null,"IN2_KES3_HKTSG_KNR","_KES#_HKTSG_KNR",null,"IN2_EDA",8,9]
[69,"枝情報／決済情報３","保険対象額（計）","－",null,"表示","表示",null,"テキスト",null,null,"=SUM([元本],[金利])",null,"黄色",null,null,null,"","","",null,null,"保険対象額（計）",null,null,"IN2_KES3_HKTSG_SUM","_KES#_HKTSG_SUM",null,"IN2_EDA",8,10]
[70,"枝情報／決済情報３","決済期日","決済予定日３",null,"表示","表示","○","Ｔボックス","yyyy/m/d形式",null,null,null,"黄色",null,"相関必須","相関必須","","","有効日付",null,null,"決済期日",null,null,"IN2_KES3_KESBI","_KES#_KESBI",null,"IN2_EDA",8,11]
[71,"枝情報／決済情報３","ユーザンス（期間）","ユーザンス期間３",null,"表示","表示","○","Ｔボックス",null,null,null,null,"黄色",null,"相関必須","相関必須","",3,"半角数字",null,null,"ユーザンス（期間）",null,null,"IN2_KES3_USANCE_KKN","_KES#_USANCE_KKN",null,"IN2_EDA",8,12]
[72,"枝情報／決済情報３","ユーザンス（月日指定）","ユーザンス月日指定３",null,"表示","表示","○","プルダウン","コード一覧：月日",null,null,null,"黄色",null,"相関必須","相関必須","","","","ユーザンス月日指定.内容",null,"ユーザンス（月日指定）",null,null,"IN2_KES3_USANCE_TANI","_KES#_USANCE_TANI",null,"IN2_EDA",8,13]
[73,"枝情報／決済情報４","船後変更等","－",null,"表示","表示","○","Ｔボックス","選択：変,追,削",null,null,"項目定義（別紙様式(企総)）","橙色",null,{"$f":"IF(P$39=\"\",\"\",P$39)","v":""},"","","","","修正削除フラグ.内容",null,"船後変更等",null,null,"IN2_KES4_FGO_HENKOND","_KES#_FGO_HENKOND",null,"IN2_EDA",10,1]
[74,"枝情報／決済情報４","割合","－",null,"表示","表示","○","テキスト",null,null,"=IFERROR([保険対象額／元本]/[契約金額元本],\"\")",null,"桃色",null,{"$f":"IF(P$40=\"\",\"\",P$40)","v":""},"","","","",null,null,"割合",null,null,"IN2_KES4_WARIAI","_KES#_WARIAI",null,"IN2_EDA",10,2]
[75,"枝情報／決済情報４","決済方法（コード）","－",null,"表示","表示","○","Ｔボックス",null,null,null,null,"黄色",null,null,null,2,"","半角数字",null,null,"決済方法",null,null,"IN2_KES4_HOHO_CD","_KES#_HOHO_CD",null,"IN2_EDA",10,7]
[76,"枝情報／決済情報４","決済方法（名称）","決済方法４",null,"表示","表示",null,"テキスト","コード一覧から名称取得",null,"=IFERROR(VLOOKUP([決済コード],決済方法x,2,0),\"\")",null,null,null,null,null,"","","",null,null,"決済方法（名称）",null,null,"IN2_KES4_HOHO_NM","_KES#_HOHO_NM",null,"IN2_EDA",10,3]
[77,"枝情報／決済情報４","支払保証（コード）","－",null,"表示","表示","○","Ｔボックス",null,null,null,null,"緑色",null,null,null,2,"","半角数字",null,null,"支払保証",null,null,"IN2_KES4_SHR_HSH_CD","_KES#_SHR_HSH_CD",null,"IN2_EDA",11,7]
[78,"枝情報／決済情報４","支払保証（名称）","決済支払保証４",null,"表示","表示",null,"テキスト","コード一覧から名称取得",null,"=IFERROR(VLOOKUP([支払保証コード],支払保証x,2,0),\"\")",null,null,null,{"$f":"IF(P$44=\"\",\"\",P$44)","v":""},"","","","",null,null,"支払保証（名称）",null,null,"IN2_KES4_SHR_HSH_NM","_KES#_SHR_HSH_NM",null,"IN2_EDA",11,3]
[79,"枝情報／決済情報４","保険対象額（元本）","決済元本４",null,"表示","表示","○","Ｔボックス",null,null,null,null,"黄色",null,null,null,"",13.2,"半角小数",null,null,"保険対象額（元本）",null,null,"IN2_KES4_HKTSG_GPN","_KES#_HKTSG_GPN",null,"IN2_EDA",10,8]
[80,"枝情報／決済情報４","保険対象額（金利）","決済金利４",null,"表示","表示","○","Ｔボックス",null,null,null,null,"緑色",null,null,null,"",13.2,"半角小数",null,null,"保険対象額（金利）",null,null,"IN2_KES4_HKTSG_KNR","_KES#_HKTSG_KNR",null,"IN2_EDA",10,9]
[81,"枝情報／決済情報４","保険対象額（計）","－",null,"表示","表示",null,"テキスト",null,null,"=SUM([元本],[金利])",null,"黄色",null,null,null,"","","",null,null,"保険対象額（計）",null,null,"IN2_KES4_HKTSG_SUM","_KES#_HKTSG_SUM",null,"IN2_EDA",10,10]
[82,"枝情報／決済情報４","決済期日","決済予定日４",null,"表示","表示","○","Ｔボックス","yyyy/m/d形式",null,null,null,"黄色",null,"相関必須","相関必須","","","有効日付",null,null,"決済期日",null,null,"IN2_KES4_KESBI","_KES#_KESBI",null,"IN2_EDA",10,11]
[83,"枝情報／決済情報４","ユーザンス（期間）","ユーザンス期間４",null,"表示","表示","○","Ｔボックス",null,null,null,null,"黄色",null,"相関必須","相関必須","",3,"半角数字",null,null,"ユーザンス（期間）",null,null,"IN2_KES4_USANCE_KKN","_KES#_USANCE_KKN",null,"IN2_EDA",10,12]
[84,"枝情報／決済情報４","ユーザンス（月日指定）","ユーザンス月日指定４",null,"表示","表示","○","プルダウン","コード一覧：月日",null,null,null,"黄色",null,"相関必須","相関必須","","","","ユーザンス月日指定.内容",null,"ユーザンス（月日指定）",null,null,"IN2_KES4_USANCE_TANI","_KES#_USANCE_TANI",null,"IN2_EDA",10,13]
[85,"枝情報／決済情報５","船後変更等","－",null,"表示","表示","○","Ｔボックス","選択：変,追,削",null,null,"項目定義（別紙様式(企総)）","橙色",null,{"$f":"IF(P$39=\"\",\"\",P$39)","v":""},"","","","","修正削除フラグ.内容",null,"船後変更等",null,null,"IN2_KES5_FGO_HENKOND","_KES#_FGO_HENKOND",null,"IN2_EDA",12,1]
[86,"枝情報／決済情報５","割合","－",null,"表示","表示","○","テキスト",null,null,"=IFERROR([保険対象額／元本]/[契約金額元本],\"\")",null,"桃色",null,{"$f":"IF(P$40=\"\",\"\",P$40)","v":""},"","","","",null,null,"割合",null,null,"IN2_KES5_WARIAI","_KES#_WARIAI",null,"IN2_EDA",12,2]
[87,"枝情報／決済情報５","決済方法（コード）","－",null,"表示","表示","○","Ｔボックス",null,null,null,null,"黄色",null,null,null,2,"","半角数字",null,null,"決済方法",null,null,"IN2_KES5_HOHO_CD","_KES#_HOHO_CD",null,"IN2_EDA",12,7]
[88,"枝情報／決済情報５","決済方法（名称）","決済方法５",null,"表示","表示",null,"テキスト","コード一覧から名称取得",null,"=IFERROR(VLOOKUP([決済コード],決済方法x,2,0),\"\")",null,null,null,null,null,"","","",null,null,"決済方法（名称）",null,null,"IN2_KES5_HOHO_NM","_KES#_HOHO_NM",null,"IN2_EDA",12,3]
[89,"枝情報／決済情報５","支払保証（コード）","－",null,"表示","表示","○","Ｔボックス",null,null,null,null,"緑色",null,null,null,2,"","半角数字",null,null,"支払保証",null,null,"IN2_KES5_SHR_HSH_CD","_KES#_SHR_HSH_CD",null,"IN2_EDA",13,7]
[90,"枝情報／決済情報５","支払保証（名称）","決済支払保証５",null,"表示","表示",null,"テキスト","コード一覧から名称取得",null,"=IFERROR(VLOOKUP([支払保証コード],支払保証x,2,0),\"\")",null,null,null,{"$f":"IF(P$44=\"\",\"\",P$44)","v":""},"","","","",null,null,"支払保証（名称）",null,null,"IN2_KES5_SHR_HSH_NM","_KES#_SHR_HSH_NM",null,"IN2_EDA",13,3]
[91,"枝情報／決済情報５","保険対象額（元本）","決済元本５",null,"表示","表示","○","Ｔボックス",null,null,null,null,"黄色",null,null,null,"",13.2,"半角小数",null,null,"保険対象額（元本）",null,null,"IN2_KES5_HKTSG_GPN","_KES#_HKTSG_GPN",null,"IN2_EDA",12,8]
[92,"枝情報／決済情報５","保険対象額（金利）","決済金利５",null,"表示","表示","○","Ｔボックス",null,null,null,null,"緑色",null,null,null,"",13.2,"半角小数",null,null,"保険対象額（金利）",null,null,"IN2_KES5_HKTSG_KNR","_KES#_HKTSG_KNR",null,"IN2_EDA",12,9]
[93,"枝情報／決済情報５","保険対象額（計）","－",null,"表示","表示",null,"テキスト",null,null,"=SUM([元本],[金利])",null,"黄色",null,null,null,"","","",null,null,"保険対象額（計）",null,null,"IN2_KES5_HKTSG_SUM","_KES#_HKTSG_SUM",null,"IN2_EDA",12,10]
[94,"枝情報／決済情報５","決済期日","決済予定日５",null,"表示","表示","○","Ｔボックス","yyyy/m/d形式",null,null,null,"黄色",null,"相関必須","相関必須","","","有効日付",null,null,"決済期日",null,null,"IN2_KES5_KESBI","_KES#_KESBI",null,"IN2_EDA",12,11]
[95,"枝情報／決済情報５","ユーザンス（期間）","ユーザンス期間５",null,"表示","表示","○","Ｔボックス",null,null,null,null,"黄色",null,"相関必須","相関必須","",3,"半角数字",null,null,"ユーザンス（期間）",null,null,"IN2_KES5_USANCE_KKN","_KES#_USANCE_KKN",null,"IN2_EDA",12,12]
[96,"枝情報／決済情報５","ユーザンス（月日指定）","ユーザンス月日指定５",null,"表示","表示","○","プルダウン","コード一覧：月日",null,null,null,"黄色",null,"相関必須","相関必須","","","","ユーザンス月日指定.内容",null,"ユーザンス（月日指定）",null,null,"IN2_KES5_USANCE_TANI","_KES#_USANCE_TANI",null,"IN2_EDA",12,13]
[97,"枝情報／決済情報６","船後変更等","－",null,"表示","表示","○","Ｔボックス","選択：変,追,削",null,null,"項目定義（別紙様式(企総)）","橙色",null,{"$f":"IF(P$39=\"\",\"\",P$39)","v":""},"","","","","修正削除フラグ.内容",null,"船後変更等",null,null,"IN2_KES6_FGO_HENKOND","_KES#_FGO_HENKOND",null,"IN2_EDA",14,1]
[98,"枝情報／決済情報６","割合","－",null,"表示","表示","○","テキスト",null,null,"=IFERROR([保険対象額／元本]/[契約金額元本],\"\")",null,"桃色",null,{"$f":"IF(P$40=\"\",\"\",P$40)","v":""},"","","","",null,null,"割合",null,null,"IN2_KES6_WARIAI","_KES#_WARIAI",null,"IN2_EDA",14,2]
[99,"枝情報／決済情報６","決済方法（コード）","－",null,"表示","表示","○","Ｔボックス",null,null,null,null,"黄色",null,null,null,2,"","半角数字",null,null,"決済方法",null,null,"IN2_KES6_HOHO_CD","_KES#_HOHO_CD",null,"IN2_EDA",14,7]
[100,"枝情報／決済情報６","決済方法（名称）","－",null,"表示","表示",null,"テキスト","コード一覧から名称取得",null,"=IFERROR(VLOOKUP([決済コード],決済方法x,2,0),\"\")",null,null,null,null,null,"","","",null,null,"決済方法（名称）",null,null,"IN2_KES6_HOHO_NM","_KES#_HOHO_NM",null,"IN2_EDA",14,3]
[101,"枝情報／決済情報６","支払保証（コード）","－",null,"表示","表示","○","Ｔボックス",null,null,null,null,"緑色",null,null,null,2,"","半角数字",null,null,"支払保証",null,null,"IN2_KES6_SHR_HSH_CD","_KES#_SHR_HSH_CD",null,"IN2_EDA",15,7]
[102,"枝情報／決済情報６","支払保証（名称）","－",null,"表示","表示",null,"テキスト","コード一覧から名称取得",null,"=IFERROR(VLOOKUP([支払保証コード],支払保証x,2,0),\"\")",null,null,null,{"$f":"IF(P$44=\"\",\"\",P$44)","v":""},"","","","",null,null,"支払保証（名称）",null,null,"IN2_KES6_SHR_HSH_NM","_KES#_SHR_HSH_NM",null,"IN2_EDA",15,3]
[103,"枝情報／決済情報６","保険対象額（元本）","－",null,"表示","表示","○","Ｔボックス",null,null,null,null,"黄色",null,null,null,"",13.2,"半角小数",null,null,"保険対象額（元本）",null,null,"IN2_KES6_HKTSG_GPN","_KES#_HKTSG_GPN",null,"IN2_EDA",14,8]
[104,"枝情報／決済情報６","保険対象額（金利）","－",null,"表示","表示","○","Ｔボックス",null,null,null,null,"緑色",null,null,null,"",13.2,"半角小数",null,null,"保険対象額（金利）",null,null,"IN2_KES6_HKTSG_KNR","_KES#_HKTSG_KNR",null,"IN2_EDA",14,9]
[105,"枝情報／決済情報６","保険対象額（計）","－",null,"表示","表示",null,"テキスト",null,null,"=SUM([元本],[金利])",null,"黄色",null,null,null,"","","",null,null,"保険対象額（計）",null,null,"IN2_KES6_HKTSG_SUM","_KES#_HKTSG_SUM",null,"IN2_EDA",14,10]
[106,"枝情報／決済情報６","決済期日","－",null,"表示","表示","○","Ｔボックス","yyyy/m/d形式",null,null,null,"黄色",null,"相関必須","相関必須","","","有効日付",null,null,"決済期日",null,null,"IN2_KES6_KESBI","_KES#_KESBI",null,"IN2_EDA",14,11]
[107,"枝情報／決済情報６","ユーザンス（期間）","－",null,"表示","表示","○","Ｔボックス",null,null,null,null,"黄色",null,"相関必須","相関必須","",3,"半角数字",null,null,"ユーザンス（期間）",null,null,"IN2_KES6_USANCE_KKN","_KES#_USANCE_KKN",null,"IN2_EDA",14,12]
[108,"枝情報／決済情報６","ユーザンス（月日指定）","－",null,"表示","表示","○","プルダウン","コード一覧：月日",null,null,null,"黄色",null,"相関必須","相関必須","","","","ユーザンス月日指定.内容",null,"ユーザンス（月日指定）",null,null,"IN2_KES6_USANCE_TANI","_KES#_USANCE_TANI",null,"IN2_EDA",14,13]
[109,"枝情報／決済情報７","船後変更等","－",null,"表示","表示","○","Ｔボックス","選択：変,追,削",null,null,"項目定義（別紙様式(企総)）","橙色",null,{"$f":"IF(P$39=\"\",\"\",P$39)","v":""},"","","","","修正削除フラグ.内容",null,"船後変更等",null,null,"IN2_KES7_FGO_HENKOND","_KES#_FGO_HENKOND",null,"IN2_EDA",16,1]
[110,"枝情報／決済情報７","割合","－",null,"表示","表示","○","テキスト",null,null,"=IFERROR([保険対象額／元本]/[契約金額元本],\"\")",null,"桃色",null,{"$f":"IF(P$40=\"\",\"\",P$40)","v":""},"","","","",null,null,"割合",null,null,"IN2_KES7_WARIAI","_KES#_WARIAI",null,"IN2_EDA",16,2]
[111,"枝情報／決済情報７","決済方法（コード）","－",null,"表示","表示","○","Ｔボックス",null,null,null,null,"黄色",null,null,null,2,"","半角数字",null,null,"決済方法",null,null,"IN2_KES7_HOHO_CD","_KES#_HOHO_CD",null,"IN2_EDA",16,7]
[112,"枝情報／決済情報７","決済方法（名称）","－",null,"表示","表示",null,"テキスト","コード一覧から名称取得",null,"=IFERROR(VLOOKUP([決済コード],決済方法x,2,0),\"\")",null,null,null,null,null,"","","",null,null,"決済方法（名称）",null,null,"IN2_KES7_HOHO_NM","_KES#_HOHO_NM",null,"IN2_EDA",17,3]
[113,"枝情報／決済情報７","支払保証（コード）","－",null,"表示","表示","○","Ｔボックス",null,null,null,null,"緑色",null,null,null,2,"","半角数字",null,null,"支払保証",null,null,"IN2_KES7_SHR_HSH_CD","_KES#_SHR_HSH_CD",null,"IN2_EDA",17,7]
[114,"枝情報／決済情報７","支払保証（名称）","－",null,"表示","表示",null,"テキスト","コード一覧から名称取得",null,"=IFERROR(VLOOKUP([支払保証コード],支払保証x,2,0),\"\")",null,null,null,{"$f":"IF(P$44=\"\",\"\",P$44)","v":""},"","","","",null,null,"支払保証（名称）",null,null,"IN2_KES7_SHR_HSH_NM","_KES#_SHR_HSH_NM",null,"IN2_EDA",17,3]
[115,"枝情報／決済情報７","保険対象額（元本）","－",null,"表示","表示","○","Ｔボックス",null,null,null,null,"黄色",null,null,null,"",13.2,"半角小数",null,null,"保険対象額（元本）",null,null,"IN2_KES7_HKTSG_GPN","_KES#_HKTSG_GPN",null,"IN2_EDA",16,8]
[116,"枝情報／決済情報７","保険対象額（金利）","－",null,"表示","表示","○","Ｔボックス",null,null,null,null,"緑色",null,null,null,"",13.2,"半角小数",null,null,"保険対象額（金利）",null,null,"IN2_KES7_HKTSG_KNR","_KES#_HKTSG_KNR",null,"IN2_EDA",16,9]
[117,"枝情報／決済情報７","保険対象額（計）","－",null,"表示","表示",null,"テキスト",null,null,"=SUM([元本],[金利])",null,"黄色",null,null,null,"","","",null,null,"保険対象額（計）",null,null,"IN2_KES7_HKTSG_SUM","_KES#_HKTSG_SUM",null,"IN2_EDA",16,10]
[118,"枝情報／決済情報７","決済期日","－",null,"表示","表示","○","Ｔボックス","yyyy/m/d形式",null,null,null,"黄色",null,"相関必須","相関必須","","","有効日付",null,null,"決済期日",null,null,"IN2_KES7_KESBI","_KES#_KESBI",null,"IN2_EDA",16,11]
[119,"枝情報／決済情報７","ユーザンス（期間）","－",null,"表示","表示","○","Ｔボックス",null,null,null,null,"黄色",null,"相関必須","相関必須","",3,"半角数字",null,null,"ユーザンス（期間）",null,null,"IN2_KES7_USANCE_KKN","_KES#_USANCE_KKN",null,"IN2_EDA",16,12]
[120,"枝情報／決済情報７","ユーザンス（月日指定）","－",null,"表示","表示","○","プルダウン","コード一覧：月日",null,null,null,"黄色",null,"相関必須","相関必須","","","","ユーザンス月日指定.内容",null,"ユーザンス（月日指定）",null,null,"IN2_KES7_USANCE_TANI","_KES#_USANCE_TANI",null,"IN2_EDA",16,13]
[121,"枝情報／決済情報８","船後変更等","－",null,"表示","表示","○","Ｔボックス","選択：変,追,削",null,null,"項目定義（別紙様式(企総)）","橙色",null,{"$f":"IF(P$39=\"\",\"\",P$39)","v":""},"","","","","修正削除フラグ.内容",null,"船後変更等",null,null,"IN2_KES8_FGO_HENKOND","_KES#_FGO_HENKOND",null,"IN2_EDA",18,1]
[122,"枝情報／決済情報８","割合","－",null,"表示","表示","○","テキスト",null,null,"=IFERROR([保険対象額／元本]/[契約金額元本],\"\")",null,"桃色",null,{"$f":"IF(P$40=\"\",\"\",P$40)","v":""},"","","","",null,null,"割合",null,null,"IN2_KES8_WARIAI","_KES#_WARIAI",null,"IN2_EDA",18,2]
[123,"枝情報／決済情報８","決済方法（コード）","－",null,"表示","表示","○","Ｔボックス",null,null,null,null,"黄色",null,null,null,2,"","半角数字",null,null,"決済方法",null,null,"IN2_KES8_HOHO_CD","_KES#_HOHO_CD",null,"IN2_EDA",18,7]
[124,"枝情報／決済情報８","決済方法（名称）","－",null,"表示","表示",null,"テキスト","コード一覧から名称取得",null,"=IFERROR(VLOOKUP([決済コード],決済方法x,2,0),\"\")",null,null,null,null,null,"","","",null,null,"決済方法（名称）",null,null,"IN2_KES8_HOHO_NM","_KES#_HOHO_NM",null,"IN2_EDA",18,3]
[125,"枝情報／決済情報８","支払保証（コード）","－",null,"表示","表示","○","Ｔボックス",null,null,null,null,"緑色",null,null,null,2,"","半角数字",null,null,"支払保証",null,null,"IN2_KES8_SHR_HSH_CD","_KES#_SHR_HSH_CD",null,"IN2_EDA",19,7]
[126,"枝情報／決済情報８","支払保証（名称）","－",null,"表示","表示",null,"テキスト","コード一覧から名称取得",null,"=IFERROR(VLOOKUP([支払保証コード],支払保証x,2,0),\"\")",null,null,null,{"$f":"IF(P$44=\"\",\"\",P$44)","v":""},"","","","",null,null,"支払保証（名称）",null,null,"IN2_KES8_SHR_HSH_NM","_KES#_SHR_HSH_NM",null,"IN2_EDA",19,3]
[127,"枝情報／決済情報８","保険対象額（元本）","－",null,"表示","表示","○","Ｔボックス",null,null,null,null,"黄色",null,null,null,"",13.2,"半角小数",null,null,"保険対象額（元本）",null,null,"IN2_KES8_HKTSG_GPN","_KES#_HKTSG_GPN",null,"IN2_EDA",18,8]
[128,"枝情報／決済情報８","保険対象額（金利）","－",null,"表示","表示","○","Ｔボックス",null,null,null,null,"緑色",null,null,null,"",13.2,"半角小数",null,null,"保険対象額（金利）",null,null,"IN2_KES8_HKTSG_KNR","_KES#_HKTSG_KNR",null,"IN2_EDA",18,9]
[129,"枝情報／決済情報８","保険対象額（計）","－",null,"表示","表示",null,"テキスト",null,null,"=SUM([元本],[金利])",null,"黄色",null,null,null,"","","",null,null,"保険対象額（計）",null,null,"IN2_KES8_HKTSG_SUM","_KES#_HKTSG_SUM",null,"IN2_EDA",18,10]
[{"$f":"IF(C132=\"\",\"\",ROW()-2)","v":130},"枝情報／決済情報８","決済期日","－",null,"表示","表示","○","Ｔボックス","yyyy/m/d形式",null,null,null,"黄色",null,"相関必須","相関必須","","","有効日付",null,null,"決済期日",null,null,"IN2_KES8_KESBI","_KES#_KESBI",null,"IN2_EDA",18,11]
[131,"枝情報／決済情報８","ユーザンス（期間）","－",null,"表示","表示","○","Ｔボックス",null,null,null,null,"黄色",null,"相関必須","相関必須","",3,"半角数字",null,null,"ユーザンス（期間）",null,null,"IN2_KES8_USANCE_KKN","_KES#_USANCE_KKN",null,"IN2_EDA",18,12]
[132,"枝情報／決済情報８","ユーザンス（月日指定）","－",null,"表示","表示","○","プルダウン","コード一覧：月日",null,null,null,"黄色",null,"相関必須","相関必須","","","","ユーザンス月日指定.内容",null,"ユーザンス（月日指定）",null,null,"IN2_KES8_USANCE_TANI","_KES#_USANCE_TANI",null,"IN2_EDA",18,13]
[133,"枝情報／決済情報９","船後変更等","－",null,"表示","表示","○","Ｔボックス","選択：変,追,削",null,null,"項目定義（別紙様式(企総)）","橙色",null,{"$f":"IF(P$39=\"\",\"\",P$39)","v":""},"","","","","修正削除フラグ.内容",null,"船後変更等",null,null,"IN2_KES9_FGO_HENKOND","_KES#_FGO_HENKOND",null,"IN2_EDA",20,1]
[134,"枝情報／決済情報９","割合","－",null,"表示","表示","○","テキスト",null,null,"=IFERROR([保険対象額／元本]/[契約金額元本],\"\")",null,"桃色",null,{"$f":"IF(P$40=\"\",\"\",P$40)","v":""},"","","","",null,null,"割合",null,null,"IN2_KES9_WARIAI","_KES#_WARIAI",null,"IN2_EDA",20,2]
[135,"枝情報／決済情報９","決済方法（コード）","－",null,"表示","表示","○","Ｔボックス",null,null,null,null,"黄色",null,null,null,2,"","半角数字",null,null,"決済方法",null,null,"IN2_KES9_HOHO_CD","_KES#_HOHO_CD",null,"IN2_EDA",20,7]
[136,"枝情報／決済情報９","決済方法（名称）","－",null,"表示","表示",null,"テキスト","コード一覧から名称取得",null,"=IFERROR(VLOOKUP([決済コード],決済方法x,2,0),\"\")",null,null,null,null,null,"","","",null,null,"決済方法（名称）",null,null,"IN2_KES9_HOHO_NM","_KES#_HOHO_NM",null,"IN2_EDA",20,3]
[137,"枝情報／決済情報９","支払保証（コード）","－",null,"表示","表示","○","Ｔボックス",null,null,null,null,"緑色",null,null,null,2,"","半角数字",null,null,"支払保証",null,null,"IN2_KES9_SHR_HSH_CD","_KES#_SHR_HSH_CD",null,"IN2_EDA",21,7]
[138,"枝情報／決済情報９","支払保証（名称）","－",null,"表示","表示",null,"テキスト","コード一覧から名称取得",null,"=IFERROR(VLOOKUP([支払保証コード],支払保証x,2,0),\"\")",null,null,null,{"$f":"IF(P$44=\"\",\"\",P$44)","v":""},"","","","",null,null,"支払保証（名称）",null,null,"IN2_KES9_SHR_HSH_NM","_KES#_SHR_HSH_NM",null,"IN2_EDA",21,3]
[139,"枝情報／決済情報９","保険対象額（元本）","－",null,"表示","表示","○","Ｔボックス",null,null,null,null,"黄色",null,null,null,"",13.2,"半角小数",null,null,"保険対象額（元本）",null,null,"IN2_KES9_HKTSG_GPN","_KES#_HKTSG_GPN",null,"IN2_EDA",20,8]
[140,"枝情報／決済情報９","保険対象額（金利）","－",null,"表示","表示","○","Ｔボックス",null,null,null,null,"緑色",null,null,null,"",13.2,"半角小数",null,null,"保険対象額（金利）",null,null,"IN2_KES9_HKTSG_KNR","_KES#_HKTSG_KNR",null,"IN2_EDA",20,9]
[141,"枝情報／決済情報９","保険対象額（計）","－",null,"表示","表示",null,"テキスト",null,null,"=SUM([元本],[金利])",null,"黄色",null,null,null,"","","",null,null,"保険対象額（計）",null,null,"IN2_KES9_HKTSG_SUM","_KES#_HKTSG_SUM",null,"IN2_EDA",20,10]
[142,"枝情報／決済情報９","決済期日","－",null,"表示","表示","○","Ｔボックス","yyyy/m/d形式",null,null,null,"黄色",null,"相関必須","相関必須","","","有効日付",null,null,"決済期日",null,null,"IN2_KES9_KESBI","_KES#_KESBI",null,"IN2_EDA",20,11]
[143,"枝情報／決済情報９","ユーザンス（期間）","－",null,"表示","表示","○","Ｔボックス",null,null,null,null,"黄色",null,"相関必須","相関必須","",3,"半角数字",null,null,"ユーザンス（期間）",null,null,"IN2_KES9_USANCE_KKN","_KES#_USANCE_KKN",null,"IN2_EDA",20,12]
[144,"枝情報／決済情報９","ユーザンス（月日指定）","－",null,"表示","表示","○","プルダウン","コード一覧：月日",null,null,null,"黄色",null,"相関必須","相関必須","","","","ユーザンス月日指定.内容",null,"ユーザンス（月日指定）",null,null,"IN2_KES9_USANCE_TANI","_KES#_USANCE_TANI",null,"IN2_EDA",20,13]
[145,"枝情報／決済情報１０","船後変更等","－",null,"表示","表示","○","Ｔボックス","選択：変,追,削",null,null,"項目定義（別紙様式(企総)）","橙色",null,{"$f":"IF(P$39=\"\",\"\",P$39)","v":""},"","","","","修正削除フラグ.内容",null,"船後変更等",null,null,"IN2_KES10_FGO_HENKOND","_KES#_FGO_HENKOND",null,"IN2_EDA",22,1]
[146,"枝情報／決済情報１０","割合","－",null,"表示","表示","○","テキスト",null,null,"=IFERROR([保険対象額／元本]/[契約金額元本],\"\")",null,"桃色",null,{"$f":"IF(P$40=\"\",\"\",P$40)","v":""},"","","","",null,null,"割合",null,null,"IN2_KES10_WARIAI","_KES#_WARIAI",null,"IN2_EDA",22,2]
[147,"枝情報／決済情報１０","決済方法（コード）","－",null,"表示","表示","○","Ｔボックス",null,null,null,null,"黄色",null,null,null,2,"","半角数字",null,null,"決済方法",null,null,"IN2_KES10_HOHO_CD","_KES#_HOHO_CD",null,"IN2_EDA",22,7]
[148,"枝情報／決済情報１０","決済方法（名称）","－",null,"表示","表示",null,"テキスト","コード一覧から名称取得",null,"=IFERROR(VLOOKUP([決済コード],決済方法x,2,0),\"\")",null,null,null,null,null,"","","",null,null,"決済方法（名称）",null,null,"IN2_KES10_HOHO_NM","_KES#_HOHO_NM",null,"IN2_EDA",22,3]
[149,"枝情報／決済情報１０","支払保証（コード）","－",null,"表示","表示","○","Ｔボックス",null,null,null,null,"緑色",null,null,null,2,"","半角数字",null,null,"支払保証",null,null,"IN2_KES10_SHR_HSH_CD","_KES#_SHR_HSH_CD",null,"IN2_EDA",23,7]
[150,"枝情報／決済情報１０","支払保証（名称）","－",null,"表示","表示",null,"テキスト","コード一覧から名称取得",null,"=IFERROR(VLOOKUP([支払保証コード],支払保証x,2,0),\"\")",null,null,null,{"$f":"IF(P$44=\"\",\"\",P$44)","v":""},"","","","",null,null,"支払保証（名称）",null,null,"IN2_KES10_SHR_HSH_NM","_KES#_SHR_HSH_NM",null,"IN2_EDA",23,3]
[151,"枝情報／決済情報１０","保険対象額（元本）","－",null,"表示","表示","○","Ｔボックス",null,null,null,null,"黄色",null,null,null,"",13.2,"半角小数",null,null,"保険対象額（元本）",null,null,"IN2_KES10_HKTSG_GPN","_KES#_HKTSG_GPN",null,"IN2_EDA",22,8]
[152,"枝情報／決済情報１０","保険対象額（金利）","－",null,"表示","表示","○","Ｔボックス",null,null,null,null,"緑色",null,null,null,"",13.2,"半角小数",null,null,"保険対象額（金利）",null,null,"IN2_KES10_HKTSG_KNR","_KES#_HKTSG_KNR",null,"IN2_EDA",22,9]
[153,"枝情報／決済情報１０","保険対象額（計）","－",null,"表示","表示",null,"テキスト",null,null,"=SUM([元本],[金利])",null,"黄色",null,null,null,"","","",null,null,"保険対象額（計）",null,null,"IN2_KES10_HKTSG_SUM","_KES#_HKTSG_SUM",null,"IN2_EDA",22,10]
[154,"枝情報／決済情報１０","決済期日","－",null,"表示","表示","○","Ｔボックス","yyyy/m/d形式",null,null,null,"黄色",null,"相関必須","相関必須","","","有効日付",null,null,"決済期日",null,null,"IN2_KES10_KESBI","_KES#_KESBI",null,"IN2_EDA",22,11]
[155,"枝情報／決済情報１０","ユーザンス（期間）","－",null,"表示","表示","○","Ｔボックス",null,null,null,null,"黄色",null,"相関必須","相関必須","",3,"半角数字",null,null,"ユーザンス（期間）",null,null,"IN2_KES10_USANCE_KKN","_KES#_USANCE_KKN",null,"IN2_EDA",22,12]
[156,"枝情報／決済情報１０","ユーザンス（月日指定）","－",null,"表示","表示","○","プルダウン","コード一覧：月日",null,null,null,"黄色",null,"相関必須","相関必須","","","","ユーザンス月日指定.内容",null,"ユーザンス（月日指定）",null,null,"IN2_KES10_USANCE_TANI","_KES#_USANCE_TANI",null,"IN2_EDA",22,13]
[157,"備枝情報／備考","備考","－",null,"表示","表示","○","Ｔボックス",null,null,null,null,"桃色",null,null,null,null,null,null,null,null,"備考",null,null,"IN2_BIKO","_BIKO",null,"IN2_EDA",1,14]
[158,"通貨別合計１","通貨別合計／通貨","－",null,"表示","表示","○","Ｔボックス",null,null,null,null,null,null,null,null,null,null,null,"通貨コード.表示",null,"通貨別合計／通貨",null,null,"IN2_GOKEI1_TKA_DSP","_GOKEI#_TKA_DSP",null,"IN2_GOKEI_TK_LBL",2,0]
[159,"通貨別合計１","通貨別合計／船後対象額元本","－",null,"表示","表示","○","Ｔボックス",null,null,null,null,null,null,null,null,null,13.2,"半角小数",null,null,"通貨別合計／船後対象額元本",null,null,"IN2_GOKEI1_FGO_TSGK_GPN","_GOKEI#_FGO_TSGK_GPN",null,"IN2_GOKEI_TK_LBL",2,1]
[160,"通貨別合計１","通貨別合計／船後対象額金利","－",null,"表示","表示","○","Ｔボックス",null,null,null,null,null,null,null,null,null,13.2,"半角小数",null,null,"通貨別合計／船後対象額金利",null,null,"IN2_GOKEI1_FGO_TSGK_KNR","_GOKEI#_FGO_TSGK_KNR",null,"IN2_GOKEI_TK_LBL",2,2]
[161,"通貨別合計１","通貨別合計／船後対象額合計","－",null,"表示","表示","○","Ｔボックス",null,null,null,null,null,null,null,null,null,null,null,null,null,"通貨別合計／船後対象額合計",null,null,"IN2_GOKEI1_FGO_TSGK_SUM","_GOKEI#_FGO_TSGK_SUM",null,"IN2_GOKEI_TK_LBL",2,3]
[162,"通貨別合計１","通貨別合計／契約金額元本","－",null,"表示","表示","○","Ｔボックス",null,null,null,null,null,null,null,null,null,13.2,"半角小数",null,null,"通貨別合計／契約金額元本",null,null,"IN2_GOKEI1_KEI_KG_GPN","_GOKEI#_KEI_KG_GPN",null,"IN2_GOKEI_TK_LBL",2,4]
[163,"通貨別合計１","通貨別合計／船前対象額元本","－",null,"表示","表示","○","Ｔボックス",null,null,null,null,null,null,null,null,null,13.2,"半角小数",null,null,"通貨別合計／船前対象額元本",null,null,"IN2_GOKEI1_FMAE_TSGK_GPN","_GOKEI#_FMAE_TSGK_GPN",null,"IN2_GOKEI_TK_LBL",2,5]
[164,"通貨別合計２","通貨別合計／通貨","－",null,"表示","表示","○","Ｔボックス",null,null,null,null,null,null,"","","","","","通貨コード.表示",null,"通貨別合計／通貨",null,null,"IN2_GOKEI2_TKA_DSP",{"$f":"IF(AA$160=\"\",\"\",AA$160)","v":"_GOKEI#_TKA_DSP"},null,"IN2_GOKEI_TK_LBL",3,0]
[165,"通貨別合計２","通貨別合計／船後対象額元本","－",null,"表示","表示","○","Ｔボックス",null,null,null,null,null,null,"","","",13.2,"半角小数",null,null,"通貨別合計／船後対象額元本",null,null,"IN2_GOKEI2_FGO_TSGK_GPN",{"$f":"IF(AA$161=\"\",\"\",AA$161)","v":"_GOKEI#_FGO_TSGK_GPN"},null,"IN2_GOKEI_TK_LBL",3,1]
[166,"通貨別合計２","通貨別合計／船後対象額金利","－",null,"表示","表示","○","Ｔボックス",null,null,null,null,null,null,"","","",13.2,"半角小数",null,null,"通貨別合計／船後対象額金利",null,null,"IN2_GOKEI2_FGO_TSGK_KNR",{"$f":"IF(AA$162=\"\",\"\",AA$162)","v":"_GOKEI#_FGO_TSGK_KNR"},null,"IN2_GOKEI_TK_LBL",3,2]
[167,"通貨別合計２","通貨別合計／船後対象額合計","－",null,"表示","表示","○","Ｔボックス",null,null,null,null,null,null,"","","","","",null,null,"通貨別合計／船後対象額合計",null,null,"IN2_GOKEI2_FGO_TSGK_SUM",{"$f":"IF(AA$163=\"\",\"\",AA$163)","v":"_GOKEI#_FGO_TSGK_SUM"},null,"IN2_GOKEI_TK_LBL",3,3]
[168,"通貨別合計２","通貨別合計／契約金額元本","－",null,"表示","表示","○","Ｔボックス",null,null,null,null,null,null,"","","",13.2,"半角小数",null,null,"通貨別合計／契約金額元本",null,null,"IN2_GOKEI2_KEI_KG_GPN",{"$f":"IF(AA$164=\"\",\"\",AA$164)","v":"_GOKEI#_KEI_KG_GPN"},null,"IN2_GOKEI_TK_LBL",3,4]
[169,"通貨別合計２","通貨別合計／船前対象額元本","－",null,"表示","表示","○","Ｔボックス",null,null,null,null,null,null,"","","",13.2,"半角小数",null,null,"通貨別合計／船前対象額元本",null,null,"IN2_GOKEI2_FMAE_TSGK_GPN",{"$f":"IF(AA$165=\"\",\"\",AA$165)","v":"_GOKEI#_FMAE_TSGK_GPN"},null,"IN2_GOKEI_TK_LBL",3,5]
[170,"通貨別合計３","通貨別合計／通貨","－",null,"表示","表示","○","Ｔボックス",null,null,null,null,null,null,"","","","","","通貨コード.表示",null,"通貨別合計／通貨",null,null,"IN2_GOKEI3_TKA_DSP",{"$f":"IF(AA$160=\"\",\"\",AA$160)","v":"_GOKEI#_TKA_DSP"},null,"IN2_GOKEI_TK_LBL",4,0]
[171,"通貨別合計３","通貨別合計／船後対象額元本","－",null,"表示","表示","○","Ｔボックス",null,null,null,null,null,null,"","","",13.2,"半角小数",null,null,"通貨別合計／船後対象額元本",null,null,"IN2_GOKEI3_FGO_TSGK_GPN",{"$f":"IF(AA$161=\"\",\"\",AA$161)","v":"_GOKEI#_FGO_TSGK_GPN"},null,"IN2_GOKEI_TK_LBL",4,1]
[172,"通貨別合計３","通貨別合計／船後対象額金利","－",null,"表示","表示","○","Ｔボックス",null,null,null,null,null,null,"","","",13.2,"半角小数",null,null,"通貨別合計／船後対象額金利",null,null,"IN2_GOKEI3_FGO_TSGK_KNR",{"$f":"IF(AA$162=\"\",\"\",AA$162)","v":"_GOKEI#_FGO_TSGK_KNR"},null,"IN2_GOKEI_TK_LBL",4,2]
[173,"通貨別合計３","通貨別合計／船後対象額合計","－",null,"表示","表示","○","Ｔボックス",null,null,null,null,null,null,"","","","","",null,null,"通貨別合計／船後対象額合計",null,null,"IN2_GOKEI3_FGO_TSGK_SUM",{"$f":"IF(AA$163=\"\",\"\",AA$163)","v":"_GOKEI#_FGO_TSGK_SUM"},null,"IN2_GOKEI_TK_LBL",4,3]
[174,"通貨別合計３","通貨別合計／契約金額元本","－",null,"表示","表示","○","Ｔボックス",null,null,null,null,null,null,"","","",13.2,"半角小数",null,null,"通貨別合計／契約金額元本",null,null,"IN2_GOKEI3_KEI_KG_GPN",{"$f":"IF(AA$164=\"\",\"\",AA$164)","v":"_GOKEI#_KEI_KG_GPN"},null,"IN2_GOKEI_TK_LBL",4,4]
[175,"通貨別合計３","通貨別合計／船前対象額元本","－",null,"表示","表示","○","Ｔボックス",null,null,null,null,null,null,"","","",13.2,"半角小数",null,null,"通貨別合計／船前対象額元本",null,null,"IN2_GOKEI3_FMAE_TSGK_GPN",{"$f":"IF(AA$165=\"\",\"\",AA$165)","v":"_GOKEI#_FMAE_TSGK_GPN"},null,"IN2_GOKEI_TK_LBL",4,5]
[176,"通貨別合計４","通貨別合計／通貨","－",null,"表示","表示","○","Ｔボックス",null,null,null,null,null,null,"","","","","","通貨コード.表示",null,"通貨別合計／通貨",null,null,"IN2_GOKEI4_TKA_DSP",{"$f":"IF(AA$160=\"\",\"\",AA$160)","v":"_GOKEI#_TKA_DSP"},null,"IN2_GOKEI_TK_LBL",5,0]
[177,"通貨別合計４","通貨別合計／船後対象額元本","－",null,"表示","表示","○","Ｔボックス",null,null,null,null,null,null,"","","",13.2,"半角小数",null,null,"通貨別合計／船後対象額元本",null,null,"IN2_GOKEI4_FGO_TSGK_GPN",{"$f":"IF(AA$161=\"\",\"\",AA$161)","v":"_GOKEI#_FGO_TSGK_GPN"},null,"IN2_GOKEI_TK_LBL",5,1]
[178,"通貨別合計４","通貨別合計／船後対象額金利","－",null,"表示","表示","○","Ｔボックス",null,null,null,null,null,null,"","","",13.2,"半角小数",null,null,"通貨別合計／船後対象額金利",null,null,"IN2_GOKEI4_FGO_TSGK_KNR",{"$f":"IF(AA$162=\"\",\"\",AA$162)","v":"_GOKEI#_FGO_TSGK_KNR"},null,"IN2_GOKEI_TK_LBL",5,2]
[179,"通貨別合計４","通貨別合計／船後対象額合計","－",null,"表示","表示","○","Ｔボックス",null,null,null,null,null,null,"","","","","",null,null,"通貨別合計／船後対象額合計",null,null,"IN2_GOKEI4_FGO_TSGK_SUM",{"$f":"IF(AA$163=\"\",\"\",AA$163)","v":"_GOKEI#_FGO_TSGK_SUM"},null,"IN2_GOKEI_TK_LBL",5,3]
[180,"通貨別合計４","通貨別合計／契約金額元本","－",null,"表示","表示","○","Ｔボックス",null,null,null,null,null,null,"","","",13.2,"半角小数",null,null,"通貨別合計／契約金額元本",null,null,"IN2_GOKEI4_KEI_KG_GPN",{"$f":"IF(AA$164=\"\",\"\",AA$164)","v":"_GOKEI#_KEI_KG_GPN"},null,"IN2_GOKEI_TK_LBL",5,4]
[181,"通貨別合計４","通貨別合計／船前対象額元本","－",null,"表示","表示","○","Ｔボックス",null,null,null,null,null,null,"","","",13.2,"半角小数",null,null,"通貨別合計／船前対象額元本",null,null,"IN2_GOKEI4_FMAE_TSGK_GPN",{"$f":"IF(AA$165=\"\",\"\",AA$165)","v":"_GOKEI#_FMAE_TSGK_GPN"},null,"IN2_GOKEI_TK_LBL",5,5]

{"sheet":"テンプレート(別紙)","index":11,"n_rows":24,"n_cols":12,"rows_kept":24,"cut":false,"hidden":true,"merged":[[6,11,7,11],[6,12,7,12],[6,13,7,13],[6,14,7,14],[7,4,7,7],[10,11,11,11],[10,12,11,12],[10,13,11,13],[10,14,11,14],[11,4,11,7],[8,11,9,11],[8,12,9,12],[8,13,9,13],[8,14,9,14],[9,4,9,7],[6,10,7,10],[10,2,11,2],[10,3,11,3],[10,4,10,7],[10,9,11,9],[10,10,11,10],[8,2,9,2],[8,3,9,3],[8,4,8,7],[8,9,9,9],[8,10,9,10],[16,14,17,14],[17,4,17,7],[14,11,15,11],[14,12,15,12],[14,13,15,13],[14,14,15,14],[15,4,15,7],[12,11,13,11],[12,12,13,12],[12,13,13,13],[12,14,13,14],[13,4,13,7],[12,10,13,10],[14,4,14,7],[14,9,15,9],[14,10,15,10],[16,10,17,10],[16,11,17,11],[16,12,17,12],[16,13,17,13],[22,12,23,12],[22,13,23,13],[22,14,23,14],[23,4,23,7],[22,2,23,2],[22,3,23,3],[22,4,22,7],[22,9,23,9],[22,10,23,10],[22,11,23,11],[20,12,21,12],[20,13,21,13],[20,14,21,14],[21,4,21,7],[18,12,19,12],[18,13,19,13],[18,14,19,14],[19,4,19,7],[20,4,20,7],[20,9,21,9],[20,10,21,10],[20,11,21,11],[18,4,18,7],[18,9,19,9],[18,10,19,10],[18,11,19,11],[3,1,23,1],[3,4,3,7],[4,2,5,2],[4,3,5,3],[4,4,4,7],[4,9,5,9],[16,2,17,2],[16,3,17,3],[16,4,16,7],[16,9,17,9],[12,2,13,2],[12,3,13,3],[12,4,12,7],[12,9,13,9],[20,2,21,2],[20,3,21,3],[18,2,19,2],[18,3,19,3],[14,2,15,2],[14,3,15,3],[6,2,7,2],[6,3,7,3],[6,4,6,7],[6,9,7,9],[0,2,2,2],[0,12,0,14],[1,10,1,11],[1,12,1,14],[2,4,2,6],[2,10,2,11],[2,12,2,14],[4,10,5,10],[4,11,5,11],[4,12,5,12],[4,13,5,13],[4,14,5,14],[5,4,5,7],[3,12,3,14]]}
[null,null,null,null,null,null,null,{"$f":"IFERROR(VLOOKUP(I1,国x,2,0),\"\")","v":""},null,null,{"$f":"IF(AND(J1<>\"\",L1<>\"\"),J1+(L1-J1)/2,\"-\")","v":"-"}]
[null,null,null,null,null,null,null,{"$f":"IFERROR(VLOOKUP(I2,国x,2,0),\"\")","v":""}]
[null,null,null,null,null,null,null,{"$f":"IFERROR(VLOOKUP(I3,国x,2,0),\"\")","v":""}]
[null,{"$f":"IFERROR(VLOOKUP(B3,変更事由x,2,0),\"\")","v":""},null,{"$f":"IFERROR(IF(OR(ISBLANK(J4),ISBLANK(M1)),\"\",J4/M1),\"\")","v":""},"頭金",null,null,null,null,null,null,{"$f":"SUM(J4,K4)","v":0}]
[null,null,null,{"$f":"IFERROR(IF(OR(ISBLANK(J5),ISBLANK(M1)),\"\",J5/M1),\"\")","v":""},{"$f":"IFERROR(VLOOKUP(I5,決済方法x,2,0),\"\")","v":""},null,null,null,null,null,null,{"$f":"SUM(J5,K5)","v":0}]
[null,null,null,{"$f":"IFERROR(J6/#REF!,\"\")","v":""},{"$f":"IFERROR(VLOOKUP(I6,支払保証x,2,0),\"\")","v":""}]
[null,null,null,{"$f":"IFERROR(IF(OR(ISBLANK(J7),ISBLANK(M1)),\"\",J7/M1),\"\")","v":""},{"$f":"IFERROR(VLOOKUP(I7,決済方法x,2,0),\"\")","v":""},null,null,null,null,null,null,{"$f":"SUM(J7,K7)","v":0}]
[null,null,null,{"$f":"IFERROR(J8/#REF!,\"\")","v":""},{"$f":"IFERROR(VLOOKUP(I8,支払保証x,2,0),\"\")","v":""}]
[null,null,null,{"$f":"IFERROR(IF(OR(ISBLANK(J9),ISBLANK(M1)),\"\",J9/M1),\"\")","v":""},{"$f":"IFERROR(VLOOKUP(I9,決済方法x,2,0),\"\")","v":""},null,null,null,null,null,null,{"$f":"SUM(J9,K9)","v":0}]
[null,null,null,{"$f":"IFERROR(J10/#REF!,\"\")","v":""},{"$f":"IFERROR(VLOOKUP(I10,支払保証x,2,0),\"\")","v":""}]
[null,null,null,{"$f":"IFERROR(IF(OR(ISBLANK(J11),ISBLANK(M1)),\"\",J11/M1),\"\")","v":""},{"$f":"IFERROR(VLOOKUP(I11,決済方法x,2,0),\"\")","v":""},null,null,null,null,null,null,{"$f":"SUM(J11,K11)","v":0}]
[null,null,null,{"$f":"IFERROR(J12/#REF!,\"\")","v":""},{"$f":"IFERROR(VLOOKUP(I12,支払保証x,2,0),\"\")","v":""}]
[null,null,null,{"$f":"IFERROR(IF(OR(ISBLANK(J13),ISBLANK(M1)),\"\",J13/M1),\"\")","v":""},{"$f":"IFERROR(VLOOKUP(I13,決済方法x,2,0),\"\")","v":""},null,null,null,null,null,null,{"$f":"SUM(J13,K13)","v":0}]
[null,null,null,{"$f":"IFERROR(J14/#REF!,\"\")","v":""},{"$f":"IFERROR(VLOOKUP(I14,支払保証x,2,0),\"\")","v":""}]
[null,null,null,{"$f":"IFERROR(IF(OR(ISBLANK(J15),ISBLANK(M1)),\"\",J15/M1),\"\")","v":""},{"$f":"IFERROR(VLOOKUP(I15,決済方法x,2,0),\"\")","v":""},null,null,null,null,null,null,{"$f":"SUM(J15,K15)","v":0}]
[null,null,null,{"$f":"IFERROR(J16/#REF!,\"\")","v":""},{"$f":"IFERROR(VLOOKUP(I16,支払保証x,2,0),\"\")","v":""}]
[null,null,null,{"$f":"IFERROR(IF(OR(ISBLANK(J17),ISBLANK(M1)),\"\",J17/M1),\"\")","v":""},{"$f":"IFERROR(VLOOKUP(I17,決済方法x,2,0),\"\")","v":""},null,null,null,null,null,null,{"$f":"SUM(J17,K17)","v":0}]
[null,null,null,{"$f":"IFERROR(J18/#REF!,\"\")","v":""},{"$f":"IFERROR(VLOOKUP(I18,支払保証x,2,0),\"\")","v":""}]
[null,null,null,{"$f":"IFERROR(IF(OR(ISBLANK(J19),ISBLANK(M1)),\"\",J19/M1),\"\")","v":""},{"$f":"IFERROR(VLOOKUP(I19,決済方法x,2,0),\"\")","v":""},null,null,null,null,null,null,{"$f":"SUM(J19,K19)","v":0}]
[null,null,null,{"$f":"IFERROR(J20/#REF!,\"\")","v":""},{"$f":"IFERROR(VLOOKUP(I20,支払保証x,2,0),\"\")","v":""}]
[null,null,null,{"$f":"IFERROR(IF(OR(ISBLANK(J21),ISBLANK(M1)),\"\",J21/M1),\"\")","v":""},{"$f":"IFERROR(VLOOKUP(I21,決済方法x,2,0),\"\")","v":""},null,null,null,null,null,null,{"$f":"SUM(J21,K21)","v":0}]
[null,null,null,{"$f":"IFERROR(J22/#REF!,\"\")","v":""},{"$f":"IFERROR(VLOOKUP(I22,支払保証x,2,0),\"\")","v":""}]
[null,null,null,{"$f":"IFERROR(IF(OR(ISBLANK(J23),ISBLANK(M1)),\"\",J23/M1),\"\")","v":""},{"$f":"IFERROR(VLOOKUP(I23,決済方法x,2,0),\"\")","v":""},null,null,null,null,null,null,{"$f":"SUM(J23,K23)","v":0}]
[null,null,null,{"$f":"IFERROR(J24/#REF!,\"\")","v":""},{"$f":"IFERROR(VLOOKUP(I24,支払保証x,2,0),\"\")","v":""}]